Workbook

Sheet Interface
D5: Select Language
B7: =OFFSET(LG!A2,LG!B8-1,0,1,1) -> VOLTAGE DROP CALCULATION (Yazaki Cable)
B9: =OFFSET(LG!I2,LG!B8-1,0,1,1) -> Type of Voltage Drop | C9: AC 3-Phase, 3-Wire
B11: =OFFSET(LG!B2,LG!B8-1,0,1,1) -> Type of Cable | C11: Building Wire Cable | F11: Color Meaning
B13: =OFFSET(LG!C2,LG!B8-1,0,1,1) -> Cable Name | C13: 60227 IEC 01 THW | G13: =OFFSET(LG!AZ2,LG!B8-1,0,1,1) -> Input Data
B15: =OFFSET(LG!D2,LG!B8-1,0,1,1) -> Select No. of Core | C15: 1 | G15: =OFFSET(LG!BA2,LG!B8-1,0,1,1) -> Select Data
B17: =D!B69 -> Select Size | C17: 150 | D17: =D!C69 -> mm² | G17: =OFFSET(LG!BB2,LG!B8-1,0,1,1) -> Do not Edit
B18: =D!B70 ->  | C18: 185 | D18: =D!C70 -> 
B19: =D!B71 ->  | C19: 400 | D19: =D!C71 -> 
B20: =D!B72 ->  | C20: 6 | D20: =D!C72 -> 
B22: =D!C76 -> Select Laying type | C22: Space | E22: =IF(AND(D!H66=1,C22="Space"),"(Spacing : S=2D)","") -> (Spacing : S=2D)
B23: =D!C75 ->  | C23: =D!B75 -> 
B24: =D!C77 ->  | C24: =D!B76 -> 
B26: =OFFSET(LG!G2,LG!B8-1,0,1,1) -> Frequency 50 Hz (Thailand, Myanmar, Cambodia,China)
B28: =OFFSET(LG!H2,LG!B8-1,0,1,1) -> Power Factor | C28: 0.85 | D28: =IF(C28=0.85,"(Recommendation by MEA, EIT)","") -> (Recommendation by MEA, EIT)
B31: =OFFSET(LG!P2,LG!B8-1,0,1,1) -> Part of System | C31: Main Feeder
B33: =OFFSET(LG!BD2,LG!B8-1,0,1,1) -> Cable/Phase | C33: 6
B35: =OFFSET(LG!J2,LG!B8-1,0,1,1) -> Length of Cable | C35: 99 | D35: =OFFSET(LG!K2,LG!B8-1,0,1,1) -> Metre | E35: =OFFSET(LG!AV2,LG!B8-1,0,1,1) -> Installation | G35: Air
B37: =OFFSET(LG!L2,LG!B8-1,0,1,1) -> Current | C37: 99 | D37: =OFFSET(LG!M2,LG!B8-1,0,1,1) -> A | E37: =OFFSET(LG!AW2,LG!B8-1,0,1,1) -> Maximum Capacity | G37: =IF(AND(D!F40=27,C15>4),"N/A",IF(C33=1,ROUND('In-air-GRD'!H14,0),"N/A")) -> N/A | H37: A
B39: =OFFSET(LG!N2,LG!B8-1,0,1,1) -> System Voltage | C39: 400 | D39: =OFFSET(LG!O2,LG!B8-1,0,1,1) -> V | E39: =OFFSET(LG!AX2,LG!B8-1,0,1,1) -> Ambient | G39: 41-45 | H39: °C
B41: =OFFSET(LG!Q2,LG!B8-1,0,1,1) -> Voltage Drop | C41: =IF(D!C59>0.00001,D!C59,"") -> 0.5567930924 | D41: =OFFSET(LG!R2,LG!B8-1,0,1,1) -> V
B43: =OFFSET(LG!S2,LG!B8-1,0,1,1) -> Voltage Drop | C43: =IF(C39="","",((C41*100)/C39)) -> 0.1391982731 | D43: =OFFSET(LG!T2,LG!B8-1,0,1,1) -> %
B45: =OFFSET(LG!U2,LG!B8-1,0,1,1) -> Result | C45: =IF(C43="","",OFFSET(LG!AU2,LG!B8-1,0,1,1)) -> Can Use
B46: =IF(AND(G37="N/A",C13="CVV",C33>1),"Remark: maximum capacity of cable must be calculated by suitable method",IF(AND(G37="N/A",C13="CVV"),"",IF(G37="N/A","Remark: maximum capacity of cable must be calculated by suitable method",IF(C33>1,"Remark: maximum capacity of cable must be calculated by suitable method",IF(AND(G37="N/A",C13="CVV",C33>1),"Remark: maximum capacity of cable must be calculated by suitable method",""))))) -> Remark: maximum capacity of cable must be calculated by suitable method
A49: =OFFSET(LG!AP2,LG!B8-1,0,1,1) -> NOTE: NEC RECOMMENDATIONS
A50: =OFFSET(LG!AQ2,LG!B8-1,0,1,1) -> Maximum combined voltage drop for both the feeder and branch circuit shouldn't
A51: =OFFSET(LG!AR2,LG!B8-1,0,1,1) -> exceed 5%, and the maximum on the feeder or branch circuit shouldn't exceed 3%
A52: =OFFSET(LG!AS2,LG!B8-1,0,1,1) -> 
A53: =OFFSET(LG!AT2,LG!B8-1,0,1,1) -> 
B60: =OFFSET(LG!V2,LG!B8-1,0,1,1) -> VOLTAGE DROP CALCULATION (Other Cable)
B62: =B37 -> Current | D62: =D37 -> A | F62: Color Meaning
B64: =B35 -> Length of Cable | D64: =D35 -> Metre | G64: =G13 -> Input Data
G66: =G15 -> Select Data
B67: =OFFSET(LG!AA2,LG!B8-1,0,1,1) -> AC Resistance | D67: =OFFSET(LG!AB2,LG!B8-1,0,1,1) -> Ω/km
G68: =G17 -> Do not Edit
B69: =OFFSET(LG!AC2,LG!B8-1,0,1,1) -> Reactance XL | D69: =D67 -> Ω/km
B71: =B28 -> Power Factor | C71: 0.85 | D71: =IF(C71=0.85,"(Recommandation by MEA, EIT)","") -> (Recommandation by MEA, EIT)
B73: =OFFSET(LG!AE2,LG!B8-1,0,1,1) -> Impedance | C73: =(C67*C71+C69*(SIN(ACOS(C71)))) -> 0 | D73: =D69 -> Ω/km
B75: =B9 -> Type of Voltage Drop | C75: AC 3-Phase, 3-Wire
B76: Voltage Drop 3 ph. | C76: =SQRT(3)*C73*(C64/1000)*C62 -> 0
B77: Voltage drop 1 Ph. | C77: =2*C73*(C64/1000)*C62 -> 0
B79: =B39 -> System Voltage | C79: 400 | D79: =D41 -> V
B81: =B31 -> Part of System | C81: Main Feeder
B83: =B41 -> Voltage Drop | C83: =IF(C75="AC 3-Phase, 3-Wire",C76,C77) -> 0 | D83: =D79 -> V
B85: =B43 -> Voltage Drop | C85: =((C83*100)/C79) -> 0 | D85: =D43 -> %
B88: =B45 -> Result | C88: =OFFSET(LG!AY2,LG!B8-1,0,1,1) -> Can Use
A91: =A49 -> NOTE: NEC RECOMMENDATIONS
A92: =A50 -> Maximum combined voltage drop for both the feeder and branch circuit shouldn't
A93: =A51 -> exceed 5%, and the maximum on the feeder or branch circuit shouldn't exceed 3%
A94: =A52 -> 
A95: =A53 -> 

Sheet OUTPUT
A5: VOLTAGE DROP
A6: Cable Name | B6: Core x Size | E6: laying type | F6: P.F. | G6: Type of Voltage Drop | H6: Cable/Phase | I6: Length | J6: Current | K6: Voltage system | L6: Part of system | M6: Voltage drop | N6: % Voltage | O6: Installation | P6: Maximum capacity | Q6: Ambient | R6: Result | S6: Print out
T7: TRUE
T8: TRUE
T9: TRUE
T10: TRUE
P709: TRUE

Sheet Print
A5: VOLTAGE DROP
A6: Cable Name | B6: Core x Size | E6: laying type | F6: P.F. | G6: Type of Voltage Drop | H6: Cable/Phase | I6: Length | J6: Current | K6: Voltage system | L6: Part of system | M6: Voltage drop | N6: % Voltage | O6: Installation | P6: Maximum capacity | Q6: Ambient | R6: Result

Sheet D (hidden)
E1: 2 | K1: 3
B2: 60227 IEC 01 THW | C2: Touch 2 | E2: Spacing | G2: Trefoil | I2: Flat | K2: Spacing | M2: 60227 IEC 01 THW (f) | N2: Touch 2 | P2: Spacing | R2: Trefoil | T2: Touching 3 | V2: Spacing | X2: 60227 IEC 05 IV | Y2: Touch 2 | AA2: Spacing | AC2: Trefoil | AE2: Touching 3 | AG2: Spacing | AI2: 60227 IEC 06 IV (f) | AJ2: Touch 2 | AL2: Spacing | AN2: Trefoil | AP2: Touching 3 | AR2: Spacing | AT2: 60227 IEC 10 | AU2: 2C | AW2: 3C | AY2: 4C | BA2: 5C | BC2: 60227 IEC 52 VCT | BD2: 2C | BF2: 3C | BH2: 60227 IEC 53 VCT | BI2: 2C | BK2: 3C | BM2: 4C | BO2: 5C | BQ2: NYY | BR2: Touch 2 | BT2: Spacing | BV2: Trefoil | BX2: Touching | BZ2: Spacing | CB2: 2C | CD2: 3C | CF2: 4C | CH2: VCT | CI2: Touch 2 | CK2: Spacing | CM2: Trefoil | CO2: Touching | CQ2: Spacing | CS2: 2C | CU2: 3C | CW2: 4C | CY2: NYY-SWA | CZ2: 2C | DB2: 3C | DD2: 4C | DF2: FD-0.6/1KV-CV | DG2: Touch 2 | DI2: Spacing | DK2: Trefoil | DM2: Touching 3 | DO2: Spacing | DQ2: FD-0.6/1KV-CV | DR2: 2C | DT2: 3C | DV2: 4C | DX2: FD-0.6/1KV-CV-SWA | DY2: 2C | EA2: 3C | EC2: 4C | EE2: 1.8/3KV-CV | EF2: Trefoil | EH2: Touching 3 | EJ2: Spacing | EL2: 1.8/3KV-CV | EM2: 3C | EO2: 3.6/6KV-CV | EP2: Trefoil | ER2: Touching 3 | ET2: Spacing | EV2: 3.6/6KV-CV | EW2: 3C | EY2: 6/10KV-CV | EZ2: Trefoil | FB2: Touching 3 | FD2: Spacing | FF2: 6/10KV-CV | FG2: 3C | FI2: 12/20KV-CV | FJ2: Trefoil | FL2: Touching 3 | FN2: Spacing | FP2: 12/20KV-CV | FQ2: 3C | FS2: 8.7/15KV-CV | FT2: Trefoil | FV2: Touching 3 | FX2: Spacing | FZ2: 8.7/15KV-CV | GA2: 3C | GC2: 18/30KV-CV | GD2: Trefoil | GF2: Touching 3 | GH2: Spacing | GJ2: 18/30KV-CV | GK2: 3C | GM2: THWA | GN2: Touch 2 | GP2: Spacing | GR2: Trefoil | GT2: Touching 3 | GV2: Spacing | GX2: THWA-C | GY2: Touch 2 | HA2: Spacing | HC2: Trefoil | HE2: Touching 3 | HG2: Spacing | HI2: 69KV-CE | HJ2: Trefoil | HL2: Touching 3 | HN2: Spacing | HP2: 115KV-CE | HQ2: Trefoil | HS2: Touching 3 | HU2: Spacing | HW2: 15KV-CC | HX2: 1C | HZ2: 25KV-CC | IA2: 1C | IC2: 35KV-CC | ID2: 1C | IF2: FD-0.6/1KV-AL-CV | IG2: Touch 2 | II2: Spacing | IK2: Trefoil | IM2: Touching 3 | IO2: Spacing | IQ2: FD-0.6/1KV-AL-CV | IR2: 2C | IT2: 3C | IV2: 4C | IX2: CVV | IY2: 2C | JA2: 3C | JC2: 4-48C
C3: Rac | D3: XL | E3: Rac | F3: XL | G3: Rac | H3: XL | I3: Rac | J3: XL | K3: Rac | L3: XL | N3: Rac | O3: XL | P3: Rac | Q3: XL | R3: Rac | S3: XL | T3: Rac | U3: XL | V3: Rac | W3: XL | Y3: Rac | Z3: XL | AA3: Rac | AB3: XL | AC3: Rac | AD3: XL | AE3: Rac | AF3: XL | AG3: Rac | AH3: XL | AJ3: Rac | AK3: XL | AL3: Rac | AM3: XL | AN3: Rac | AO3: XL | AP3: Rac | AQ3: XL | AR3: Rac | AS3: XL | AU3: Rac | AV3: XL | AW3: Rac | AX3: XL | AY3: Rac | AZ3: XL | BA3: Rac | BB3: XL | BD3: Rac | BE3: XL | BF3: Rac | BG3: XL | BI3: Rac | BJ3: XL | BK3: Rac | BL3: XL | BM3: Rac | BN3: XL | BO3: Rac | BP3: XL | BR3: Rac | BS3: XL | BT3: Rac | BU3: XL | BV3: Rac | BW3: XL | BX3: Rac | BY3: XL | BZ3: Rac | CA3: XL | CB3: Rac | CC3: XL | CD3: Rac | CE3: XL | CF3: Rac | CG3: XL | CI3: Rac | CJ3: XL | CK3: Rac | CL3: XL | CM3: Rac | CN3: XL | CO3: Rac | CP3: XL | CQ3: Rac | CR3: XL | CS3: Rac | CT3: XL | CU3: Rac | CV3: XL | CW3: Rac | CX3: XL | CZ3: Rac | DA3: XL | DB3: Rac | DC3: XL | DD3: Rac | DE3: XL | DG3: Rac | DH3: XL | DI3: Rac | DJ3: XL | DK3: Rac | DL3: XL | DM3: Rac | DN3: XL | DO3: Rac | DP3: XL | DR3: Rac | DS3: XL | DT3: Rac | DU3: XL | DV3: Rac | DW3: XL | DY3: Rac | DZ3: XL | EA3: Rac | EB3: XL | EC3: Rac | ED3: XL | EF3: Rac | EG3: XL | EH3: Rac | EI3: XL | EJ3: Rac | EK3: XL | EM3: Rac | EN3: XL | EP3: Rac | EQ3: XL | ER3: Rac | ES3: XL | ET3: Rac | EU3: XL | EW3: Rac | EX3: XL | EZ3: Rac | FA3: XL | FB3: Rac | FC3: XL | FD3: Rac | FE3: XL | FG3: Rac | FH3: XL | FJ3: Rac | FK3: XL | FL3: Rac | FM3: XL | FN3: Rac | FO3: XL | FQ3: Rac | FR3: XL | FT3: Rac | FU3: XL | FV3: Rac | FW3: XL | FX3: Rac | FY3: XL | GA3: Rac | GB3: XL | GD3: Rac | GE3: XL | GF3: Rac | GG3: XL | GH3: Rac | GI3: XL | GK3: Rac | GL3: XL | GN3: Rac | GO3: XL | GP3: Rac | GQ3: XL | GR3: Rac | GS3: XL | GT3: Rac | GU3: XL | GV3: Rac | GW3: XL | GY3: Rac | GZ3: XL | HA3: Rac | HB3: XL | HC3: Rac | HD3: XL | HE3: Rac | HF3: XL | HG3: Rac | HH3: XL | HJ3: Rac | HK3: XL | HL3: Rac | HM3: XL | HN3: Rac | HO3: XL | HQ3: Rac | HR3: XL | HS3: Rac | HT3: XL | HU3: Rac | HV3: XL | HX3: Rac | HY3: XL | IA3: Rac | IB3: XL | ID3: Rac | IE3: XL | IG3: Rac | IH3: XL | II3: Rac | IJ3: XL | IK3: Rac | IL3: XL | IM3: Rac | IN3: XL | IO3: Rac | IP3: XL | IR3: Rac | IS3: XL | IT3: Rac | IU3: XL | IV3: Rac | IW3: XL | IY3: Rac | IZ3: XL | JA3: Rac | JB3: XL | JC3: Rac | JD3: XL
A4: 1 | B4: 0.5 | M4: 0.5 | X4: 0.5 | Y4: 43.07400239 | Z4: 0.1218042742 | AA4: 43.07400203 | AB4: 0.165355996 | AC4: 43.07400298 | AD4: 0.1240619489 | AE4: 43.07400258 | AF4: 0.1385831266 | AG4: 43.07400208 | AH4: 0.1821348484 | AI4: 0.5 | AJ4: 46.66350228 | AK4: 0.1191863209 | AL4: 46.66350189 | AM4: 0.1627380427 | AN4: 46.66350298 | AO4: 0.1174898609 | AP4: 46.66350253 | AQ4: 0.1320110386 | AR4: 46.66350195 | AS4: 0.1755627604 | AT4: 0.5 | BC4: 0.5 | BD4: 46.66350272 | BE4: 0.1137192349 | BF4: 46.66350322 | BG4: 0.1137192349 | BH4: 0.5 | BQ4: 0.5 | CH4: 0.5 | CY4: 0.5 | DF4: 0.5 | DQ4: 0.5 | DX4: 0.5 | EE4: 0.5 | EL4: 0.5 | EO4: 0.5 | EV4: 0.5 | EY4: 0.5 | FF4: 0.5 | FI4: 0.5 | FP4: 0.5 | FS4: 0.5 | FZ4: 0.5 | GC4: 0.5 | GJ4: 0.5 | GM4: 0.5 | GX4: 0.5 | HI4: 0.5 | HP4: 0.5 | HW4: 0.5 | HZ4: 0.5 | IC4: 0.5 | IF4: 0.5 | IQ4: 0.5 | IX4: 0.5 | IY4: 46.66350228 | IZ4: 0.1191863209 | JA4: 46.66350254 | JB4: 0.07100270266 | JC4: 46.66350254 | JD4: 0.07100270266
A5: 2 | B5: 0.75 | M5: 0.75 | X5: 0.75 | Y5: 29.31425371 | Z5: 0.1142670081 | AA5: 29.31425303 | AB5: 0.15781873 | AC5: 29.31425496 | AD5: 0.1142670081 | AE5: 29.31425416 | AF5: 0.1287881858 | AG5: 29.31425314 | AH5: 0.1723399076 | AI5: 0.75 | AJ5: 31.1090036 | AK5: 0.1113943839 | AL5: 31.10900288 | AM5: 0.1549461057 | AN5: 31.10900494 | AO5: 0.110514738 | AP5: 31.10900408 | AQ5: 0.1250359157 | AR5: 31.109003 | AS5: 0.1685876375 | AT5: 0.75 | BC5: 0.75 | BD5: 31.1090044 | BE5: 0.1063651523 | BF5: 31.10900534 | BG5: 0.1063651523 | BH5: 0.75 | BI5: 31.1090044 | BJ5: 0.1063651523 | BK5: 31.10900534 | BL5: 0.1063651523 | BM5: 31.10900534 | BN5: 0.1063651523 | BO5: 31.10900534 | BP5: 0.1063651523 | BQ5: 0.75 | CH5: 0.75 | CY5: 0.75 | DF5: 0.75 | DQ5: 0.75 | DX5: 0.75 | EE5: 0.75 | EL5: 0.75 | EO5: 0.75 | EV5: 0.75 | EY5: 0.75 | FF5: 0.75 | FI5: 0.75 | FP5: 0.75 | FS5: 0.75 | FZ5: 0.75 | GC5: 0.75 | GJ5: 0.75 | GM5: 0.75 | GX5: 0.75 | HI5: 0.75 | HP5: 0.75 | HW5: 0.75 | HZ5: 0.75 | IC5: 0.75 | IF5: 0.75 | IQ5: 0.75 | IX5: 0.75 | IY5: 31.1090036 | IZ5: 0.1113943839 | JA5: 31.10900411 | JB5: 0.1191863209 | JC5: 31.10900411 | JD5: 0.1191863209
A6: 3 | B6: 1 | M6: 1 | X6: 1 | Y6: 21.65665518 | Z6: 0.110514738 | AA6: 21.65665414 | AB6: 0.1540664598 | AC6: 21.65665709 | AD6: 0.110514738 | AE6: 21.65665586 | AF6: 0.1250359157 | AG6: 21.65665431 | AH6: 0.1685876375 | AI6: 1 | AJ6: 23.33175504 | AK6: 0.1060623476 | AL6: 23.3317539 | AM6: 0.1496140694 | AN6: 23.33175716 | AO6: 0.1051827016 | AP6: 23.3317558 | AQ6: 0.1197038793 | AR6: 23.33175409 | AS6: 0.1632556011 | AT6: 1 | BC6: 1 | BH6: 1 | BI6: 23.33175608 | BJ6: 0.1036910528 | BK6: 23.33175745 | BL6: 0.1036910528 | BM6: 23.33175745 | BN6: 0.1036910528 | BO6: 23.33175745 | BP6: 0.1036910528 | BQ6: 1 | BR6: 21.65665383 | BS6: 0.2317759272 | BT6: 21.65665391 | BU6: 0.1882242054 | BV6: 21.65665407 | BW6: 0.1882242054 | BX6: 21.65665397 | BY6: 0.2027453831 | BZ6: 21.65665384 | CA6: 0.2462971049 | CH6: 1 | CY6: 1 | DF6: 1 | DQ6: 1 | DX6: 1 | EE6: 1 | EL6: 1 | EO6: 1 | EV6: 1 | EY6: 1 | FF6: 1 | FI6: 1 | FP6: 1 | FS6: 1 | FZ6: 1 | GC6: 1 | GJ6: 1 | GM6: 1 | GX6: 1 | HI6: 1 | HP6: 1 | HW6: 1 | HZ6: 1 | IC6: 1 | IF6: 1 | IQ6: 1 | IX6: 1 | IY6: 23.33175504 | IZ6: 0.1060623476 | JA6: 23.33175585 | JB6: 0.1113943839 | JC6: 23.33175585 | JD6: 0.1113943839
A7: 4 | B7: 1.5 | C7: 14.47765814 | D7: 0.1050162595 | E7: 14.4776563 | F7: 0.1485679813 | G7: 14.47766156 | H7: 0.1050162595 | I7: 14.47765936 | J7: 0.1195374372 | K7: 14.47765659 | L7: 0.163089159 | M7: 1.5 | N7: 15.91345757 | O7: 0.1036910528 | P7: 15.91345577 | Q7: 0.1472427746 | R7: 15.91346092 | S7: 0.1036910528 | T7: 15.91345877 | U7: 0.1182122305 | V7: 15.91345606 | W7: 0.1617639523 | X7: 1.5 | AI7: 1.5 | AT7: 1.5 | AU7: 14.4766 | AV7: 0.10592 | AW7: 14.4766 | AX7: 0.10592 | AY7: 14.47766 | AZ7: 0.11862 | BA7: 14.47766 | BB7: 0.11862 | BC7: 1.5 | BH7: 1.5 | BI7: 15.91345916 | BJ7: 0.1016962233 | BK7: 15.9134613 | BL7: 0.1016962233 | BM7: 15.9134613 | BN7: 0.1016962233 | BO7: 15.9134613 | BP7: 0.1016962233 | BQ7: 1.5 | BR7: 14.47765574 | BS7: 0.2206299956 | BT7: 14.47765593 | BU7: 0.1770782738 | BV7: 14.47765627 | BW7: 0.1770782738 | BX7: 14.47765605 | BY7: 0.1915994515 | BZ7: 14.47765577 | CA7: 0.2351511733 | CH7: 1.5 | CY7: 1.5 | DF7: 1.5 | DG7: 15.42871596 | DH7: 0.1502286232 | DI7: 15.42871549 | DJ7: 0.193780345 | DK7: 15.4287 | DL7: 0.1427 | DM7: 15.4287 | DN7: 0.1572 | DO7: 15.4287 | DP7: 0.2008 | DQ7: 1.5 | DR7: 15.3997 | DS7: 0.1028 | DT7: 15.4 | DU7: 0.1028 | DV7: 15.3996 | DW7: 0.1175 | DX7: 1.5 | DY7: 15.3997 | DZ7: 0.1028 | EA7: 15.3997 | EB7: 0.1028 | EC7: 15.3996 | ED7: 0.1175 | EE7: 1.5 | EL7: 1.5 | EO7: 1.5 | EV7: 1.5 | EY7: 1.5 | FF7: 1.5 | FI7: 1.5 | FP7: 1.5 | FS7: 1.5 | FZ7: 1.5 | GC7: 1.5 | GJ7: 1.5 | GM7: 1.5 | GX7: 1.5 | HI7: 1.5 | HP7: 1.5 | HW7: 1.5 | HZ7: 1.5 | IC7: 1.5 | IF7: 1.5 | IQ7: 1.5 | IX7: 1.5 | IY7: 15.9134579 | IZ7: 0.09963597795 | JA7: 15.91345936 | JB7: 0.1060623476 | JC7: 15.91345936 | JD7: 0.1060623476
A8: 5 | B8: 2.5 | C8: 8.86607883 | D8: 0.1010413785 | E8: 8.866075415 | F8: 0.1445931003 | G8: 8.866085202 | H8: 0.1010413785 | I8: 8.866081111 | J8: 0.1155625562 | K8: 8.86607597 | L8: 0.159114278 | M8: 2.5 | N8: 9.548083021 | O8: 0.1006254764 | P8: 9.548079716 | Q8: 0.1441771982 | R8: 9.548089194 | S8: 0.1006254764 | T8: 9.548085231 | U8: 0.1151466541 | V8: 9.548080253 | W8: 0.1586983759 | X8: 2.5 | AI8: 2.5 | AT8: 2.5 | AU8: 8.86608 | AV8: 0.10174 | AW8: 8.86608 | AX8: 0.10174 | AY8: 8.86608 | AZ8: 0.11444 | BA8: 8.86608 | BB8: 0.11444 | BC8: 2.5 | BH8: 2.5 | BI8: 9.548086243 | BJ8: 0.09696280069 | BK8: 9.548090362 | BL8: 0.09696280069 | BM8: 9.548090362 | BN8: 0.09696280069 | BO8: 9.548090362 | BP8: 0.09696280069 | BQ8: 2.5 | BR8: 8.866074431 | BS8: 0.2073696627 | BT8: 8.866074894 | BU8: 0.1638179409 | BV8: 8.866075734 | BW8: 0.1638179409 | BX8: 8.866075194 | BY8: 0.1783391186 | BZ8: 8.866074506 | CA8: 0.2218908404 | CH8: 2.5 | CY8: 2.5 | DF8: 2.5 | DG8: 9.448501116 | DH8: 0.1402994483 | DI8: 9.448500058 | DJ8: 0.1838511701 | DK8: 9.4485 | DL8: 0.132 | DM8: 9.4485 | DN8: 0.1466 | DO8: 9.4485 | DP8: 0.1901 | DQ8: 2.5 | DR8: 9.4495 | DS8: 0.0941 | DT8: 9.45 | DU8: 0.0941 | DV8: 9.4504 | DW8: 0.1088 | DX8: 2.5 | DY8: 9.4495 | DZ8: 0.0941 | EA8: 9.4495 | EB8: 0.0941 | EC8: 9.4504 | ED8: 0.1088 | EE8: 2.5 | EL8: 2.5 | EO8: 2.5 | EV8: 2.5 | EY8: 2.5 | FF8: 2.5 | FI8: 2.5 | FP8: 2.5 | FS8: 2.5 | FZ8: 2.5 | GC8: 2.5 | GJ8: 2.5 | GM8: 2.5 | GX8: 2.5 | HI8: 2.5 | HP8: 2.5 | HW8: 2.5 | HZ8: 2.5 | IC8: 2.5 | IF8: 2.5 | IQ8: 2.5 | IX8: 2.5 | IY8: 9.548083764 | IZ8: 0.09572700828 | JA8: 9.548086554 | JB8: 0.09963597795 | JC8: 9.548086554 | JD8: 0.09963597795
A9: 6 | B9: 4 | C9: 5.515888824 | D9: 0.09485484276 | E9: 5.515882139 | F9: 0.1384065646 | G9: 5.51590138 | H9: 0.09485484276 | I9: 5.515893322 | J9: 0.1093760205 | K9: 5.515883228 | L9: 0.1529277423 | M9: 4 | N9: 5.922697491 | O9: 0.09416692333 | P9: 5.922691038 | Q9: 0.1377186451 | R9: 5.922709629 | S9: 0.09416692333 | T9: 5.92270184 | U9: 0.108688101 | V9: 5.922692089 | W9: 0.1522398228 | X9: 4 | AI9: 4 | AT9: 4 | AU9: 5.51589 | AV9: 0.09541 | AW9: 5.51589 | AX9: 0.09541 | AY9: 5.51589 | AZ9: 0.10811 | BA9: 5.51589 | BB9: 0.10811 | BC9: 4 | BH9: 4 | BQ9: 4 | BR9: 5.515880268 | BS9: 0.1959033657 | BT9: 5.51588134 | BU9: 0.1523516439 | BV9: 5.515883289 | BW9: 0.1523516439 | BX9: 5.515882036 | BY9: 0.1668728216 | BZ9: 5.515880441 | CA9: 0.2104245434 | CH9: 4 | CI9: 5.922689603 | CJ9: 0.1722790758 | CK9: 5.92269175 | CL9: 0.1287273539 | CM9: 5.922693237 | CN9: 0.1287273539 | CO9: 5.922691619 | CP9: 0.1432485316 | CQ9: 5.922689567 | CR9: 0.1868002535 | CS9: 5.92 | CT9: 0.09373 | CU9: 5.92 | CV9: 0.09373 | CW9: 5.92 | CX9: 0.10837 | CY9: 4 | DF9: 4 | DG9: 5.87822816 | DH9: 0.1298060952 | DI9: 5.878225784 | DJ9: 0.173357817 | DK9: 5.8782 | DL9: 0.1218 | DM9: 5.8782 | DN9: 0.1363 | DO9: 5.9782 | DP9: 0.1799 | DQ9: 4 | DR9: 5.8803 | DS9: 0.0876 | DT9: 5.88 | DU9: 0.0876 | DV9: 5.8801 | DW9: 0.1022 | DX9: 4 | DY9: 5.8803 | DZ9: 0.0876 | EA9: 5.8803 | EB9: 0.0876 | EC9: 5.8801 | ED9: 0.1022 | EE9: 4 | EL9: 4 | EO9: 4 | EV9: 4 | EY9: 4 | FF9: 4 | FI9: 4 | FP9: 4 | FS9: 4 | FZ9: 4 | GC9: 4 | GJ9: 4 | GM9: 4 | GX9: 4 | HI9: 4 | HP9: 4 | HW9: 4 | HZ9: 4 | IC9: 4 | IF9: 4 | IQ9: 4 | IX9: 4 | IY9: 5.922697491 | IZ9: 0.0946067463 | JA9: 5.922702162 | JB9: 0.09572700828 | JC9: 5.922702162 | JD9: 0.09572700828
A10: 7 | B10: 6 | C10: 3.685259654 | D10: 0.09108424593 | E10: 3.685246652 | F10: 0.1346359677 | G10: 3.685284359 | H10: 0.09108424593 | I10: 3.685268514 | J10: 0.1056054236 | K10: 3.685248776 | L10: 0.1491571454 | M10: 6 | N10: 3.94848674 | O10: 0.08759253985 | P10: 3.948474808 | Q10: 0.1311442617 | R10: 3.948509394 | S10: 0.08759253985 | T10: 3.948494864 | U10: 0.1021137175 | V10: 3.948476757 | W10: 0.1456654393 | X10: 6 | AI10: 6 | AT10: 6 | AU10: 3.68527 | AV10: 0.08762 | AW10: 3.68527 | AX10: 0.08762 | AY10: 3.68526 | AZ10: 0.10032 | BA10: 3.68526 | BB10: 0.10032 | BC10: 6 | BH10: 6 | BQ10: 6 | BR10: 3.685243182 | BS10: 0.1852916055 | BT10: 3.685245775 | BU10: 0.1417398837 | BV10: 3.685250506 | BW10: 0.1417398837 | BX10: 3.685247464 | BY10: 0.1562610614 | BZ10: 3.685243601 | CA10: 0.1998127832 | CH10: 6 | CI10: 3.948472341 | CJ10: 0.1615583583 | CK10: 3.948476873 | CL10: 0.1180066365 | CM10: 3.948485217 | CN10: 0.1180066365 | CO10: 3.948479855 | CP10: 0.1325278142 | CQ10: 3.948473075 | CR10: 0.176079536 | CS10: 3.95 | CT10: 0.08715 | CU10: 3.95 | CV10: 0.08715 | CW10: 3.95 | CX10: 0.10182 | CY10: 6 | DF10: 6 | DG10: 3.927335005 | DH10: 0.1220934079 | DI10: 3.927330458 | DJ10: 0.1656451297 | DK10: 3.9273 | DL10: 0.1144 | DM10: 3.9273 | DN10: 0.1289 | DO10: 3.9273 | DP10: 0.1724 | DQ10: 6 | DR10: 3.9301 | DS10: 0.0837 | DT10: 3.93 | DU10: 0.0837 | DV10: 3.9298 | DW10: 0.0983 | DX10: 6 | DY10: 3.9301 | DZ10: 0.0837 | EA10: 3.9301 | EB10: 0.0837 | EC10: 3.9298 | ED10: 0.0983 | EE10: 6 | EL10: 6 | EO10: 6 | EV10: 6 | EY10: 6 | FF10: 6 | FI10: 6 | FP10: 6 | FS10: 6 | FZ10: 6 | GC10: 6 | GJ10: 6 | GM10: 6 | GX10: 6 | HI10: 6 | HP10: 6 | HW10: 6 | HZ10: 6 | IC10: 6 | IF10: 6 | IQ10: 6 | IX10: 6 | IY10: 3.94848674 | IZ10: 0.08803236282 | JA10: 3.948495511 | JB10: 0.0946067463 | JC10: 3.948495511 | JD10: 0.0946067463
A11: 8 | B11: 10 | C11: 2.189663049 | D11: 0.08970563346 | E11: 2.189640184 | F11: 0.1332573553 | G11: 2.189706586 | H11: 0.08970563346 | I11: 2.189678666 | J11: 0.1042268112 | K11: 2.189643921 | L11: 0.147778533 | M11: 10 | N11: 2.285381555 | O11: 0.08425836252 | P11: 2.28535863 | Q11: 0.1278100843 | R11: 2.285425311 | S11: 0.08425836252 | T11: 2.285397255 | U11: 0.09877954022 | V11: 2.28536238 | W11: 0.142331262 | X11: 10 | AI11: 10 | AT11: 10 | AU11: 2.18968 | AV11: 0.08602 | AW11: 2.18968 | AX11: 0.08602 | AY11: 2.18966 | AZ11: 0.09872 | BA11: 2.18966 | BB11: 0.09872 | BC11: 10 | BH11: 10 | BQ11: 10 | BR11: 2.18963465 | BS11: 0.1739290196 | BT11: 2.189640915 | BU11: 0.1303772978 | BV11: 2.189652399 | BW11: 0.1303772978 | BX11: 2.189645018 | BY11: 0.1448984755 | BZ11: 2.189635663 | CA11: 0.1884501973 | CH11: 10 | CI11: 2.285353806 | CJ11: 0.159162624 | CK11: 2.285362256 | CL11: 0.1156109022 | CM11: 2.285377838 | CN11: 0.1156109022 | CO11: 2.285367826 | CP11: 0.1301320799 | CQ11: 2.285355174 | CR11: 0.1736838017 | CS11: 2.29 | CT11: 0.08474 | CU11: 2.29 | CV11: 0.08475 | CW11: 2.29 | CX11: 0.09935 | CY11: 10 | DF11: 10 | DG11: 2.333480939 | DH11: 0.115236513 | DI11: 2.33347142 | DJ11: 0.1587882348 | DK11: 2.3335 | DL11: 0.1085 | DM11: 2.3335 | DN11: 0.123 | DO11: 2.3335 | DP11: 0.1666 | DQ11: 10 | DR11: 2.3296 | DS11: 0.0806 | DT11: 2.33 | DU11: 0.0806 | DV11: 2.3301 | DW11: 0.0953 | DX11: 10 | DY11: 2.3296 | DZ11: 0.0806 | EA11: 2.3296 | EB11: 0.0806 | EC11: 2.3301 | ED11: 0.0953 | EE11: 10 | EF11: 2.333481827 | EG11: 0.1402119822 | EH11: 2.333476781 | EI11: 0.1547331599 | EJ11: 2.333470374 | EK11: 0.1982848817 | EL11: 10 | EM11: 2.33 | EN11: 0.10692 | EO11: 10 | EP11: 2.3335 | EQ11: 0.142 | ER11: 2.3335 | ES11: 0.1565 | ET11: 2.3335 | EU11: 0.2 | EV11: 10 | EW11: 2.3335 | EX11: 0.1242 | EY11: 10 | FF11: 10 | FI11: 10 | FP11: 10 | FS11: 10 | FZ11: 10 | GC11: 10 | GJ11: 10 | GM11: 10 | GN11: 3.700646053 | GO11: 0.1384093054 | GP11: 3.700657535 | GQ11: 0.09485758361 | GR11: 3.700679231 | GS11: 0.09485758361 | GT11: 3.700665312 | GU11: 0.1093787613 | GV11: 3.700647926 | GW11: 0.1529304831 | GX11: 10 | GY11: 3.700645821 | GZ11: 0.1403739201 | HA11: 3.700656607 | HB11: 0.09682219828 | HC11: 3.700676933 | HD11: 0.09682219828 | HE11: 3.700663891 | HF11: 0.111343376 | HG11: 3.700647579 | HH11: 0.1548950978 | HI11: 10 | HP11: 10 | HW11: 10 | HZ11: 10 | IC11: 10 | IF11: 10 | IG11: 3.948896232 | IH11: 0.1156413769 | II11: 3.948890679 | IJ11: 0.1591930987 | IK11: 3.9489 | IL11: 0.1156 | IM11: 3.9489 | IN11: 0.1302 | IO11: 3.9489 | IP11: 0.1737 | IQ11: 10 | IR11: 3.948907173 | IS11: 0.08713662541 | IT11: 3.948917411 | IU11: 0.08713662541 | IV11: 3.948917411 | IW11: 0.08713662541 | IX11: 10
A12: 9 | B12: 16 | C12: 1.376089985 | D12: 0.08564137485 | E12: 1.376048575 | F12: 0.1291930967 | G12: 1.37616938 | H12: 0.08564137485 | I12: 1.376118482 | J12: 0.1001625525 | K12: 1.376055355 | L12: 0.1437142743 | M12: 16 | N12: 1.447874788 | O12: 0.08131970752 | P12: 1.447835053 | Q12: 0.1248714293 | R12: 1.447951016 | S12: 0.08131970752 | T12: 1.44790215 | U12: 0.09584088522 | V12: 1.44784156 | W12: 0.139392607 | X12: 16 | AI12: 16 | AT12: 16 | AU12: 1.37612 | AV12: 0.08093 | AW12: 1.37612 | AX12: 0.08093 | AY12: 1.37609 | AZ12: 0.09363 | BA12: 1.37609 | BB12: 0.09363 | BC12: 16 | BH12: 16 | BQ12: 16 | BR12: 1.376039244 | BS12: 0.1645978293 | BT12: 1.376052661 | BU12: 0.1210461075 | BV12: 1.376077374 | BW12: 0.1210461075 | BX12: 1.376061493 | BY12: 0.1355672851 | BZ12: 1.376041415 | CA12: 0.179119007 | CH12: 16 | CI12: 1.447827361 | CJ12: 0.1521764683 | CK12: 1.447844023 | CL12: 0.1086247465 | CM12: 1.447874896 | CN12: 0.1086247465 | CO12: 1.447855064 | CP12: 0.1231459242 | CQ12: 1.447830063 | CR12: 0.166697646 | CS12: 1.452 | CT12: 0.08088 | CU12: 1.45 | CV12: 0.08088 | CW12: 1.45 | CX12: 0.09556 | CY12: 16 | DF12: 16 | DG12: 1.466447112 | DH12: 0.1072724684 | DI12: 1.466427593 | DJ12: 0.1508241903 | DK12: 1.4665 | DL12: 0.1008 | DM12: 1.4665 | DN12: 0.1153 | DO12: 1.4664 | DP12: 0.1589 | DQ12: 16 | DR12: 1.47 | DS12: 0.0767 | DT12: 1.47 | DU12: 0.0767 | DV12: 1.4702 | DW12: 0.0913 | DX12: 16 | DY12: 1.47 | DZ12: 0.0767 | EA12: 1.47 | EB12: 0.0767 | EC12: 1.4702 | ED12: 0.0913 | EE12: 16 | EF12: 1.46645105 | EG12: 0.1300163424 | EH12: 1.4664399 | EI12: 0.1445375201 | EJ12: 1.466425771 | EK12: 0.1880892419 | EL12: 16 | EM12: 1.47 | EN12: 0.09938 | EO12: 16 | EP12: 1.4664 | EQ12: 0.1326 | ER12: 1.4664 | ES12: 0.1471 | ET12: 1.4664 | EU12: 0.1907 | EV12: 16 | EW12: 1.4664 | EX12: 0.1149 | EY12: 16 | EZ12: 1.466436639 | FA12: 0.1504890862 | FB12: 1.466430866 | FC12: 0.1650102639 | FD12: 1.466423526 | FE12: 0.2085619857 | FF12: 16 | FG12: 1.47037 | FH12: 0.12881 | FI12: 16 | FP12: 16 | FS12: 16 | FZ12: 16 | GC12: 16 | GJ12: 16 | GM12: 16 | GN12: 2.294908152 | GO12: 0.1330801598 | GP12: 2.294930092 | GQ12: 0.08952843802 | GR12: 2.29497188 | GS12: 0.08952843802 | GT12: 2.294945082 | GU12: 0.1040496157 | GV12: 2.294911739 | GW12: 0.1476013375 | GX12: 16 | GY12: 2.294907895 | GZ12: 0.1342052445 | HA12: 2.294929063 | HB12: 0.09065352267 | HC12: 2.294969307 | HD12: 0.09065352267 | HE12: 2.294943497 | HF12: 0.1051747004 | HG12: 2.294911354 | HH12: 0.1487264222 | HI12: 16 | HP12: 16 | HW12: 16 | HZ12: 16 | IC12: 16 | IF12: 16 | IG12: 2.448860104 | IH12: 0.1074062957 | II12: 2.448848465 | IJ12: 0.1509580175 | IK12: 2.4489 | IL12: 0.1074 | IM12: 2.4489 | IN12: 0.1219 | IO12: 2.4488 | IP12: 0.1655 | IQ12: 16 | IR12: 2.448879132 | IS12: 0.08226349783 | IT12: 2.448898706 | IU12: 0.08226349783 | IV12: 2.448898706 | IW12: 0.08226349783 | IX12: 16
A13: 10 | B13: 25 | C13: 0.8700354954 | D13: 0.08632672792 | E13: 0.8699714068 | F13: 0.1298784497 | G13: 0.8701581642 | H13: 0.08632672792 | I13: 0.8700795036 | J13: 0.1008479056 | K13: 0.8699818869 | L13: 0.1443996274 | M13: 25 | N13: 0.9334426144 | O13: 0.08044920519 | P13: 0.9333792442 | Q13: 0.124000927 | R13: 0.9335643409 | S13: 0.08044920519 | T13: 0.9334863038 | U13: 0.09497038289 | V13: 0.9333896195 | W13: 0.1385221047 | X13: 25 | AI13: 25 | AT13: 25 | AU13: 0.87009 | AV13: 0.08048 | AW13: 0.87009 | AX13: 0.08048 | AY13: 0.87004 | AZ13: 0.09318 | BA13: 0.87004 | BB13: 0.09318 | BC13: 25 | BH13: 25 | BQ13: 25 | BR13: 0.8699591388 | BS13: 0.1567058485 | BT13: 0.8699864234 | BU13: 0.1131541267 | BV13: 0.8700369363 | BW13: 0.1131541267 | BX13: 0.8700044795 | BY13: 0.1276753044 | BZ13: 0.869963557 | CA13: 0.1712270262 | CH13: 25 | CI13: 0.9333670084 | CJ13: 0.1511985794 | CK13: 0.9333936711 | CL13: 0.1076468576 | CM13: 0.9334430993 | CN13: 0.1076468576 | CO13: 0.9334113444 | CP13: 0.1221680353 | CQ13: 0.9333713301 | CR13: 0.1657197571 | CS13: 0.9369 | CT13: 0.08001 | CU13: 0.9335 | CV13: 0.08001 | CW13: 0.9335 | CX13: 0.09469 | CY13: 25 | DF13: 25 | DG13: 0.9271329385 | DH13: 0.1034300227 | DI13: 0.9270980473 | DJ13: 0.1469817445 | DK13: 0.9272 | DL13: 0.0967 | DM13: 0.9272 | DN13: 0.1112 | DO13: 0.9271 | DP13: 0.1547 | DQ13: 25 | DR13: 0.9272 | DS13: 0.0768 | DT13: 0.9272 | DU13: 0.0768 | DV13: 0.9272 | DW13: 0.0915 | DX13: 25 | DY13: 0.9272 | DZ13: 0.0768 | EA13: 0.9272 | EB13: 0.0768 | EC13: 0.9272 | ED13: 0.0915 | EE13: 25 | EF13: 0.9271495703 | EG13: 0.1210796401 | EH13: 0.927126028 | EI13: 0.1356008178 | EJ13: 0.927096265 | EK13: 0.1791525396 | EL13: 25 | EM13: 0.9272 | EN13: 0.093 | EO13: 25 | EP13: 0.9271 | EQ13: 0.1258 | ER13: 0.9271 | ES13: 0.1403 | ET13: 0.0971 | EU13: 0.1838 | EV13: 25 | EW13: 0.9271 | EX13: 0.1103 | EY13: 25 | EZ13: 0.9271200158 | FA13: 0.1407379878 | FB13: 0.9271075317 | FC13: 0.1552591655 | FD13: 0.9270916791 | FE13: 0.1988108874 | FF13: 25 | FG13: 0.92709 | FH13: 0.11969 | FI13: 25 | FP13: 25 | FS13: 25 | FT13: 0.9271134377 | FU13: 0.1475452627 | FV13: 0.9271034052 | FW13: 0.1620664404 | FX13: 0.9270906528 | FY13: 0.2056181622 | FZ13: 25 | GA13: 0.9271274526 | GB13: 0.1344988966 | GC13: 25 | GJ13: 25 | GM13: 25 | GN13: 1.441869421 | GO13: 0.1311476944 | GP13: 1.441906557 | GQ13: 0.0875959726 | GR13: 1.441977509 | GS13: 0.0875959726 | GT13: 1.441932015 | GU13: 0.1021171503 | GV13: 1.441875496 | GW13: 0.1456688721 | GX13: 25 | GY13: 1.44186894 | GZ13: 0.1323926038 | HA13: 1.441904633 | HB13: 0.08884088195 | HC13: 1.441972683 | HD13: 0.08884088195 | HE13: 1.441929044 | HF13: 0.1033620596 | HG13: 1.441874775 | HH13: 0.1469137815 | HI13: 25 | HP13: 25 | HW13: 25 | HZ13: 25 | IC13: 25 | IF13: 25 | IG13: 1.538601488 | IH13: 0.1034300227 | II13: 1.538580465 | IJ13: 0.1469817445 | IK13: 1.5386 | IL13: 0.1034 | IM13: 1.5386 | IN13: 0.118 | IO13: 1.5386 | IP13: 0.1615 | IQ13: 25 | IR13: 1.538627422 | IS13: 0.08285236674 | IT13: 1.538657934 | IU13: 0.08285236674 | IV13: 1.538657934 | IW13: 0.08285236674 | IX13: 25
A14: 11 | B14: 35 | C14: 0.6272288833 | D14: 0.08025181713 | E14: 0.6271300909 | F14: 0.1238035389 | G14: 0.627419048 | H14: 0.08025181713 | I14: 0.6272971164 | J14: 0.09477299483 | K14: 0.6271462538 | L14: 0.1383247166 | M14: 35 | N14: 0.6631161599 | O14: 0.07739545594 | P14: 0.6630178348 | Q14: 0.1209471777 | R14: 0.6633060762 | S14: 0.07739545594 | T14: 0.6631843354 | U14: 0.09191663363 | V14: 0.6630339418 | W14: 0.1354683554 | X14: 35 | AI14: 35 | AT14: 35 | AU14: 0.62731 | AV14: 0.07734 | AW14: 0.62731 | AX14: 0.07734 | AY14: 0.62724 | AZ14: 0.09004 | BA14: 0.62724 | BB14: 0.09004 | BC14: 35 | BH14: 35 | BQ14: 35 | BR14: 0.6271123756 | BS14: 0.1480595887 | BT14: 0.6271580221 | BU14: 0.1045078669 | BV14: 0.6272429059 | BW14: 0.1045078669 | BX14: 0.6271883644 | BY14: 0.1190290446 | BZ14: 0.6271197668 | CA14: 0.1625807664 | CH14: 35 | CI14: 0.663000171 | CJ14: 0.1452703915 | CK14: 0.6630455045 | CL14: 0.1017186697 | CM14: 0.6631299514 | CN14: 0.1017186697 | CO14: 0.6630757026 | CP14: 0.1162398473 | CQ14: 0.6630075221 | CR14: 0.1597915692 | CS14: 0.6677 | CT14: 0.07696 | CU14: 0.6632 | CV14: 0.07696 | CW14: 0.6631 | CX14: 0.0913 | CY14: 35 | DF14: 35 | DG14: 0.6683496137 | DH14: 0.09907587173 | DI14: 0.6682940116 | DJ14: 0.1426275935 | DK14: 0.6684 | DL14: 0.0925 | DM14: 0.6684 | DN14: 0.107 | DO14: 0.6683 | DP14: 0.1506 | DQ14: 35 | DR14: 0.6232 | DS14: 0.0748 | DT14: 0.6685 | DU14: 0.0748 | DV14: 0.6684 | DW14: 0.0895 | DX14: 35 | DY14: 0.6685 | DZ14: 0.0747 | EA14: 0.6685 | EB14: 0.0748 | EC14: 0.6684 | ED14: 0.0895 | EE14: 35 | EF14: 0.6683822823 | EG14: 0.1149236208 | EH14: 0.6683424065 | EI14: 0.1294447985 | EJ14: 0.6682920967 | EK14: 0.1729965203 | EL14: 35 | EM14: 0.6684 | EN14: 0.0892 | EO14: 35 | EP14: 0.6683 | EQ14: 0.1194 | ER14: 0.6683 | ES14: 0.1339 | ET14: 0.6683 | EU14: 0.1775 | EV14: 35 | EW14: 0.6684 | EX14: 0.105 | EY14: 35 | EZ14: 0.6683336861 | FA14: 0.1337945691 | FB14: 0.668312037 | FC14: 0.1483157468 | FD14: 0.668284581 | FE14: 0.1918674686 | FF14: 35 | FG14: 0.66827 | FH14: 0.11373 | FI14: 35 | FJ14: 0.6683 | FK14: 0.0925 | FL14: 0.6683 | FM14: 0.1545 | FN14: 0.6683 | FO14: 0.198 | FP14: 35 | FQ14: 0.6685 | FR14: 0.0748 | FS14: 35 | FT14: 0.6683219817 | FU14: 0.1407986787 | FV14: 0.6683047018 | FW14: 0.1553198564 | FX14: 0.6682827591 | FY14: 0.1988715782 | FZ14: 35 | GA14: 0.6683458225 | GB14: 0.127894904 | GC14: 35 | GD14: 0.6682991024 | GE14: 0.1619777147 | GF14: 0.6682903396 | GG14: 0.1764988924 | GH14: 0.6682791842 | GI14: 0.2200506142 | GJ14: 35 | GK14: 0.6683 | GL14: 0.14591 | GM14: 35 | GN14: 1.042999736 | GO14: 0.1280642077 | GP14: 1.04305637 | GQ14: 0.08451248585 | GR14: 1.04316516 | GS14: 0.08451248585 | GT14: 1.04309542 | GU14: 0.09903366354 | GV14: 1.043009011 | GW14: 0.1425853853 | GX14: 35 | GY14: 1.042998892 | GZ14: 0.1295019444 | HA14: 1.043052992 | HB14: 0.08595022257 | HC14: 1.043156636 | HD14: 0.08595022257 | HE14: 1.043090184 | HF14: 0.1004714003 | HG14: 1.043007744 | HH14: 0.1440231221 | HI14: 35 | HP14: 35 | HW14: 35 | HX14: 1.112945851 | HY14: 0.1757372849 | HZ14: 35 | IA14: 1.11294202 | IB14: 0.1927503663 | IC14: 35 | IF14: 35 | IG14: 1.112981215 | IH14: 0.09907587173 | II14: 1.11294783 | IJ14: 0.1426275935 | IK14: 1.113 | IL14: 0.0991 | IM14: 1.113 | IN14: 0.1136 | IO14: 1.1129 | IP14: 0.1571 | IQ14: 35 | IR14: 1.113016708 | IS14: 0.08065598904 | IT14: 1.113062276 | IU14: 0.08065598904 | IV14: 1.113062276 | IW14: 0.08065598904 | IX14: 35
A15: 12 | B15: 50 | C15: 0.4634043697 | D15: 0.079733782 | E15: 0.4632683925 | F15: 0.1232855038 | G15: 0.4636660823 | H15: 0.079733782 | I15: 0.4634982011 | J15: 0.09425495969 | K15: 0.4632905931 | L15: 0.1378066815 | M15: 50 | N15: 0.4622186701 | O15: 0.07681582219 | P15: 0.4620749374 | Q15: 0.120367544 | R15: 0.4624962688 | S15: 0.07681582219 | T15: 0.4623182333 | U15: 0.09133699988 | V15: 0.4620984282 | W15: 0.1348887217 | X15: 50 | AI15: 50 | AT15: 50 | BC15: 50 | BH15: 50 | BQ15: 50 | BR15: 0.4632470407 | BS15: 0.1432945418 | BT15: 0.4633189625 | BU15: 0.09974282004 | BV15: 0.4634532059 | BW15: 0.09974282004 | BX15: 0.4633669288 | BY15: 0.1142639977 | BZ15: 0.4632586732 | CA15: 0.1578157195 | CB15: 0.4635 | CC15: 0.07856 | CD15: 0.4635 | CE15: 0.07856 | CF15: 0.4634 | CG15: 0.09321 | CH15: 50 | CY15: 50 | CZ15: 0.463488328 | DA15: 0.08179402733 | DB15: 0.4636369643 | DC15: 0.08179402733 | DD15: 0.4636369643 | DE15: 0.08179402733 | DF15: 50 | DG15: 0.493742766 | DH15: 0.09274501881 | DI15: 0.4936584369 | DJ15: 0.1362967406 | DK15: 0.4938 | DL15: 0.0892 | DM15: 0.4938 | DN15: 0.1037 | DO15: 0.4937 | DP15: 0.1473 | DQ15: 50 | DR15: 0.4939 | DS15: 0.0736 | DT15: 0.4939 | DU15: 0.0736 | DV15: 0.4939 | DW15: 0.0882 | DX15: 50 | DY15: 0.4939 | DZ15: 0.0736 | EA15: 0.4939 | EB15: 0.0736 | EC15: 0.4939 | ED15: 0.08882 | EE15: 50 | EF15: 0.49380235 | EG15: 0.1067655416 | EH15: 0.493738021 | EI15: 0.1212867193 | EJ15: 0.4936570329 | EK15: 0.1648384411 | EL15: 50 | EM15: 0.4938 | EN15: 0.0852 | EO15: 50 | EP15: 0.4937 | EQ15: 0.1137 | ER15: 0.4937 | ES15: 0.1282 | ET15: 0.4937 | EU15: 0.1718 | EV15: 50 | EW15: 0.4938 | EX15: 0.0997 | EY15: 50 | EZ15: 0.4937269655 | FA15: 0.1246560675 | FB15: 0.4936909837 | FC15: 0.1391772452 | FD15: 0.4936454159 | FE15: 0.182728967 | FF15: 50 | FG15: 0.49367 | FH15: 0.10776 | FI15: 50 | FJ15: 0.4936 | FK15: 0.0892 | FL15: 0.4937 | FM15: 0.147 | FN15: 0.4936 | FO15: 0.1906 | FP15: 50 | FQ15: 0.4939 | FR15: 0.0736 | FS15: 50 | FT15: 0.4937098044 | FU15: 0.1307455986 | FV15: 0.4936802417 | FW15: 0.1452667763 | FX15: 0.4936427519 | FY15: 0.1888184981 | FZ15: 50 | GA15: 0.4937480169 | GB15: 0.1185283897 | GC15: 50 | GD15: 0.4936765406 | GE15: 0.1476752948 | GF15: 0.4936593835 | GG15: 0.1621964725 | GH15: 0.4936375674 | GI15: 0.2057481943 | GJ15: 50 | GK15: 0.4937 | GL15: 0.13414 | GM15: 50 | GN15: 0.7702936414 | GO15: 0.1255469584 | GP15: 0.7703697266 | GQ15: 0.0819952366 | GR15: 0.770515753 | GS15: 0.0819952366 | GT15: 0.7704221225 | GU15: 0.09651641429 | GV15: 0.7703060888 | GW15: 0.1400681361 | GX15: 50 | GY15: 0.7702919047 | GZ15: 0.1305400045 | HA15: 0.7703627799 | HB15: 0.08698828266 | HC15: 0.77049825 | HD15: 0.08698828266 | HE15: 0.7704113668 | HF15: 0.1015094604 | HG15: 0.7703034858 | HH15: 0.1450611822 | HI15: 50 | HP15: 50 | HW15: 50 | HX15: 0.8219401369 | HY15: 0.1719653644 | HZ15: 50 | IA15: 0.821934526 | IB15: 0.1880689018 | IC15: 50 | ID15: 0.8219329123 | IE15: 0.1947980762 | IF15: 50 | IG15: 0.8219915546 | IH15: 0.09651890636 | II15: 0.8219425148 | IJ15: 0.1400706282 | IK15: 0.822 | IL15: 0.0965 | IM15: 0.822 | IN15: 0.111 | IO15: 0.8219 | IP15: 0.1546 | IQ15: 50 | IR15: 0.8220363444 | IS15: 0.08012708879 | IT15: 0.82209919 | IU15: 0.08012708879 | IV15: 0.82209919 | IW15: 0.08012708879 | IX15: 50
A16: 13 | B16: 70 | C16: 0.3212044017 | D16: 0.07694212994 | E16: 0.3209898452 | F16: 0.1204938517 | G16: 0.3216186759 | H16: 0.07694212994 | I16: 0.3213527099 | J16: 0.09146330764 | K16: 0.3210247412 | L16: 0.1350150294 | M16: 70 | N16: 0.32599462 | O16: 0.07435577174 | P16: 0.3257740761 | Q16: 0.1179074935 | R16: 0.3264218064 | S16: 0.07435577174 | T16: 0.3261476198 | U16: 0.08887694944 | V16: 0.3258099909 | W16: 0.1324286712 | X16: 70 | AI16: 70 | AT16: 70 | BC16: 70 | BH16: 70 | BQ16: 70 | BR16: 0.3209589965 | BS16: 0.1382270407 | BT16: 0.3210810072 | BU16: 0.09467531889 | BV16: 0.3213094826 | BW16: 0.09467531889 | BX16: 0.3211625142 | BY16: 0.1091964966 | BZ16: 0.3209786472 | CA16: 0.1527482184 | CB16: 0.3214 | CC16: 0.0757 | CD16: 0.3214 | CE16: 0.0757 | CF16: 0.3213 | CG16: 0.03035 | CH16: 70 | CY16: 70 | CZ16: 0.321340353 | DA16: 0.07873744788 | DB16: 0.3215782567 | DC16: 0.07873744788 | DD16: 0.3215782567 | DE16: 0.07873744788 | DF16: 70 | DG16: 0.3421481746 | DH16: 0.08935520799 | DI16: 0.3420125518 | DJ16: 0.1329069298 | DK16: 0.3423 | DL16: 0.086 | DM16: 0.3423 | DN16: 0.1005 | DO16: 0.342 | DP16: 0.1441 | DQ16: 70 | DR16: 0.3424 | DS16: 0.0726 | DT16: 0.3424 | DU16: 0.0725 | DV16: 0.3423 | DW16: 0.0872 | DX16: 70 | DY16: 0.3424 | DZ16: 0.0725 | EA16: 0.3424 | EB16: 0.0725 | EC16: 0.3423 | ED16: 0.0872 | EE16: 70 | EF16: 0.3422515727 | EG16: 0.1025543877 | EH16: 0.3421451236 | EI16: 0.1170755654 | EJ16: 0.3420113685 | EK16: 0.1606272872 | EL16: 70 | EM16: 0.3423 | EN16: 0.0817 | EO16: 70 | EP16: 0.3421 | EQ16: 0.1074 | ER16: 0.3421 | ES16: 0.122 | ET16: 0.342 | EU16: 0.1655 | EV16: 70 | EW16: 0.3422 | EX16: 0.0946 | EY16: 70 | EZ16: 0.3421412793 | FA16: 0.1177542709 | FB16: 0.3420764196 | FC16: 0.1322754486 | FD16: 0.3419944375 | FE16: 0.1758271704 | FF16: 70 | FG16: 0.34212 | FH16: 0.10179 | FI16: 70 | FJ16: 0.3423 | FK16: 0.086 | FL16: 0.3421 | FM16: 0.1395 | FN16: 0.342 | FO16: 0.1831 | FP16: 70 | FQ16: 0.3424 | FR16: 0.0725 | FS16: 70 | FT16: 0.34210993 | FU16: 0.1239313289 | FV16: 0.3420568263 | FW16: 0.1384525066 | FX16: 0.341989588 | FY16: 0.1820042284 | FZ16: 70 | GA16: 0.3421763938 | GB16: 0.1120507079 | GC16: 70 | GD16: 0.3420539122 | GE16: 0.1394861131 | GF16: 0.3420217413 | GG16: 0.1540072908 | GH16: 0.3419808804 | GI16: 0.1975590126 | GJ16: 70 | GK16: 0.342 | GL16: 0.12655 | GM16: 70 | GN16: 0.5324595016 | GO16: 0.1224351013 | GP16: 0.5325810471 | GQ16: 0.07888337946 | GR16: 0.5328155398 | GS16: 0.07888337946 | GT16: 0.5326651756 | GU16: 0.09340455715 | GV16: 0.5324793817 | GW16: 0.136956279 | GX16: 70 | GY16: 0.5324573542 | GZ16: 0.1241459713 | HA16: 0.5325724575 | HB16: 0.08059424952 | HC16: 0.5327937483 | HD16: 0.08059424952 | HE16: 0.5326518199 | HF16: 0.09511542721 | HG16: 0.5324761609 | HH16: 0.138667149 | HI16: 70 | HP16: 70 | HW16: 70 | HX16: 0.5681399244 | HY16: 0.1627097846 | HZ16: 70 | IA16: 0.5681305451 | IB16: 0.1775625296 | IC16: 70 | ID16: 0.5681277341 | IE16: 0.1866155603 | IF16: 70 | IG16: 0.5682223535 | IH16: 0.08980561747 | II16: 0.5681418973 | IJ16: 0.1333573393 | IK16: 0.5683 | IL16: 0.0898 | IM16: 0.5682 | IN16: 0.1043 | IO16: 0.5681 | IP16: 0.1479 | IQ16: 70 | IR16: 0.5682832413 | IS16: 0.075683012 | IT16: 0.5683796722 | IU16: 0.075683012 | IV16: 0.5683796722 | IW16: 0.075683012 | IX16: 70
A17: 14 | B17: 95 | C17: 0.2316749078 | D17: 0.07713335512 | E17: 0.2313788948 | F17: 0.1206850769 | G17: 0.2322434322 | H17: 0.07713335512 | I17: 0.2318776521 | J17: 0.09165453281 | K17: 0.2314265508 | L17: 0.1352062546 | M17: 95 | N17: 0.2471947988 | O17: 0.07481915837 | P17: 0.2469079438 | Q17: 0.1183708802 | R17: 0.2477477363 | S17: 0.07481915837 | T17: 0.2473922305 | U17: 0.08934033607 | V17: 0.2469542794 | W17: 0.1328920579 | X17: 95 | AI17: 95 | AT17: 95 | BC17: 95 | BH17: 95 | BQ17: 95 | BR17: 0.2313420013 | BS17: 0.1353956453 | BT17: 0.2315273338 | BU17: 0.09184392354 | BV17: 0.2318739667 | BW17: 0.09184392354 | BX17: 0.2316505495 | BY17: 0.1063651012 | BZ17: 0.2313715675 | CA17: 0.149916823 | CB17: 0.2319 | CC17: 0.07505 | CD17: 0.2319 | CE17: 0.07505 | CF17: 0.2318 | CG17: 0.0897 | CH17: 95 | CY17: 95 | CZ17: 0.2318816815 | DA17: 0.07789960672 | DB17: 0.2322192887 | DC17: 0.07789960672 | DD17: 0.2322192887 | DE17: 0.07789960672 | DF17: 95 | DG17: 0.2466974127 | DH17: 0.08715035534 | DI17: 0.2464954622 | DJ17: 0.1307020771 | DK17: 0.2469 | DL17: 0.0836 | DM17: 0.2469 | DN17: 0.0982 | DO17: 0.2465 | DP17: 0.1417 | DQ17: 95 | DR17: 0.2456 | DS17: 0.0725 | DT17: 0.2471 | DU17: 0.0706 | DV17: 0.247 | DW17: 0.0853 | DX17: 95 | DY17: 0.2462 | DZ17: 0.0706 | EA17: 0.2462 | EB17: 0.0706 | EC17: 0.247 | ED17: 0.0853 | EE17: 95 | EF17: 0.2468896499 | EG17: 0.09764667304 | EH17: 0.2467164561 | EI17: 0.1121678507 | EJ17: 0.2464994056 | EK17: 0.1557195725 | EL17: 95 | EM17: 0.2469 | EN17: 0.0787 | EO17: 95 | EP17: 0.2467 | EQ17: 0.1025 | ER17: 0.2467 | ES17: 0.1171 | ET17: 0.2465 | EU17: 0.1606 | EV17: 95 | EW17: 0.2468 | EX17: 0.0903 | EY17: 95 | EZ17: 0.2467166347 | FA17: 0.1121486684 | FB17: 0.2466088929 | FC17: 0.1266698461 | FD17: 0.2464729666 | FE17: 0.1702215679 | FF17: 95 | FG17: 0.24674 | FH17: 0.09676 | FI17: 95 | FJ17: 0.2469 | FK17: 0.0836 | FL17: 0.2466 | FM17: 0.1333 | FN17: 0.2465 | FO17: 0.1768 | FP17: 95 | FQ17: 0.2471 | FR17: 0.0706 | FS17: 95 | FT17: 0.2466714124 | FU17: 0.1174356343 | FV17: 0.2465806749 | FW17: 0.131956812 | FX17: 0.2464659972 | FY17: 0.1755085338 | FZ17: 95 | GA17: 0.2467758201 | GB17: 0.1063756179 | GC17: 95 | GD17: 0.2465782216 | GE17: 0.1324621881 | GF17: 0.2465223861 | GG17: 0.1469833658 | GH17: 0.2464515559 | GI17: 0.1905350876 | GJ17: 95 | GK17: 0.24661 | GL17: 0.11979 | GM17: 95 | GN17: 0.3847510076 | GO17: 0.1218218571 | GP17: 0.3849225657 | GQ17: 0.07827013527 | GR17: 0.3852533911 | GS17: 0.07827013527 | GT17: 0.3850411098 | GU17: 0.09279131297 | GV17: 0.3847789775 | GW17: 0.1363430348 | GX17: 95 | GY17: 0.3847489107 | GZ17: 0.1229954782 | HA17: 0.3849141781 | HB17: 0.07944375644 | HC17: 0.3852320891 | HD17: 0.07944375644 | HE17: 0.385028064 | HF17: 0.09396493414 | HG17: 0.3847758347 | HH17: 0.1375166559 | HI17: 95 | HP17: 95 | HW17: 95 | HX17: 0.410512687 | HY17: 0.1577120835 | HZ17: 95 | IA17: 0.4104982902 | IB17: 0.171553683 | IC17: 95 | ID17: 0.4104938285 | IE17: 0.1774770087 | IF17: 95 | IG17: 0.4106320618 | IH17: 0.08752502463 | II17: 0.4105123082 | IJ17: 0.1310767464 | IK17: 0.4107 | IL17: 0.0875 | IM17: 0.4106 | IN17: 0.102 | IO17: 0.4105 | IP17: 0.1456 | IQ17: 95 | IR17: 0.4107225954 | IS17: 0.07341416123 | IT17: 0.4108671258 | IU17: 0.07341416123 | IV17: 0.4108671258 | IW17: 0.07341416123 | IX17: 95
A18: 15 | B18: 120 | C18: 0.184031924 | D18: 0.07499440314 | E18: 0.1836426536 | F18: 0.1185461249 | G18: 0.1847773398 | H18: 0.07499440314 | I18: 0.184296597 | J18: 0.08951558083 | K18: 0.183704615 | L18: 0.1330673026 | M18: 120 | N18: 0.1935798274 | O18: 0.07307227408 | P18: 0.1931919797 | Q18: 0.1166239959 | R18: 0.1943263007 | S18: 0.07307227408 | T18: 0.1938453157 | U18: 0.08759345177 | V18: 0.1932539881 | W18: 0.1311451736 | X18: 120 | AI18: 120 | AT18: 120 | BC18: 120 | BH18: 120 | BQ18: 120 | BR18: 0.1835974374 | BS18: 0.1320056454 | BT18: 0.1838510593 | BU18: 0.08845392355 | BV18: 0.1843243077 | BW18: 0.08845392355 | BX18: 0.1840185309 | BY18: 0.1029751012 | BZ18: 0.1836374248 | CA18: 0.1465268231 | CB18: 0.1843 | CC18: 0.07376 | CD18: 0.1843 | CE18: 0.07376 | CF18: 0.1842 | CG18: 0.08842 | CH18: 120 | CY18: 120 | CZ18: 0.1843053719 | DA18: 0.07568868482 | DB18: 0.184748536 | DC18: 0.07568868482 | DD18: 0.184748536 | DE18: 0.07568868482 | DF18: 120 | DG18: 0.1958712431 | DH18: 0.08448622582 | DI18: 0.1956011772 | DJ18: 0.1280379476 | DK18: 0.1961 | DL18: 0.082 | DM18: 0.1961 | DN18: 0.0965 | DO18: 0.1957 | DP18: 0.14 | DQ18: 120 | DR18: 0.1963 | DS18: 0.0706 | DT18: 0.1964 | DU18: 0.0702 | DV18: 0.1962 | DW18: 0.0849 | DX18: 120 | DY18: 0.1964 | DZ18: 0.0702 | EA18: 0.1964 | EB18: 0.0702 | EC18: 0.1962 | ED18: 0.0849 | EE18: 120 | EF18: 0.1961446086 | EG18: 0.0941252738 | EH18: 0.1959065711 | EI18: 0.1086464515 | EJ18: 0.1956087506 | EK18: 0.1521981733 | EL18: 120 | EM18: 0.1962 | EN18: 0.0767 | EO18: 120 | EP18: 0.1959 | EQ18: 0.0989 | ER18: 0.1959 | ES18: 0.1134 | ET18: 0.1956 | EU18: 0.1569 | EV18: 120 | EW18: 0.196 | EX18: 0.0874 | EY18: 120 | EZ18: 0.1959256526 | FA18: 0.1071890907 | FB18: 0.195770641 | FC18: 0.1217102684 | FD18: 0.1955754019 | FE18: 0.1652619902 | FF18: 120 | FG18: 0.19585 | FH18: 0.09362 | FI18: 120 | FJ18: 0.1961 | FK18: 0.082 | FL18: 0.1957 | FM18: 0.1291 | FN18: 0.1956 | FO18: 0.1727 | FP18: 120 | FQ18: 0.1964 | FR18: 0.0702 | FS18: 120 | FT18: 0.1958589618 | FU18: 0.1126183604 | FV18: 0.1957290812 | FW18: 0.1271395381 | FX18: 0.1955651547 | FY18: 0.1706912599 | FZ18: 120 | GA18: 0.1960056308 | GB18: 0.1017426222 | GC18: 120 | GD18: 0.1957332084 | GE18: 0.1265556071 | GF18: 0.1956505089 | GG18: 0.1410767848 | GH18: 0.1955457151 | GI18: 0.1846285066 | GJ18: 120 | GK18: 0.1957 | GL18: 0.11518 | GM18: 120 | GN18: 0.3043265462 | GO18: 0.1191682276 | GP18: 0.3045565626 | GQ18: 0.07561650577 | GR18: 0.30500093 | GS18: 0.07561650577 | GT18: 0.3047155908 | GU18: 0.09013768347 | GV18: 0.3043639244 | GW18: 0.1336894053 | GX18: 120 | GY18: 0.3043235559 | GZ18: 0.1212348267 | HA18: 0.3045446014 | HB18: 0.07768310492 | HC18: 0.3049704559 | HD18: 0.07768310492 | HE18: 0.3046969572 | HF18: 0.09220428262 | HG18: 0.3043594452 | HH18: 0.1357560044 | HI18: 120 | HP18: 120 | HW18: 120 | HX18: 0.3246819645 | HY18: 0.1540172207 | HZ18: 120 | IA18: 0.324663316 | IB18: 0.1663470984 | IC18: 120 | ID18: 0.3246560707 | IE18: 0.1728527512 | IF18: 120 | IG18: 0.3248387006 | IH18: 0.08570023934 | II18: 0.3246781993 | IJ18: 0.1292519611 | IK18: 0.325 | IL18: 0.0857 | IM18: 0.3248 | IN18: 0.1002 | IO18: 0.3247 | IP18: 0.1438 | IQ18: 120 | IR18: 0.3249447508 | IS18: 0.07305535613 | IT18: 0.3251295602 | IU18: 0.07305535613 | IV18: 0.3251295602 | IW18: 0.07305535613 | IX18: 120
A19: 16 | B19: 150 | C19: 0.1495619587 | D19: 0.07483440501 | E19: 0.1490795132 | F19: 0.1183861268 | G19: 0.1504784349 | H19: 0.07483440501 | I19: 0.1498852209 | J19: 0.0893555827 | K19: 0.1491549866 | L19: 0.1329073045 | M19: 150 | N19: 0.1555265153 | O19: 0.07299364298 | P19: 0.1550415508 | Q19: 0.1165453648 | R19: 0.1564526038 | S19: 0.07299364298 | T19: 0.1558537991 | U19: 0.08751482068 | V19: 0.1551178066 | W19: 0.1310665425 | X19: 150 | AI19: 150 | AT19: 150 | BC19: 150 | BH19: 150 | BQ19: 150 | BR19: 0.1490230833 | BS19: 0.1319630543 | BT19: 0.1493362391 | BU19: 0.08841133248 | BV19: 0.1499155688 | BW19: 0.08841133248 | BX19: 0.14953981 | BY19: 0.1029325102 | BZ19: 0.1490715466 | CA19: 0.146484232 | CB19: 0.1499 | CC19: 0.07364 | CD19: 0.1499 | CE19: 0.07364 | CF19: 0.1497 | CG19: 0.08828 | CH19: 150 | CY19: 150 | CZ19: 0.149902422 | DA19: 0.07546272877 | DB19: 0.1504462284 | DC19: 0.07546272877 | DD19: 0.1504462284 | DE19: 0.07546272877 | DF19: 150 | DG19: 0.1590778725 | DH19: 0.08430184937 | DI19: 0.158742878 | DJ19: 0.1278535712 | DK19: 0.1594 | DL19: 0.0819 | DM19: 0.1594 | DN19: 0.0965 | DO19: 0.1588 | DP19: 0.14 | DQ19: 150 | DR19: 0.1599 | DS19: 0.0702 | DT19: 0.1597 | DU19: 0.0707 | DV19: 0.1595 | DW19: 0.0854 | DX19: 150 | DY19: 0.1567 | DZ19: 0.0707 | EA19: 0.1567 | EB19: 0.0707 | EC19: 0.15995 | ED19: 0.0854 | EE19: 150 | EF19: 0.1594773654 | EG19: 0.09153828098 | EH19: 0.1591589503 | EI19: 0.1060594587 | EJ19: 0.1587612609 | EK19: 0.1496111805 | EL19: 150 | EM19: 0.1595 | EN19: 0.0752 | EO19: 150 | EP19: 0.1591 | EQ19: 0.0964 | ER19: 0.1591 | ES19: 0.111 | ET19: 0.1587 | EU19: 0.1545 | EV19: 150 | EW19: 0.1593 | EX19: 0.0852 | EY19: 150 | EZ19: 0.1591892173 | FA19: 0.1043376985 | FB19: 0.1589803003 | FC19: 0.1188588762 | FD19: 0.1587175076 | FE19: 0.162410598 | FF19: 150 | FG19: 0.15927 | FH19: 0.09079 | FI19: 150 | FJ19: 0.1594 | FK19: 0.0819 | FL19: 0.1589 | FM19: 0.1255 | FN19: 0.1587 | FO19: 0.169 | FP19: 150 | FQ19: 0.1597 | FR19: 0.0707 | FS19: 150 | FT19: 0.1591097264 | FU19: 0.1090858768 | FV19: 0.1589308209 | FW19: 0.1236070545 | FX19: 0.1587053261 | FY19: 0.1671587763 | FZ19: 150 | GA19: 0.1593005107 | GB19: 0.09873400022 | GC19: 150 | GD19: 0.1589388264 | GE19: 0.1227874555 | GF19: 0.1588241478 | GG19: 0.1373086332 | GH19: 0.1586789685 | GI19: 0.180860355 | GJ19: 150 | GK19: 0.1589 | GL19: 0.1115 | GM19: 150 | GN19: 0.247934804 | GO19: 0.1192620765 | GP19: 0.248216392 | GQ19: 0.07571035471 | GR19: 0.2487880413 | GS19: 0.07476073684 | GT19: 0.2484279509 | GU19: 0.08928191454 | GV19: 0.2479845897 | GW19: 0.1328336363 | GX19: 150 | GY19: 0.2479316333 | GZ19: 0.121158443 | HA19: 0.2482037094 | HB19: 0.07760672121 | HC19: 0.2487264018 | HD19: 0.07760672121 | HE19: 0.2483902788 | HF19: 0.09212789891 | HG19: 0.2479755397 | HH19: 0.1356796207 | HI19: 150 | HP19: 150 | HW19: 150 | HX19: 0.2644993072 | HY19: 0.1516949731 | HZ19: 150 | IA19: 0.2644746913 | IB19: 0.1640172343 | IC19: 150 | ID19: 0.2644666665 | IE19: 0.1693766394 | IF19: 150 | IG19: 0.2646879115 | IH19: 0.08553053792 | II19: 0.2644897636 | IJ19: 0.1290822597 | IK19: 0.2648 | IL19: 0.0855 | IM19: 0.2647 | IN19: 0.1001 | IO19: 0.2645 | IP19: 0.1436 | IQ19: 150 | IR19: 0.2648122176 | IS19: 0.07341637857 | IT19: 0.2650356799 | IU19: 0.07341637857 | IV19: 0.2650356799 | IW19: 0.07341637857 | IX19: 150
A20: 17 | B20: 185 | C20: 0.1200667096 | D20: 0.07486822497 | E20: 0.1194643443 | F20: 0.1184199468 | G20: 0.1211952717 | H20: 0.07486822497 | I20: 0.1204603486 | J20: 0.08938940266 | K20: 0.1195558776 | L20: 0.1329411245 | M20: 185 | N20: 0.1282497089 | O20: 0.0734520908 | P20: 0.1276685596 | Q20: 0.1170038126 | R20: 0.1293463362 | S20: 0.0734520908 | T20: 0.1286338463 | U20: 0.08797326849 | V20: 0.1277578556 | W20: 0.1315249903 | X20: 185 | AI20: 185 | AT20: 185 | BC20: 185 | BH20: 185 | BQ20: 185 | BR20: 0.1193995154 | BS20: 0.1306688311 | BT20: 0.1198073942 | BU20: 0.08711710934 | BV20: 0.1205528777 | BW20: 0.08711710934 | BX20: 0.1200663635 | BY20: 0.101638287 | BZ20: 0.1194607787 | CA20: 0.1451900088 | CB20: 0.1205 | CC20: 0.07342 | CD20: 0.1205 | CE20: 0.07342 | CF20: 0.1203 | CG20: 0.0809 | CH20: 185 | CY20: 185 | CZ20: 0.1204934027 | DA20: 0.07542922738 | DB20: 0.1211596022 | DC20: 0.07542922738 | DD20: 0.1211596022 | DE20: 0.07542922738 | DF20: 185 | DG20: 0.1275697058 | DH20: 0.08426075267 | DI20: 0.1271503903 | DJ20: 0.1278124745 | DK20: 0.1279 | DL20: 0.0813 | DM20: 0.1279 | DN20: 0.0958 | DO20: 0.1272 | DP20: 0.1394 | DQ20: 185 | DR20: 0.1283 | DS20: 0.0712 | DT20: 0.1283 | DU20: 0.0712 | DV20: 0.128 | DW20: 0.0859 | DX20: 185 | DY20: 0.1283 | DZ20: 0.0712 | EA20: 0.1283 | EB20: 0.0712 | EC20: 0.128 | ED20: 0.0859 | EE20: 185 | EF20: 0.1281374906 | EG20: 0.08937896635 | EH20: 0.1277128395 | EI20: 0.103900144 | EJ20: 0.1271833368 | EK20: 0.1474518658 | EL20: 185 | EM20: 0.1285 | EN20: 0.0737 | EO20: 185 | EP20: 0.1276 | EQ20: 0.0934 | ER20: 0.1276 | ES20: 0.1079 | ET20: 0.1272 | EU20: 0.1515 | EV20: 185 | EW20: 0.1279 | EX20: 0.0829 | EY20: 185 | EZ20: 0.1277691997 | FA20: 0.1015208202 | FB20: 0.1274848055 | FC20: 0.1160419979 | FD20: 0.1271275873 | FE20: 0.1595937197 | FF20: 185 | FG20: 0.12768 | FH20: 0.08828 | FI20: 185 | FJ20: 0.1279 | FK20: 0.0813 | FL20: 0.1274 | FM20: 0.122 | FN20: 0.1271 | FO20: 0.1656 | FP20: 185 | FQ20: 0.1283 | FR20: 0.0712 | FS20: 185 | FT20: 0.1276553783 | FU20: 0.1065346083 | FV20: 0.1274140361 | FW20: 0.121055786 | FX20: 0.12711019 | FY20: 0.1646075078 | FZ20: 185 | GA20: 0.1279098394 | GB20: 0.09629052643 | GC20: 185 | GD20: 0.1274424908 | GE20: 0.1189405997 | GF20: 0.1272812849 | GG20: 0.1334617774 | GH20: 0.1270774306 | GI20: 0.1770134992 | GJ20: 185 | GK20: 0.1274 | GL20: 0.10766 | GM20: 185 | GN20: 0.1975818342 | GO20: 0.1189206016 | GP20: 0.1979392599 | GQ20: 0.07536887983 | GR20: 0.1986693324 | GS20: 0.07423162068 | GT20: 0.1982103096 | GU20: 0.08875279837 | GV20: 0.1976455212 | GW20: 0.1323045202 | GX20: 185 | GY20: 0.1975768815 | GZ20: 0.1202544747 | HA20: 0.1979194491 | HB20: 0.07670275288 | HC20: 0.1985743368 | HD20: 0.07670275288 | HE20: 0.1981522725 | HF20: 0.09122393057 | HG20: 0.197631586 | HH20: 0.1347756524 | HI20: 185 | HP20: 185 | HW20: 185 | HX20: 0.2107584967 | HY20: 0.1480669772 | HZ20: 185 | IA20: 0.2107264458 | IB20: 0.1596447007 | IC20: 185 | ID20: 0.2107157336 | IE20: 0.1655376534 | IF20: 185 | IG20: 0.2109932282 | IH20: 0.08410327927 | II20: 0.21073954 | IJ20: 0.1276550011 | IK20: 0.2112 | IL20: 0.0841 | IM20: 0.211 | IN20: 0.986 | IO20: 0.2107 | IP20: 0.1422 | IQ20: 185 | IR20: 0.2111322189 | IS20: 0.07328882492 | IT20: 0.2114048218 | IU20: 0.07328882492 | IV20: 0.2114048218 | IW20: 0.07328882492 | IX20: 185
A21: 18 | B21: 240 | C21: 0.09219885308 | D21: 0.07368899514 | E21: 0.09139005245 | F21: 0.1172407169 | G21: 0.09367580944 | H21: 0.07368899514 | I21: 0.09270235831 | J21: 0.08821017283 | K21: 0.09150595717 | L21: 0.1317618946 | M21: 240 | N21: 0.09773899355 | O21: 0.07272777477 | P21: 0.09695353556 | Q21: 0.1162794966 | R21: 0.09918751838 | S21: 0.07272777477 | T21: 0.09823617536 | U21: 0.08724895246 | V21: 0.09706806812 | W21: 0.1308006743 | X21: 240 | AI21: 240 | AT21: 240 | BC21: 240 | BH21: 240 | BQ21: 240 | BR21: 0.09130595979 | BS21: 0.1289853907 | BT21: 0.09186248244 | BU21: 0.08543366886 | BV21: 0.09285333424 | BW21: 0.08543366886 | BX21: 0.09219851116 | BY21: 0.09995484656 | BZ21: 0.09138453125 | CA21: 0.1435065684 | CB21: 0.0928 | CC21: 0.07275 | CD21: 0.0928 | CE21: 0.07275 | CF21: 0.0924 | CG21: 0.0874 | CH21: 240 | CY21: 240 | CZ21: 0.09277252776 | DA21: 0.07418373669 | DB21: 0.09363407324 | DC21: 0.07418373669 | DD21: 0.09363407324 | DE21: 0.07418373669 | DF21: 240 | DG21: 0.09777651755 | DH21: 0.08170337564 | DI21: 0.09718809929 | DJ21: 0.1252550974 | DK21: 0.0983 | DL21: 0.0798 | DM21: 0.0983 | DN21: 0.0943 | DO21: 0.0973 | DP21: 0.1379 | DQ21: 240 | DR21: 0.0987 | DS21: 0.0704 | DT21: 0.0987 | DU21: 0.0704 | DV21: 0.0983 | DW21: 0.085 | DX21: 240 | DY21: 0.0987 | DZ21: 0.0704 | EA21: 0.0987 | EB21: 0.0704 | EC21: 0.0983 | ED21: 0.085 | EE21: 240 | EF21: 0.0985810856 | EG21: 0.08629168019 | EH21: 0.09798099912 | EI21: 0.1008128579 | EJ21: 0.09723446874 | EK21: 0.1443645797 | EL21: 240 | EM21: 0.0986 | EN21: 0.0721 | EO21: 240 | EP21: 0.0979 | EQ21: 0.0904 | ER21: 0.0979 | ES21: 0.1053 | ET21: 0.0972 | EU21: 0.1488 | EV21: 240 | EW21: 0.0982 | EX21: 0.0808 | EY21: 240 | EZ21: 0.09808998214 | FA21: 0.09759961546 | FB21: 0.09767749567 | FC21: 0.1121207932 | FD21: 0.09716045434 | FE21: 0.155672515 | FF21: 240 | FG21: 0.09808 | FH21: 0.08514 | FI21: 240 | FJ21: 0.0983 | FK21: 0.0798 | FL21: 0.0976 | FM21: 0.1175 | FN21: 0.0971 | FO21: 0.1611 | FP21: 240 | FQ21: 0.0987 | FR21: 0.0704 | FS21: 240 | FT21: 0.09794179631 | FU21: 0.1020576445 | FV21: 0.09758552345 | FW21: 0.1165788222 | FX21: 0.09713789759 | FY21: 0.160130544 | FZ21: 240 | GA21: 0.0983014738 | GB21: 0.09219969334 | GC21: 240 | GD21: 0.09764429041 | GE21: 0.113656534 | GF21: 0.09740030532 | GG21: 0.1281777117 | GH21: 0.0970922872 | GI21: 0.1717294335 | GJ21: 240 | GK21: 0.09745 | GL21: 0.10315 | GM21: 240 | GN21: 0.150893139 | GO21: 0.1178017194 | GP21: 0.1513719538 | GQ21: 0.07424999755 | GR21: 0.1523857439 | GS21: 0.0723080197 | GT21: 0.1517562856 | GU21: 0.08682919739 | GV21: 0.1509832451 | GW21: 0.1303809192 | GX21: 240 | GY21: 0.1508875727 | GZ21: 0.1193567462 | HA21: 0.1513496887 | HB21: 0.0758050244 | HC21: 0.152226078 | HD21: 0.0758050244 | HE21: 0.1516588628 | HF21: 0.0903262021 | HG21: 0.1509598938 | HH21: 0.1338779239 | HI21: 240 | HP21: 240 | HW21: 240 | HX21: 0.1609241459 | HY21: 0.1448010487 | HZ21: 240 | IA21: 0.1608809018 | IB21: 0.1554343296 | IC21: 240 | ID21: 0.1608659823 | IE21: 0.1601443962 | IF21: 240 | IG21: 0.1612433913 | IH21: 0.08234543647 | II21: 0.1608916393 | IJ21: 0.1258971583 | IK21: 0.1615 | IL21: 0.0823 | IM21: 0.1612 | IN21: 0.969 | IO21: 0.1609 | IP21: 0.1404 | IQ21: 240 | IR21: 0.1614209218 | IS21: 0.07226042263 | IT21: 0.1617886935 | IU21: 0.07226042263 | IV21: 0.1617886935 | IW21: 0.07226042263 | IX21: 240
A22: 19 | B22: 300 | C22: 0.07441073391 | D22: 0.07316350064 | E22: 0.07338195597 | F22: 0.1167152224 | G22: 0.07701146989 | H22: 0.06612852086 | I22: 0.07548683795 | J22: 0.08064969856 | K22: 0.07363140176 | L22: 0.1242014204 | M22: 300 | X22: 300 | AI22: 300 | AT22: 300 | BC22: 300 | BH22: 300 | BQ22: 300 | BR22: 0.07328321813 | BS22: 0.1273833058 | BT22: 0.07401578254 | BU22: 0.08383158404 | BV22: 0.07527503471 | BW22: 0.08383158404 | BX22: 0.07442846307 | BY22: 0.09835276173 | BZ22: 0.07337809558 | CA22: 0.1419044835 | CB22: 0.0752 | CC22: 0.07228 | CD22: 0.0752 | CE22: 0.07228 | CF22: 0.0747 | CG22: 0.08694 | CH22: 300 | CY22: 300 | CZ22: 0.07513903623 | DA22: 0.07360911848 | DB22: 0.07617667218 | DC22: 0.07360911848 | DD22: 0.07617667218 | DE22: 0.07360911848 | DF22: 300 | DG22: 0.07871229793 | DH22: 0.08058122474 | DI22: 0.07794922388 | DJ22: 0.1241329465 | DK22: 0.0793 | DL22: 0.0788 | DM22: 0.0793 | DN22: 0.0934 | DO22: 0.0781 | DP22: 0.1369 | DQ22: 300 | DR22: 0.0799 | DS22: 0.0698 | DT22: 0.0799 | DU22: 0.0698 | DV22: 0.0794 | DW22: 0.0845 | DX22: 300 | DY22: 0.0799 | DZ22: 0.0698 | EA22: 0.0799 | EB22: 0.0698 | EC22: 0.0794 | ED22: 0.0845 | EE22: 300 | EF22: 0.07980125775 | EG22: 0.08395555783 | EH22: 0.07900407724 | EI22: 0.09847673552 | EJ22: 0.07801471088 | EK22: 0.1420284573 | EL22: 300 | EM22: 0.0798 | EN22: 0.0708 | EO22: 300 | EP22: 0.0788 | EQ22: 0.0892 | ER22: 0.0788 | ES22: 0.1037 | ET22: 0.078 | EU22: 0.1473 | EV22: 300 | EW22: 0.0793 | EX22: 0.0797 | EY22: 300 | EZ22: 0.07916795737 | FA22: 0.09486120501 | FB22: 0.07861342277 | FC22: 0.1093823827 | FD22: 0.07791967972 | FE22: 0.1529341045 | FF22: 300 | FG22: 0.07906 | FH22: 0.08294 | FI22: 300 | FJ22: 0.0793 | FK22: 0.0788 | FL22: 0.0785 | FM22: 0.1144 | FN22: 0.0779 | FO22: 0.158 | FP22: 300 | FQ22: 0.0799 | FR22: 0.0698 | FS22: 300 | FT22: 0.07899412383 | FU22: 0.09871096451 | FV22: 0.07850571736 | FW22: 0.1132321422 | FX22: 0.07789332428 | FY22: 0.156783864 | FZ22: 300 | GA22: 0.07945289085 | GB22: 0.08945685671 | GC22: 300 | GD22: 0.07859589179 | GE22: 0.1099768641 | GF22: 0.07825817594 | GG22: 0.1244980418 | GH22: 0.07783249117 | GI22: 0.1680497636 | GJ22: 300 | GK22: 0.0785 | GL22: 0.09972 | GM22: 300 | GN22: 0.1210328552 | GO22: 0.1174677087 | GP22: 0.1216371377 | GQ22: 0.07391598691 | GR22: 0.1227718177 | GS22: 0.07391598691 | GT22: 0.1220333078 | GU22: 0.08843716461 | GV22: 0.1211249208 | GW22: 0.1319888864 | GX22: 300 | GY22: 0.1210272388 | GZ22: 0.118795949 | HA22: 0.121614672 | HB22: 0.07524422722 | HC22: 0.1227153609 | HD22: 0.07524422722 | HE22: 0.1219988492 | HF22: 0.08976540491 | HG22: 0.121116658 | HH22: 0.1333171267 | HI22: 300 | HP22: 300 | HW22: 300 | HZ22: 300 | IC22: 300 | IF22: 300 | IG22: 0.1294570337 | IH22: 0.08116755289 | II22: 0.1290009652 | IJ22: 0.1247192747 | IK22: 0.1298 | IL22: 0.0812 | IM22: 0.1294 | IN22: 0.957 | IO22: 0.129 | IP22: 0.1392 | IQ22: 300 | IR22: 0.1296747162 | IS22: 0.07155440868 | IT22: 0.1301406293 | IU22: 0.07155440868 | IV22: 0.1301406293 | IW22: 0.07155440868 | IX22: 300
A23: 20 | B23: 400 | C23: 0.059444443 | D23: 0.07260793365 | E23: 0.059444443 | F23: 0.07260793365 | G23: 0.06273874575 | H23: 0.064991584 | I23: 0.06078701587 | J23: 0.07951276169 | K23: 0.05841939313 | L23: 0.1230644835 | M23: 400 | X23: 400 | AI23: 400 | AT23: 400 | BC23: 400 | BH23: 400 | BQ23: 400 | BR23: 0.05799536382 | BS23: 0.1257596846 | BT23: 0.05897676137 | BU23: 0.08220796279 | BV23: 0.06056252155 | BW23: 0.08220796279 | BX23: 0.0594637372 | BY23: 0.09672914049 | BZ23: 0.05810372563 | CA23: 0.1402808623 | CH23: 400 | CY23: 400 | DF23: 400 | DG23: 0.06259874903 | DH23: 0.07995217514 | DI23: 0.06160773473 | DJ23: 0.1235038969 | DK23: 0.0633 | DL23: 0.0781 | DM23: 0.0633 | DN23: 0.0927 | DO23: 0.0618 | DP23: 0.1362 | DQ23: 400 | DR23: 0.064 | DS23: 0.0696 | DT23: 0.064 | DU23: 0.0696 | DV23: 0.0634 | DW23: 0.0843 | DX23: 400 | DY23: 0.064 | DZ23: 0.696 | EA23: 0.064 | EB23: 0.0696 | EC23: 0.0634 | ED23: 0.0843 | EE23: 400 | EF23: 0.06399053532 | EG23: 0.08261816881 | EH23: 0.06296133218 | EI23: 0.09713934651 | EJ23: 0.06168658357 | EK23: 0.1406910683 | EL23: 400 | EM23: 0.064 | EN23: 0.0696 | EO23: 400 | EP23: 0.0628 | EQ23: 0.0877 | ER23: 0.0628 | ES23: 0.1022 | ET23: 0.0616 | EU23: 0.1458 | EV23: 400 | EW23: 0.0633 | EX23: 0.0787 | EY23: 400 | EZ23: 0.06326218187 | FA23: 0.09211701984 | FB23: 0.06251289589 | FC23: 0.1066381975 | FD23: 0.06157777398 | FE23: 0.1501899193 | FF23: 400 | FG23: 0.06307 | FH23: 0.08074 | FI23: 400 | FJ23: 0.0633 | FK23: 0.0781 | FL23: 0.0624 | FM23: 0.1133 | FN23: 0.0616 | FO23: 0.1548 | FP23: 400 | FQ23: 0.064 | FR23: 0.0696 | FS23: 400 | FT23: 0.06304249375 | FU23: 0.09569948352 | FV23: 0.0623770567 | FW23: 0.1102206612 | FX23: 0.06154462414 | FY23: 0.153772383 | FZ23: 400 | GA23: 0.06364358954 | GB23: 0.08676639694 | GC23: 400 | GD23: 0.06252796243 | GE23: 0.1062656403 | GF23: 0.06205781471 | GG23: 0.120786818 | GH23: 0.06146636184 | GI23: 0.1643385398 | GJ23: 400 | GK23: 0.0624 | GL23: 0.09631 | GM23: 400 | GN23: 0.09461542885 | GO23: 0.1166247655 | GP23: 0.09541175384 | GQ23: 0.0730730437 | GR23: 0.0968747047 | GS23: 0.0730730437 | GT23: 0.09591254561 | GU23: 0.0875942214 | GV23: 0.09473075405 | GW23: 0.1311459432 | GX23: 400 | GY23: 0.09460715164 | GZ23: 0.1176200009 | HA23: 0.09537864499 | HB23: 0.07406827909 | HC23: 0.09679241286 | HD23: 0.07406827909 | HE23: 0.09586237597 | HF23: 0.08858945678 | HG23: 0.09471874277 | HH23: 0.1321411786 | HI23: 400 | HJ23: 0.06172469482 | HK23: 0.125513922 | HL23: 0.06155818497 | HM23: 0.1400350997 | HN23: 0.06134728849 | HO23: 0.1835868215 | HP23: 400 | HQ23: 0.06177444362 | HR23: 0.1346995936 | HS23: 0.06158741654 | HT23: 0.1492207713 | HU23: 0.06135011189 | HV23: 0.1927724931 | HW23: 400 | HZ23: 400 | IC23: 400 | IF23: 400 | IG23: 0.1013656406 | IH23: 0.0799790321 | II23: 0.1007662949 | IJ23: 0.1235307539 | IK23: 0.1018 | IL23: 0.08 | IM23: 0.1013 | IN23: 0.0945 | IO23: 0.1008 | IP23: 0.1381 | IQ23: 400 | IR23: 0.1016299338 | IS23: 0.07100270266 | IT23: 0.10221828 | IU23: 0.07100270266 | IV23: 0.10221828 | IW23: 0.07100270266 | IX23: 400
A24: 21 | B24: 500 | M24: 500 | X24: 500 | AI24: 500 | AT24: 500 | BC24: 500 | BH24: 500 | BQ24: 500 | BR24: 0.04602440242 | BS24: 0.1257489834 | BT24: 0.04727443482 | BU24: 0.08219726163 | BV24: 0.04908959653 | BW24: 0.08219726163 | BX24: 0.04776382792 | BY24: 0.09671843933 | BZ24: 0.04612548662 | CA24: 0.1402701611 | CH24: 500 | CY24: 500 | DF24: 500 | DG24: 0.05011194234 | DH24: 0.07906101181 | DI24: 0.04881248592 | DJ24: 0.1226127336 | DK24: 0.0501 | DL24: 0.0772 | DM24: 0.051 | DN24: 0.0914 | DO24: 0.049 | DP24: 0.1353 | DQ24: 500 | DX24: 500 | EE24: 500 | EL24: 500 | EO24: 500 | EP24: 0.0503 | EQ24: 0.0864 | ER24: 0.0503 | ES24: 0.101 | ET24: 0.0489 | EU24: 0.1445 | EV24: 500 | EY24: 500 | EZ24: 0.05096402069 | FA24: 0.08987694964 | FB24: 0.04998455143 | FC24: 0.1043981273 | FD24: 0.0487654865 | FE24: 0.1479498491 | FF24: 500 | FI24: 500 | FJ24: 0.0501 | FK24: 0.0772 | FL24: 0.0499 | FM24: 0.1086 | FN24: 0.0487 | FO24: 0.1522 | FP24: 500 | FS24: 500 | FT24: 0.05070001923 | FU24: 0.09315092378 | FV24: 0.0498216899 | FW24: 0.1076721015 | FX24: 0.04872586501 | FY24: 0.1512238233 | FZ24: 500 | GC24: 500 | GD24: 0.05006537582 | GE24: 0.1028959121 | GF24: 0.04942877794 | GG24: 0.1174170898 | GH24: 0.04862981906 | GI24: 0.1609688116 | GJ24: 500 | GM24: 500 | GN24: 0.07414537116 | GO24: 0.1169217136 | GP24: 0.07515660158 | GQ24: 0.07336999179 | GR24: 0.07694145581 | GS24: 0.07336999179 | GT24: 0.07574650187 | GU24: 0.08789116949 | GV24: 0.07427941331 | GW24: 0.1314428913 | GX24: 500 | GY24: 0.07413450354 | GZ24: 0.1179512759 | HA24: 0.07511313107 | HB24: 0.07439955409 | HC24: 0.07683577323 | HD24: 0.07439955409 | HE24: 0.07568209427 | HF24: 0.08892073178 | HG24: 0.07426400062 | HH24: 0.1324724536 | HI24: 500 | HJ24: 0.0493382183 | HK24: 0.1205843012 | HL24: 0.04898073774 | HM24: 0.1351054788 | HN24: 0.04852886159 | HO24: 0.1786572007 | HP24: 500 | HQ24: 0.04909016941 | HR24: 0.1293541108 | HS24: 0.04882099203 | HT24: 0.1438752885 | HU24: 0.04847993989 | HV24: 0.1874270103 | HW24: 500 | HZ24: 500 | IC24: 500 | IF24: 500 | IG24: 0.07967083854 | IH24: 0.07906921137 | II24: 0.07887964229 | IJ24: 0.1226209332 | IK24: 0.0802 | IL24: 0.0791 | IM24: 0.0796 | IN24: 0.0936 | IO24: 0.0789 | IP24: 0.1371 | IQ24: 500 | IX24: 500
A25: 22 | B25: 630 | M25: 630 | X25: 630 | AI25: 630 | AT25: 630 | BC25: 630 | BH25: 630 | BQ25: 630 | CH25: 630 | CY25: 630 | DF25: 630 | DG25: 0.04052220949 | DH25: 0.07829309593 | DI25: 0.04052220949 | DJ25: 0.07829309593 | DK25: 0.0415 | DL25: 0.0766 | DM25: 0.0415 | DN25: 0.0911 | DO25: 0.039 | DP25: 0.1347 | DQ25: 630 | DX25: 630 | EE25: 630 | EL25: 630 | EO25: 630 | EP25: 0.0408 | EQ25: 0.0843 | ER25: 0.0408 | ES25: 0.0988 | ET25: 0.0389 | EU25: 0.1424 | EV25: 630 | EY25: 630 | EZ25: 0.04157581073 | FA25: 0.0872224533 | FB25: 0.04030978602 | FC25: 0.101743631 | FD25: 0.03874057725 | FE25: 0.1452953528 | FF25: 630 | FI25: 630 | FJ25: 0.0415 | FK25: 0.0766 | FL25: 0.0403 | FM25: 0.1056 | FN25: 0.0387 | FO25: 0.1491 | FP25: 630 | FS25: 630 | FT25: 0.04125986138 | FU25: 0.09023686372 | FV25: 0.04011555344 | FW25: 0.1047580414 | FX25: 0.03869354378 | FY25: 0.1483097632 | FZ25: 630 | GC25: 630 | GD25: 0.04048367603 | GE25: 0.09927932091 | GF25: 0.03963653364 | GG25: 0.1138004986 | GH25: 0.03857694309 | GI25: 0.1573522204 | GJ25: 630 | GM25: 630 | GX25: 630 | HI25: 630 | HJ25: 0.03955461532 | HK25: 0.1162650793 | HL25: 0.03906927015 | HM25: 0.130786257 | HN25: 0.03845713982 | HO25: 0.1743379788 | HP25: 630 | HQ25: 0.03922598655 | HR25: 0.1244963442 | HS25: 0.03885448843 | HT25: 0.1390175219 | HU25: 0.03838467068 | HV25: 0.1825692437 | HW25: 630 | HZ25: 630 | IC25: 630 | IF25: 630 | IQ25: 630 | IX25: 630
A26: 23 | B26: 800 | M26: 800 | X26: 800 | AI26: 800 | AT26: 800 | BC26: 800 | BH26: 800 | BQ26: 800 | CH26: 800 | CY26: 800 | DF26: 800 | DG26: 0.0338116813 | DH26: 0.07775122291 | DI26: 0.0338116813 | DJ26: 0.07775122291 | DK26: 0.0348 | DL26: 0.0757 | DM26: 0.0348 | DN26: 0.0903 | DO26: 0.0318 | DP26: 0.1338 | DQ26: 800 | DX26: 800 | EE26: 800 | EL26: 800 | EO26: 800 | EP26: 0.034 | EQ26: 0.0822 | ER26: 0.034 | ES26: 0.0967 | ET26: 0.0316 | EU26: 0.1403 | EV26: 800 | EY26: 800 | EZ26: 0.03488955055 | FA26: 0.08492874832 | FB26: 0.03334563834 | FC26: 0.09944992601 | FD26: 0.03144218517 | FE26: 0.1430016478 | FF26: 800 | FI26: 800 | FJ26: 0.0348 | FK26: 0.0757 | FL26: 0.0334 | FM26: 0.103 | FN26: 0.0315 | FO26: 0.1465 | FP26: 800 | FS26: 800 | FT26: 0.03450310902 | FU26: 0.08794718907 | FV26: 0.03310910342 | FW26: 0.1024683668 | FX26: 0.03138524601 | FY26: 0.1460200886 | FZ26: 800 | GC26: 800 | GD26: 0.03363625985 | GE26: 0.09611579284 | GF26: 0.03257625422 | GG26: 0.1106369705 | GH26: 0.03125623399 | GI26: 0.1541886923 | GJ26: 800 | GM26: 800 | GX26: 800 | HI26: 800 | HJ26: 0.03254500403 | HK26: 0.112113028 | HL26: 0.03191994601 | HM26: 0.1266342057 | HN26: 0.03113403519 | HO26: 0.1701859275 | HP26: 800 | HQ26: 0.0321147137 | HR26: 0.1200904453 | HS26: 0.03163296447 | HT26: 0.134611623 | HU26: 0.03102523121 | HV26: 0.1781633448 | HW26: 800 | HZ26: 800 | IC26: 800 | IF26: 800 | IQ26: 800 | IX26: 800
A27: 24 | B27: 1000 | M27: 1000 | X27: 1000 | AI27: 1000 | AT27: 1000 | BC27: 1000 | BH27: 1000 | BQ27: 1000 | CH27: 1000 | CY27: 1000 | DF27: 1000 | DG27: 0.02942960638 | DH27: 0.07591388451 | DI27: 0.02942960638 | DJ27: 0.07591388451 | DK27: 0.0303 | DL27: 0.0743 | DM27: 0.0303 | DN27: 0.0889 | DO27: 0.0268 | DP27: 0.1324 | DQ27: 1000 | DX27: 1000 | EE27: 1000 | EL27: 1000 | EO27: 1000 | EP27: 0.0295 | EQ27: 0.0798 | ER27: 0.0295 | ES27: 0.0943 | ET27: 0.0266 | EU27: 0.1378 | EV27: 1000 | EY27: 1000 | EZ27: 0.03033697108 | FA27: 0.08223750374 | FB27: 0.02852468227 | FC27: 0.09675868143 | FD27: 0.02630738158 | FE27: 0.1403104032 | FF27: 1000 | FI27: 1000 | FJ27: 0.0303 | FK27: 0.0743 | FL27: 0.0288 | FM27: 0.1001 | FN27: 0.0264 | FO27: 0.1437 | FP27: 1000 | FS27: 1000 | FT27: 0.02992438526 | FU27: 0.08496264261 | FV27: 0.02827374538 | FW27: 0.0994838203 | FX27: 0.02624750112 | FY27: 0.1430355421 | FZ27: 1000 | GC27: 1000 | GD27: 0.02893562662 | GE27: 0.09277665453 | GF27: 0.02766944636 | GG27: 0.1072978322 | GH27: 0.02610233021 | GI27: 0.150849554 | GJ27: 1000 | GM27: 1000 | GX27: 1000 | HI27: 1000 | HP27: 1000 | HW27: 1000 | HZ27: 1000 | IC27: 1000 | IF27: 1000 | IQ27: 1000 | IX27: 1000
B28: Size | C28: =F38 -> 150 | D28: =F38 -> 150 | E28: =F38 -> 150 | F28: =F38 -> 150 | G28: =F38 -> 150 | H28: =F38 -> 150 | I28: =F38 -> 150 | J28: =F38 -> 150 | K28: =F38 -> 150 | L28: =F38 -> 150 | N28: =L28 -> 150 | O28: =N28 -> 150 | P28: 150 | Q28: 150 | R28: =F38 -> 150 | S28: =F38 -> 150 | T28: =F38 -> 150 | U28: =F38 -> 150 | V28: =F38 -> 150 | W28: =F38 -> 150 | Y28: =W28 -> 150 | Z28: =Y28 -> 150 | AA28: =Z28 -> 150 | AB28: =AA28 -> 150 | AC28: =F38 -> 150 | AD28: =F38 -> 150 | AE28: =F38 -> 150 | AF28: =F38 -> 150 | AG28: =F38 -> 150 | AH28: =F38 -> 150 | AJ28: =AH28 -> 150 | AK28: =AJ28 -> 150 | AL28: =AK28 -> 150 | AM28: =AL28 -> 150 | AN28: =F38 -> 150 | AO28: =F38 -> 150 | AP28: =F38 -> 150 | AQ28: =F38 -> 150 | AR28: =F38 -> 150 | AS28: =F38 -> 150 | AU28: =F38 -> 150 | AV28: =F38 -> 150 | AW28: =F38 -> 150 | AX28: =F38 -> 150 | AY28: =F38 -> 150 | AZ28: =F38 -> 150 | BA28: =F38 -> 150 | BB28: =F38 -> 150 | BD28: =F38 -> 150 | BE28: =F38 -> 150 | BF28: =F38 -> 150 | BG28: =F38 -> 150 | BI28: =F38 -> 150 | BJ28: =F38 -> 150 | BK28: =F38 -> 150 | BL28: =F38 -> 150 | BM28: =F38 -> 150 | BN28: =F38 -> 150 | BO28: =F38 -> 150 | BP28: =F38 -> 150 | BR28: =BP28 -> 150 | BS28: =BR28 -> 150 | BT28: =BS28 -> 150 | BU28: =BT28 -> 150 | BV28: =F38 -> 150 | BW28: =F38 -> 150 | BX28: =F38 -> 150 | BY28: =F38 -> 150 | BZ28: =F38 -> 150 | CA28: =F38 -> 150 | CB28: =F38 -> 150 | CC28: =F38 -> 150 | CD28: =F38 -> 150 | CE28: =F38 -> 150 | CF28: =F38 -> 150 | CG28: =F38 -> 150 | CI28: =CG28 -> 150 | CJ28: =CI28 -> 150 | CK28: =CJ28 -> 150 | CL28: =CK28 -> 150 | CM28: =CL28 -> 150 | CN28: =CM28 -> 150 | CO28: =F38 -> 150 | CP28: =F38 -> 150 | CQ28: =F38 -> 150 | CR28: =F38 -> 150 | CS28: =F38 -> 150 | CT28: =F38 -> 150 | CU28: =F38 -> 150 | CV28: =F38 -> 150 | CW28: =F38 -> 150 | CX28: =F38 -> 150 | CZ28: =F38 -> 150 | DA28: =F38 -> 150 | DB28: =F38 -> 150 | DC28: =F38 -> 150 | DD28: =F38 -> 150 | DE28: =F38 -> 150 | DG28: =DE28 -> 150 | DH28: =DG28 -> 150 | DI28: =DH28 -> 150 | DJ28: =DI28 -> 150 | DK28: =DJ28 -> 150 | DL28: =DK28 -> 150 | DM28: =F38 -> 150 | DN28: =F38 -> 150 | DO28: =F38 -> 150 | DP28: =F38 -> 150 | DR28: =F38 -> 150 | DS28: =F38 -> 150 | DT28: =F38 -> 150 | DU28: =F38 -> 150 | DV28: =F38 -> 150 | DW28: =F38 -> 150 | DY28: =F38 -> 150 | DZ28: =F38 -> 150 | EA28: =F38 -> 150 | EB28: =F38 -> 150 | EC28: =F38 -> 150 | ED28: =F38 -> 150 | EF28: =F38 -> 150 | EG28: =F38 -> 150 | EH28: =F38 -> 150 | EI28: =F38 -> 150 | EJ28: =F38 -> 150 | EK28: =F38 -> 150 | EM28: =F38 -> 150 | EN28: =F38 -> 150 | EP28: =F38 -> 150 | EQ28: =F38 -> 150 | ER28: =F38 -> 150 | ES28: =F38 -> 150 | ET28: =F38 -> 150 | EU28: =F38 -> 150 | EW28: =F38 -> 150 | EX28: =F38 -> 150 | EZ28: =F38 -> 150 | FA28: =F38 -> 150 | FB28: =F38 -> 150 | FC28: =F38 -> 150 | FD28: =F38 -> 150 | FE28: =F38 -> 150 | FG28: =F38 -> 150 | FH28: =F38 -> 150 | FJ28: =F38 -> 150 | FK28: =F38 -> 150 | FL28: =F38 -> 150 | FM28: =F38 -> 150 | FN28: =F38 -> 150 | FO28: =F38 -> 150 | FQ28: =F38 -> 150 | FR28: =F38 -> 150 | FT28: =F38 -> 150 | FU28: =F38 -> 150 | FV28: =F38 -> 150 | FW28: =F38 -> 150 | FX28: =F38 -> 150 | FY28: =F38 -> 150 | GA28: =F38 -> 150 | GB28: =F38 -> 150 | GD28: =F38 -> 150 | GE28: =F38 -> 150 | GF28: =F38 -> 150 | GG28: =F38 -> 150 | GH28: =F38 -> 150 | GI28: =F38 -> 150 | GK28: =F38 -> 150 | GL28: =F38 -> 150 | GN28: =GL28 -> 150 | GO28: =GN28 -> 150 | GP28: 150 | GQ28: 150 | GR28: 150 | GS28: 150 | GT28: =F38 -> 150 | GU28: =F38 -> 150 | GV28: =F38 -> 150 | GW28: =F38 -> 150 | GY28: =GW28 -> 150 | GZ28: =GY28 -> 150 | HA28: 150 | HB28: 150 | HC28: 150 | HD28: 150 | HE28: =F38 -> 150 | HF28: =F38 -> 150 | HG28: =F38 -> 150 | HH28: =F38 -> 150 | HJ28: =F38 -> 150 | HK28: =F38 -> 150 | HL28: =F38 -> 150 | HM28: =F38 -> 150 | HN28: =F38 -> 150 | HO28: =F38 -> 150 | HQ28: =F38 -> 150 | HR28: =F38 -> 150 | HS28: =F38 -> 150 | HT28: =F38 -> 150 | HU28: =F38 -> 150 | HV28: =F38 -> 150 | HX28: =F38 -> 150 | HY28: =F38 -> 150 | IA28: =F38 -> 150 | IB28: =F38 -> 150 | ID28: =F38 -> 150 | IE28: =F38 -> 150 | IG28: =F38 -> 150 | IH28: =F38 -> 150 | II28: =F38 -> 150 | IJ28: =F38 -> 150 | IK28: =F38 -> 150 | IL28: =F38 -> 150 | IM28: =F38 -> 150 | IN28: =F38 -> 150 | IO28: =F38 -> 150 | IP28: =F38 -> 150 | IR28: =F38 -> 150 | IS28: =F38 -> 150 | IT28: =F38 -> 150 | IU28: =F38 -> 150 | IV28: =F38 -> 150 | IW28: =F38 -> 150 | IY28: =F38 -> 150 | IZ28: =F38 -> 150 | JA28: =F38 -> 150 | JB28: =F38 -> 150 | JC28: =F38 -> 150 | JD28: =F38 -> 150
B29: Status | C29: =I38 -> 16 | D29: =I38 -> 16 | E29: =I38 -> 16 | F29: =I38 -> 16 | G29: =I38 -> 16 | H29: =I38 -> 16 | I29: =I38 -> 16 | J29: =I38 -> 16 | K29: =I38 -> 16 | L29: =I38 -> 16 | N29: =L29 -> 16 | O29: 16 | P29: 16 | Q29: 16 | R29: =I38 -> 16 | S29: =I38 -> 16 | T29: =I38 -> 16 | U29: =I38 -> 16 | V29: =I38 -> 16 | W29: =I38 -> 16 | Y29: =W29 -> 16 | Z29: =W29 -> 16 | AA29: =Z29 -> 16 | AB29: =AA29 -> 16 | AC29: =I38 -> 16 | AD29: =I38 -> 16 | AE29: =I38 -> 16 | AF29: =I38 -> 16 | AG29: =I38 -> 16 | AH29: =I38 -> 16 | AJ29: =AH29 -> 16 | AK29: =AH29 -> 16 | AL29: =AK29 -> 16 | AM29: =AL29 -> 16 | AN29: =I38 -> 16 | AO29: =I38 -> 16 | AP29: =I38 -> 16 | AQ29: =I38 -> 16 | AR29: =I38 -> 16 | AS29: =I38 -> 16 | AU29: =I38 -> 16 | AV29: =I38 -> 16 | AW29: =I38 -> 16 | AX29: =I38 -> 16 | AY29: =I38 -> 16 | AZ29: =I38 -> 16 | BA29: =I38 -> 16 | BB29: =I38 -> 16 | BD29: =I38 -> 16 | BE29: =I38 -> 16 | BF29: =I38 -> 16 | BG29: =I38 -> 16 | BI29: =I38 -> 16 | BJ29: =I38 -> 16 | BK29: =I38 -> 16 | BL29: =I38 -> 16 | BM29: =I38 -> 16 | BN29: =I38 -> 16 | BO29: =I38 -> 16 | BP29: =I38 -> 16 | BR29: =BP29 -> 16 | BS29: =BP29 -> 16 | BT29: =BS29 -> 16 | BU29: =BT29 -> 16 | BV29: =I38 -> 16 | BW29: =I38 -> 16 | BX29: =I38 -> 16 | BY29: =I38 -> 16 | BZ29: =I38 -> 16 | CA29: =I38 -> 16 | CB29: =I38 -> 16 | CC29: =I38 -> 16 | CD29: =I38 -> 16 | CE29: =I38 -> 16 | CF29: =I38 -> 16 | CG29: =I38 -> 16 | CI29: =CG29 -> 16 | CJ29: =CG29 -> 16 | CK29: =CJ29 -> 16 | CL29: =CK29 -> 16 | CM29: =CL29 -> 16 | CN29: =CM29 -> 16 | CO29: =I38 -> 16 | CP29: =I38 -> 16 | CQ29: =I38 -> 16 | CR29: =I38 -> 16 | CS29: =I38 -> 16 | CT29: =I38 -> 16 | CU29: =I38 -> 16 | CV29: =I38 -> 16 | CW29: =I38 -> 16 | CX29: =I38 -> 16 | CZ29: =I38 -> 16 | DA29: =I38 -> 16 | DB29: =I38 -> 16 | DC29: =I38 -> 16 | DD29: =I38 -> 16 | DE29: =I38 -> 16 | DG29: =DE29 -> 16 | DH29: =DE29 -> 16 | DI29: =DH29 -> 16 | DJ29: =DI29 -> 16 | DK29: =DJ29 -> 16 | DL29: =DK29 -> 16 | DM29: =I38 -> 16 | DN29: =I38 -> 16 | DO29: =I38 -> 16 | DP29: =I38 -> 16 | DR29: =I38 -> 16 | DS29: =I38 -> 16 | DT29: =I38 -> 16 | DU29: =I38 -> 16 | DV29: =I38 -> 16 | DW29: =I38 -> 16 | DY29: =I38 -> 16 | DZ29: =I38 -> 16 | EA29: =I38 -> 16 | EB29: =I38 -> 16 | EC29: =I38 -> 16 | ED29: =I38 -> 16 | EF29: =I38 -> 16 | EG29: =I38 -> 16 | EH29: =I38 -> 16 | EI29: =I38 -> 16 | EJ29: =I38 -> 16 | EK29: =I38 -> 16 | EM29: =I38 -> 16 | EN29: =I38 -> 16 | EP29: =I38 -> 16 | EQ29: =I38 -> 16 | ER29: =I38 -> 16 | ES29: =I38 -> 16 | ET29: =I38 -> 16 | EU29: =I38 -> 16 | EW29: =I38 -> 16 | EX29: =I38 -> 16 | EZ29: =I38 -> 16 | FA29: =I38 -> 16 | FB29: =I38 -> 16 | FC29: =I38 -> 16 | FD29: =I38 -> 16 | FE29: =I38 -> 16 | FG29: =I38 -> 16 | FH29: =I38 -> 16 | FJ29: =I38 -> 16 | FK29: =I38 -> 16 | FL29: =I38 -> 16 | FM29: =I38 -> 16 | FN29: =I38 -> 16 | FO29: =I38 -> 16 | FQ29: =I38 -> 16 | FR29: =I38 -> 16 | FT29: =I38 -> 16 | FU29: =I38 -> 16 | FV29: =I38 -> 16 | FW29: =I38 -> 16 | FX29: =I38 -> 16 | FY29: =I38 -> 16 | GA29: =I38 -> 16 | GB29: =I38 -> 16 | GD29: =I38 -> 16 | GE29: =I38 -> 16 | GF29: =I38 -> 16 | GG29: =I38 -> 16 | GH29: =I38 -> 16 | GI29: =I38 -> 16 | GK29: =I38 -> 16 | GL29: =I38 -> 16 | GN29: =GL29 -> 16 | GO29: 16 | GP29: 16 | GQ29: 16 | GR29: 16 | GS29: 16 | GT29: =I38 -> 16 | GU29: =I38 -> 16 | GV29: =I38 -> 16 | GW29: =I38 -> 16 | GY29: =GW29 -> 16 | GZ29: 16 | HA29: 16 | HB29: 16 | HC29: 16 | HD29: 16 | HE29: =I38 -> 16 | HF29: =I38 -> 16 | HG29: =I38 -> 16 | HH29: =I38 -> 16 | HJ29: =I38 -> 16 | HK29: =I38 -> 16 | HL29: =I38 -> 16 | HM29: =I38 -> 16 | HN29: =I38 -> 16 | HO29: =I38 -> 16 | HQ29: =I38 -> 16 | HR29: =I38 -> 16 | HS29: =I38 -> 16 | HT29: =I38 -> 16 | HU29: =I38 -> 16 | HV29: =I38 -> 16 | HX29: =I38 -> 16 | HY29: =I38 -> 16 | IA29: =I38 -> 16 | IB29: =I38 -> 16 | ID29: =I38 -> 16 | IE29: =I38 -> 16 | IG29: =I38 -> 16 | IH29: =I38 -> 16 | II29: =I38 -> 16 | IJ29: =I38 -> 16 | IK29: =I38 -> 16 | IL29: =I38 -> 16 | IM29: =I38 -> 16 | IN29: =I38 -> 16 | IO29: =I38 -> 16 | IP29: =I38 -> 16 | IR29: =I38 -> 16 | IS29: =I38 -> 16 | IT29: =I38 -> 16 | IU29: =I38 -> 16 | IV29: =I38 -> 16 | IW29: =I38 -> 16 | IY29: =I38 -> 16 | IZ29: =I38 -> 16 | JA29: =I38 -> 16 | JB29: =I38 -> 16 | JC29: =I38 -> 16 | JD29: =I38 -> 16
C30: =C34 -> 2 | D30: =C40 -> Space | N30: =C30 -> 2 | O30: =D30 -> Space | Y30: =N30 -> 2 | Z30: =O30 -> Space | AJ30: =N30 -> 2 | AK30: =O30 -> Space | BR30: =N30 -> 2 | BS30: =O30 -> Space | CI30: =N30 -> 2 | CJ30: =O30 -> Space | DG30: =N30 -> 2 | DH30: =O30 -> Space | GN30: =N30 -> 2 | GO30: =O30 -> Space | GY30: =Y30 -> 2 | GZ30: =Z30 -> Space | IG30: =C34 -> 2 | IH30: =C40 -> Space
B31: R+XL | C31: =CHOOSE(C29,C4,C5,C6,C7,C8,C9,C10,C11,C12,C13,C14,C15,C16,C17,C18,C19,C20,C21,C22,C23,C24,C25,C26,C27) -> 0.1495619587 | D31: 0.07483440501 | E31: 0.1490795132 | F31: 0.1183861268 | G31: 0.1504784349 | H31: 0.07483440501 | I31: 0.1498852209 | J31: 0.0893555827 | K31: 0.1491549866 | L31: 0.1329073045 | N31: =CHOOSE(N29,N4,N5,N6,N7,N8,N9,N10,N11,N12,N13,N14,N15,N16,N17,N18,N19,N20,N21,N22,N23,N24,N25,N26,N27) -> 0.1555265153 | O31: =CHOOSE(O29,O4,O5,O6,O7,O8,O9,O10,O11,O12,O13,O14,O15,O16,O17,O18,O19,O20,O21,O22,O23,O24,O25,O26,O27) -> 0.07299364298 | P31: =CHOOSE(P29,P4,P5,P6,P7,P8,P9,P10,P11,P12,P13,P14,P15,P16,P17,P18,P19,P20,P21,P22,P23,P24,P25,P26,P27) -> 0.1550415508 | Q31: 0.1165453648 | R31: 0.1564526038 | S31: 0.07299364298 | T31: 0.1558537991 | U31: 0.08751482068 | V31: 0.1551178066 | W31: 0.1310665425 | Y31: =CHOOSE(Y29,Y4,Y5,Y6,Y7,Y8,Y9,Y10,Y11,Y12,Y13,Y14,Y15,Y16,Y17,Y18,Y19,Y20,Y21,Y22,Y23,Y24,Y25,Y26,Y27) -> 0 | Z31: 0 | AA31: 0 | AB31: 0 | AC31: 0 | AD31: 0 | AE31: 0 | AF31: 0 | AG31: 0 | AH31: 0 | AJ31: =CHOOSE(AJ29,AJ4,AJ5,AJ6,AJ7,AJ8,AJ9,AJ10,AJ11,AJ12,AJ13,AJ14,AJ15,AJ16,AJ17,AJ18,AJ19,AJ20,AJ21,AJ22,AJ23,AJ24,AJ25,AJ26,AJ27) -> 0 | AK31: =CHOOSE(AK29,AK4,AK5,AK6,AK7,AK8,AK9,AK10,AK11,AK12,AK13,AK14,AK15,AK16,AK17,AK18,AK19,AK20,AK21,AK22,AK23,AK24,AK25,AK26,AK27) -> 0 | AL31: =CHOOSE(AL29,AL4,AL5,AL6,AL7,AL8,AL9,AL10,AL11,AL12,AL13,AL14,AL15,AL16,AL17,AL18,AL19,AL20,AL21,AL22,AL23,AL24,AL25,AL26,AL27) -> 0 | AM31: =CHOOSE(AM29,AM4,AM5,AM6,AM7,AM8,AM9,AM10,AM11,AM12,AM13,AM14,AM15,AM16,AM17,AM18,AM19,AM20,AM21,AM22,AM23,AM24,AM25,AM26,AM27) -> 0 | AN31: =CHOOSE(AN29,AN4,AN5,AN6,AN7,AN8,AN9,AN10,AN11,AN12,AN13,AN14,AN15,AN16,AN17,AN18,AN19,AN20,AN21,AN22,AN23,AN24,AN25,AN26,AN27) -> 0 | AO31: 0 | AP31: 0 | AQ31: 0 | AR31: 0 | AS31: 0 | AU31: =CHOOSE(AU29,AU4,AU5,AU6,AU7,AU8,AU9,AU10,AU11,AU12,AU13,AU14,AU15,AU16,AU17,AU18,AU19,AU20,AU21,AU22,AU23,AU24,AU25,AU26,AU27) -> 0 | AV31: 0 | AW31: 0 | AX31: 0 | AY31: 0 | AZ31: 0 | BA31: 0 | BB31: 0 | BD31: =CHOOSE(BD29,BD4,BD5,BD6,BD7,BD8,BD9,BD10,BD11,BD12,BD13,BD14,BD15,BD16,BD17,BD18,BD19,BD20,BD21,BD22,BD23,BD24,BD25,BD26,BD27) -> 0 | BE31: =CHOOSE(BE29,BE4,BE5,BE6,BE7,BE8,BE9,BE10,BE11,BE12,BE13,BE14,BE15,BE16,BE17,BE18,BE19,BE20,BE21,BE22,BE23,BE24,BE25,BE26,BE27) -> 0 | BF31: =CHOOSE(BF29,BF4,BF5,BF6,BF7,BF8,BF9,BF10,BF11,BF12,BF13,BF14,BF15,BF16,BF17,BF18,BF19,BF20,BF21,BF22,BF23,BF24,BF25,BF26,BF27) -> 0 | BG31: =CHOOSE(BG29,BG4,BG5,BG6,BG7,BG8,BG9,BG10,BG11,BG12,BG13,BG14,BG15,BG16,BG17,BG18,BG19,BG20,BG21,BG22,BG23,BG24,BG25,BG26,BG27) -> 0 | BI31: =CHOOSE(BI29,BI4,BI5,BI6,BI7,BI8,BI9,BI10,BI11,BI12,BI13,BI14,BI15,BI16,BI17,BI18,BI19,BI20,BI21,BI22,BI23,BI24,BI25,BI26,BI27) -> 0 | BJ31: 0 | BK31: 0 | BL31: 0 | BM31: 0 | BN31: 0 | BO31: 0 | BP31: 0 | BR31: =CHOOSE(BR29,BR4,BR5,BR6,BR7,BR8,BR9,BR10,BR11,BR12,BR13,BR14,BR15,BR16,BR17,BR18,BR19,BR20,BR21,BR22,BR23,BR24,BR25,BR26,BR27) -> 0.1490230833 | BS31: =CHOOSE(BS29,BS4,BS5,BS6,BS7,BS8,BS9,BS10,BS11,BS12,BS13,BS14,BS15,BS16,BS17,BS18,BS19,BS20,BS21,BS22,BS23,BS24,BS25,BS26,BS27) -> 0.1319630543 | BT31: =CHOOSE(BT29,BT4,BT5,BT6,BT7,BT8,BT9,BT10,BT11,BT12,BT13,BT14,BT15,BT16,BT17,BT18,BT19,BT20,BT21,BT22,BT23,BT24,BT25,BT26,BT27) -> 0.1493362391 | BU31: =CHOOSE(BU29,BU4,BU5,BU6,BU7,BU8,BU9,BU10,BU11,BU12,BU13,BU14,BU15,BU16,BU17,BU18,BU19,BU20,BU21,BU22,BU23,BU24,BU25,BU26,BU27) -> 0.08841133248 | BV31: =CHOOSE(BV29,BV4,BV5,BV6,BV7,BV8,BV9,BV10,BV11,BV12,BV13,BV14,BV15,BV16,BV17,BV18,BV19,BV20,BV21,BV22,BV23,BV24,BV25,BV26,BV27) -> 0.1499155688 | BW31: 0.08841133248 | BX31: 0.14953981 | BY31: 0.1029325102 | BZ31: 0.1490715466 | CA31: 0.146484232 | CB31: 0.1499 | CC31: 0.07364 | CD31: 0.1499 | CE31: 0.07364 | CF31: 0.1497 | CG31: 0.08828 | CI31: =CHOOSE(CI29,CI4,CI5,CI6,CI7,CI8,CI9,CI10,CI11,CI12,CI13,CI14,CI15,CI16,CI17,CI18,CI19,CI20,CI21,CI22,CI23,CI24,CI25,CI26,CI27) -> 0 | CJ31: 0 | CK31: 0 | CL31: 0 | CM31: 0 | CN31: 0 | CO31: =CHOOSE(CO29,CO4,CO5,CO6,CO7,CO8,CO9,CO10,CO11,CO12,CO13,CO14,CO15,CO16,CO17,CO18,CO19,CO20,CO21,CO22,CO23,CO24,CO25,CO26,CO27) -> 0 | CP31: 0 | CQ31: 0 | CR31: 0 | CS31: 0 | CT31: 0 | CU31: 0 | CV31: 0 | CW31: 0 | CX31: 0 | CZ31: =CHOOSE(CZ29,CZ4,CZ5,CZ6,CZ7,CZ8,CZ9,CZ10,CZ11,CZ12,CZ13,CZ14,CZ15,CZ16,CZ17,CZ18,CZ19,CZ20,CZ21,CZ22,CZ23,CZ24,CZ25,CZ26,CZ27) -> 0.149902422 | DA31: 0.07546272877 | DB31: 0.1504462284 | DC31: 0.07546272877 | DD31: 0.1504462284 | DE31: 0.07546272877 | DG31: =CHOOSE(DG29,DG4,DG5,DG6,DG7,DG8,DG9,DG10,DG11,DG12,DG13,DG14,DG15,DG16,DG17,DG18,DG19,DG20,DG21,DG22,DG23,DG24,DG25,DG26,DG27) -> 0.1590778725 | DH31: 0.08430184937 | DI31: 0.158742878 | DJ31: 0.1278535712 | DK31: 0.1594 | DL31: 0.0819 | DM31: =CHOOSE(DM29,DM4,DM5,DM6,DM7,DM8,DM9,DM10,DM11,DM12,DM13,DM14,DM15,DM16,DM17,DM18,DM19,DM20,DM21,DM22,DM23,DM24,DM25,DM26,DM27) -> 0.1594 | DN31: =CHOOSE(DN29,DN4,DN5,DN6,DN7,DN8,DN9,DN10,DN11,DN12,DN13,DN14,DN15,DN16,DN17,DN18,DN19,DN20,DN21,DN22,DN23,DN24,DN25,DN26,DN27) -> 0.0965 | DO31: =CHOOSE(DO29,DO4,DO5,DO6,DO7,DO8,DO9,DO10,DO11,DO12,DO13,DO14,DO15,DO16,DO17,DO18,DO19,DO20,DO21,DO22,DO23,DO24,DO25,DO26,DO27) -> 0.1588 | DP31: =CHOOSE(DP29,DP4,DP5,DP6,DP7,DP8,DP9,DP10,DP11,DP12,DP13,DP14,DP15,DP16,DP17,DP18,DP19,DP20,DP21,DP22,DP23,DP24,DP25,DP26,DP27) -> 0.14 | DR31: =CHOOSE(DR29,DR4,DR5,DR6,DR7,DR8,DR9,DR10,DR11,DR12,DR13,DR14,DR15,DR16,DR17,DR18,DR19,DR20,DR21,DR22,DR23,DR24,DR25,DR26,DR27) -> 0.1599 | DS31: 0.0702 | DT31: 0.1597 | DU31: 0.0707 | DV31: 0.1595 | DW31: 0.0854 | DY31: =CHOOSE(DY29,DY4,DY5,DY6,DY7,DY8,DY9,DY10,DY11,DY12,DY13,DY14,DY15,DY16,DY17,DY18,DY19,DY20,DY21,DY22,DY23,DY24,DY25,DY26,DY27) -> 0.1567 | DZ31: 0.0707 | EA31: 0.1567 | EB31: 0.0707 | EC31: 0.15995 | ED31: 0.0854 | EF31: =CHOOSE(EF29,EF4,EF5,EF6,EF7,EF8,EF9,EF10,EF11,EF12,EF13,EF14,EF15,EF16,EF17,EF18,EF19,EF20,EF21,EF22,EF23,EF24,EF25,EF26,EF27) -> 0.1594773654 | EG31: 0.09153828098 | EH31: 0.1591589503 | EI31: 0.1060594587 | EJ31: 0.1587612609 | EK31: 0.1496111805 | EM31: =CHOOSE(EM29,EM4,EM5,EM6,EM7,EM8,EM9,EM10,EM11,EM12,EM13,EM14,EM15,EM16,EM17,EM18,EM19,EM20,EM21,EM22,EM23,EM24,EM25,EM26,EM27) -> 0.1595 | EN31: =CHOOSE(EN29,EN4,EN5,EN6,EN7,EN8,EN9,EN10,EN11,EN12,EN13,EN14,EN15,EN16,EN17,EN18,EN19,EN20,EN21,EN22,EN23,EN24,EN25,EN26,EN27) -> 0.0752 | EP31: =CHOOSE(EP29,EP4,EP5,EP6,EP7,EP8,EP9,EP10,EP11,EP12,EP13,EP14,EP15,EP16,EP17,EP18,EP19,EP20,EP21,EP22,EP23,EP24,EP25,EP26,EP27) -> 0.1591 | EQ31: 0.0964 | ER31: 0.1591 | ES31: 0.111 | ET31: 0.1587 | EU31: 0.1545 | EW31: =CHOOSE(EW29,EW4,EW5,EW6,EW7,EW8,EW9,EW10,EW11,EW12,EW13,EW14,EW15,EW16,EW17,EW18,EW19,EW20,EW21,EW22,EW23,EW24,EW25,EW26,EW27) -> 0.1593 | EX31: =CHOOSE(EX29,EX4,EX5,EX6,EX7,EX8,EX9,EX10,EX11,EX12,EX13,EX14,EX15,EX16,EX17,EX18,EX19,EX20,EX21,EX22,EX23,EX24,EX25,EX26,EX27) -> 0.0852 | EZ31: =CHOOSE(EZ29,EZ4,EZ5,EZ6,EZ7,EZ8,EZ9,EZ10,EZ11,EZ12,EZ13,EZ14,EZ15,EZ16,EZ17,EZ18,EZ19,EZ20,EZ21,EZ22,EZ23,EZ24,EZ25,EZ26,EZ27) -> 0.1591892173 | FA31: 0.1043376985 | FB31: 0.1589803003 | FC31: 0.1188588762 | FD31: 0.1587175076 | FE31: 0.162410598 | FG31: =CHOOSE(FG29,FG4,FG5,FG6,FG7,FG8,FG9,FG10,FG11,FG12,FG13,FG14,FG15,FG16,FG17,FG18,FG19,FG20,FG21,FG22,FG23,FG24,FG25,FG26,FG27) -> 0.15927 | FH31: =CHOOSE(FH29,FH4,FH5,FH6,FH7,FH8,FH9,FH10,FH11,FH12,FH13,FH14,FH15,FH16,FH17,FH18,FH19,FH20,FH21,FH22,FH23,FH24,FH25,FH26,FH27) -> 0.09079 | FJ31: =CHOOSE(FJ29,FJ4,FJ5,FJ6,FJ7,FJ8,FJ9,FJ10,FJ11,FJ12,FJ13,FJ14,FJ15,FJ16,FJ17,FJ18,FJ19,FJ20,FJ21,FJ22,FJ23,FJ24,FJ25,FJ26,FJ27) -> 0.1594 | FK31: 0.0819 | FL31: 0.1589 | FM31: 0.1255 | FN31: 0.1587 | FO31: 0.169 | FQ31: =CHOOSE(FQ29,FQ4,FQ5,FQ6,FQ7,FQ8,FQ9,FQ10,FQ11,FQ12,FQ13,FQ14,FQ15,FQ16,FQ17,FQ18,FQ19,FQ20,FQ21,FQ22,FQ23,FQ24,FQ25,FQ26,FQ27) -> 0.1597 | FR31: =CHOOSE(FR29,FR4,FR5,FR6,FR7,FR8,FR9,FR10,FR11,FR12,FR13,FR14,FR15,FR16,FR17,FR18,FR19,FR20,FR21,FR22,FR23,FR24,FR25,FR26,FR27) -> 0.0707 | FT31: =CHOOSE(FT29,FT4,FT5,FT6,FT7,FT8,FT9,FT10,FT11,FT12,FT13,FT14,FT15,FT16,FT17,FT18,FT19,FT20,FT21,FT22,FT23,FT24,FT25,FT26,FT27) -> 0.1591097264 | FU31: 0.1090858768 | FV31: 0.1589308209 | FW31: 0.1236070545 | FX31: 0.1587053261 | FY31: 0.1671587763 | GA31: =CHOOSE(GA29,GA4,GA5,GA6,GA7,GA8,GA9,GA10,GA11,GA12,GA13,GA14,GA15,GA16,GA17,GA18,GA19,GA20,GA21,GA22,GA23,GA24,GA25,GA26,GA27) -> 0.1593005107 | GB31: =CHOOSE(GB29,GB4,GB5,GB6,GB7,GB8,GB9,GB10,GB11,GB12,GB13,GB14,GB15,GB16,GB17,GB18,GB19,GB20,GB21,GB22,GB23,GB24,GB25,GB26,GB27) -> 0.09873400022 | GD31: =CHOOSE(GD29,GD4,GD5,GD6,GD7,GD8,GD9,GD10,GD11,GD12,GD13,GD14,GD15,GD16,GD17,GD18,GD19,GD20,GD21,GD22,GD23,GD24,GD25,GD26,GD27) -> 0.1589388264 | GE31: 0.1227874555 | GF31: 0.1588241478 | GG31: 0.1373086332 | GH31: 0.1586789685 | GI31: 0.180860355 | GK31: =CHOOSE(GK29,GK4,GK5,GK6,GK7,GK8,GK9,GK10,GK11,GK12,GK13,GK14,GK15,GK16,GK17,GK18,GK19,GK20,GK21,GK22,GK23,GK24,GK25,GK26,GK27) -> 0.1589 | GL31: =CHOOSE(GL29,GL4,GL5,GL6,GL7,GL8,GL9,GL10,GL11,GL12,GL13,GL14,GL15,GL16,GL17,GL18,GL19,GL20,GL21,GL22,GL23,GL24,GL25,GL26,GL27) -> 0.1115 | GN31: =CHOOSE(GN29,GN4,GN5,GN6,GN7,GN8,GN9,GN10,GN11,GN12,GN13,GN14,GN15,GN16,GN17,GN18,GN19,GN20,GN21,GN22,GN23,GN24,GN25,GN26,GN27) -> 0.247934804 | GO31: 0.1192620765 | GP31: 0.248216392 | GQ31: 0.07571035471 | GR31: 0.2487880413 | GS31: 0.07476073684 | GT31: =CHOOSE(GT29,GT4,GT5,GT6,GT7,GT8,GT9,GT10,GT11,GT12,GT13,GT14,GT15,GT16,GT17,GT18,GT19,GT20,GT21,GT22,GT23,GT24,GT25,GT26,GT27) -> 0.2484279509 | GU31: =CHOOSE(GU29,GU4,GU5,GU6,GU7,GU8,GU9,GU10,GU11,GU12,GU13,GU14,GU15,GU16,GU17,GU18,GU19,GU20,GU21,GU22,GU23,GU24,GU25,GU26,GU27) -> 0.08928191454 | GV31: =CHOOSE(GV29,GV4,GV5,GV6,GV7,GV8,GV9,GV10,GV11,GV12,GV13,GV14,GV15,GV16,GV17,GV18,GV19,GV20,GV21,GV22,GV23,GV24,GV25,GV26,GV27) -> 0.2479845897 | GW31: =CHOOSE(GW29,GW4,GW5,GW6,GW7,GW8,GW9,GW10,GW11,GW12,GW13,GW14,GW15,GW16,GW17,GW18,GW19,GW20,GW21,GW22,GW23,GW24,GW25,GW26,GW27) -> 0.1328336363 | GY31: =CHOOSE(GY29,GY4,GY5,GY6,GY7,GY8,GY9,GY10,GY11,GY12,GY13,GY14,GY15,GY16,GY17,GY18,GY19,GY20,GY21,GY22,GY23,GY24,GY25,GY26,GY27) -> 0.2479316333 | GZ31: 0.121158443 | HA31: 0.2482037094 | HB31: 0.07760672121 | HC31: 0.2487264018 | HD31: 0.07760672121 | HE31: =CHOOSE(HE29,HE4,HE5,HE6,HE7,HE8,HE9,HE10,HE11,HE12,HE13,HE14,HE15,HE16,HE17,HE18,HE19,HE20,HE21,HE22,HE23,HE24,HE25,HE26,HE27) -> 0.2483902788 | HF31: =CHOOSE(HF29,HF4,HF5,HF6,HF7,HF8,HF9,HF10,HF11,HF12,HF13,HF14,HF15,HF16,HF17,HF18,HF19,HF20,HF21,HF22,HF23,HF24,HF25,HF26,HF27) -> 0.09212789891 | HG31: =CHOOSE(HG29,HG4,HG5,HG6,HG7,HG8,HG9,HG10,HG11,HG12,HG13,HG14,HG15,HG16,HG17,HG18,HG19,HG20,HG21,HG22,HG23,HG24,HG25,HG26,HG27) -> 0.2479755397 | HH31: =CHOOSE(HH29,HH4,HH5,HH6,HH7,HH8,HH9,HH10,HH11,HH12,HH13,HH14,HH15,HH16,HH17,HH18,HH19,HH20,HH21,HH22,HH23,HH24,HH25,HH26,HH27) -> 0.1356796207 | HJ31: =CHOOSE(HJ29,HJ4,HJ5,HJ6,HJ7,HJ8,HJ9,HJ10,HJ11,HJ12,HJ13,HJ14,HJ15,HJ16,HJ17,HJ18,HJ19,HJ20,HJ21,HJ22,HJ23,HJ24,HJ25,HJ26,HJ27) -> 0 | HK31: =CHOOSE(HK29,HK4,HK5,HK6,HK7,HK8,HK9,HK10,HK11,HK12,HK13,HK14,HK15,HK16,HK17,HK18,HK19,HK20,HK21,HK22,HK23,HK24,HK25,HK26,HK27) -> 0 | HL31: =CHOOSE(HL29,HL4,HL5,HL6,HL7,HL8,HL9,HL10,HL11,HL12,HL13,HL14,HL15,HL16,HL17,HL18,HL19,HL20,HL21,HL22,HL23,HL24,HL25,HL26,HL27,) -> 0 | HM31: =CHOOSE(HM29,HM4,HM5,HM6,HM7,HM8,HM9,HM10,HM11,HM12,HM13,HM14,HM15,HM16,HM17,HM18,HM19,HM20,HM21,HM22,HM23,HM24,HM25,HM26,HM27) -> 0 | HN31: =CHOOSE(HN29,HN4,HN5,HN6,HN7,HN8,HN9,HN10,HN11,HN12,HN13,HN14,HN15,HN16,HN17,HN18,HN19,HN20,HN21,HN22,HN23,HN24,HN25,HN26,HN27) -> 0 | HO31: =CHOOSE(HO29,HO4,HO5,HO6,HO7,HO8,HO9,HO10,HO11,HO12,HO13,HO14,HO15,HO16,HO17,HO18,HO19,HO20,HO21,HO22,HO23,HO24,HO25,HO26,HO27) -> 0 | HQ31: =CHOOSE(HQ29,HQ4,HQ5,HQ6,HQ7,HQ8,HQ9,HQ10,HQ11,HQ12,HQ13,HQ14,HQ15,HQ16,HQ17,HQ18,HQ19,HQ20,HQ21,HQ22,HQ23,HQ24,HQ25,HQ26,HQ27) -> 0 | HR31: 0 | HS31: 0 | HT31: 0 | HU31: 0 | HV31: 0 | HX31: =CHOOSE(HX29,HX4,HX5,HX6,HX7,HX8,HX9,HX10,HX11,HX12,HX13,HX14,HX15,HX16,HX17,HX18,HX19,HX20,HX21,HX22,HX23,HX24,HX25,HX26,HX27) -> 0.2644993072 | HY31: =CHOOSE(HY29,HY4,HY5,HY6,HY7,HY8,HY9,HY10,HY11,HY12,HY13,HY14,HY15,HY16,HY17,HY18,HY19,HY20,HY21,HY22,HY23,HY24,HY25,HY26,HY27) -> 0.1516949731 | IA31: =CHOOSE(IA29,IA4,IA5,IA6,IA7,IA8,IA9,IA10,IA11,IA12,IA13,IA14,IA15,IA16,IA17,IA18,IA19,IA20,IA21,IA22,IA23,IA24,IA25,IA26,IA27) -> 0.2644746913 | IB31: =CHOOSE(IB29,IB4,IB5,IB6,IB7,IB8,IB9,IB10,IB11,IB12,IB13,IB14,IB15,IB16,IB17,IB18,IB19,IB20,IB21,IB22,IB23,IB24,IB25,IB26,IB27) -> 0.1640172343 | ID31: =CHOOSE(ID29,ID4,ID5,ID6,ID7,ID8,ID9,ID10,ID11,ID12,ID13,ID14,ID15,ID16,ID17,ID18,ID19,ID20,ID21,ID22,ID23,ID24,ID25,ID26,ID27) -> 0.2644666665 | IE31: =CHOOSE(IE29,IE4,IE5,IE6,IE7,IE8,IE9,IE10,IE11,IE12,IE13,IE14,IE15,IE16,IE17,IE18,IE19,IE20,IE21,IE22,IE23,IE24,IE25,IE26,IE27) -> 0.1693766394 | IG31: =CHOOSE(IG29,IG4,IG5,IG6,IG7,IG8,IG9,IG10,IG11,IG12,IG13,IG14,IG15,IG16,IG17,IG18,IG19,IG20,IG21,IG22,IG23,IG24,IG25,IG26,IG27) -> 0.2646879115 | IH31: 0.08553053792 | II31: 0.2644897636 | IJ31: 0.1290822597 | IK31: =CHOOSE(IK29,IK4,IK5,IK6,IK7,IK8,IK9,IK10,IK11,IK12,IK13,IK14,IK15,IK16,IK17,IK18,IK19,IK20,IK21,IK22,IK23,IK24,IK25,IK26,IK27) -> 0.2648 | IL31: 0.0855 | IM31: =CHOOSE(IM29,IM4,IM5,IM6,IM7,IM8,IM9,IM10,IM11,IM12,IM13,IM14,IM15,IM16,IM17,IM18,IM19,IM20,IM21,IM22,IM23,IM24,IM25,IM26,IM27) -> 0.2647 | IN31: =CHOOSE(IN29,IN4,IN5,IN6,IN7,IN8,IN9,IN10,IN11,IN12,IN13,IN14,IN15,IN16,IN17,IN18,IN19,IN20,IN21,IN22,IN23,IN24,IN25,IN26,IN27) -> 0.1001 | IO31: =CHOOSE(IO29,IO4,IO5,IO6,IO7,IO8,IO9,IO10,IO11,IO12,IO13,IO14,IO15,IO16,IO17,IO18,IO19,IO20,IO21,IO22,IO23,IO24,IO25,IO26,IO27) -> 0.2645 | IP31: =CHOOSE(IP29,IP4,IP5,IP6,IP7,IP8,IP9,IP10,IP11,IP12,IP13,IP14,IP15,IP16,IP17,IP18,IP19,IP20,IP21,IP22,IP23,IP24,IP25,IP26,IP27) -> 0.1436 | IR31: =CHOOSE(IR29,IR4,IR5,IR6,IR7,IR8,IR9,IR10,IR11,IR12,IR13,IR14,IR15,IR16,IR17,IR18,IR19,IR20,IR21,IR22,IR23,IR24,IR25,IR26,IR27) -> 0.2648122176 | IS31: 0.07341637857 | IT31: 0.2650356799 | IU31: 0.07341637857 | IV31: 0.2650356799 | IW31: 0.07341637857 | IY31: =CHOOSE(IY29,IY4,IY5,IY6,IY7,IY8,IY9,IY10,IY11,IY12,IY13,IY14,IY15,IY16,IY17,IY18,IY19,IY20,IY21,IY22,IY23,IY24,IY25,IY26,IY27) -> 0 | IZ31: 0 | JA31: 0 | JB31: 0 | JC31: 0 | JD31: 0
B32: Install | G32: =IF(AND(C34=1,C40="touching"),C31,IF(AND(C34=1,C40="Space"),E31,IF(AND(C34=2,C40="trefoil"),G31,IF(AND(C34=2,C40="Touching"),I31,IF(AND(C34=2,C40="Space"),K31,""))))) -> 0.1491549866 | J32: =IF(AND(C34=1,C40="touching"),D31,IF(AND(C34=1,C40="Space"),F31,IF(AND(C34=2,C40="trefoil"),H31,IF(AND(C34=2,C40="Touching"),J31,IF(AND(C34=2,C40="Space"),L31,""))))) -> 0.1329073045 | R32: =IF(AND(N30=1,O30="touching"),N31,IF(AND(N30=1,O30="Space"),P31,IF(AND(N30=2,O30="trefoil"),R31,IF(AND(N30=2,O30="Touching"),T31,IF(AND(N30=2,O30="Space"),V31,""))))) -> 0.1551178066 | U32: =IF(AND(N30=1,O30="touching"),O31,IF(AND(N30=1,O30="Space"),Q31,IF(AND(N30=2,O30="trefoil"),S31,IF(AND(N30=2,O30="Touching"),U31,IF(AND(N30=2,O30="Space"),W31,""))))) -> 0.1310665425 | AC32: =IF(AND(Y30=1,Z30="touching"),Y31,IF(AND(Y30=1,Z30="Space"),AA31,IF(AND(Y30=2,Z30="trefoil"),AC31,IF(AND(Y30=2,Z30="Touching"),AE31,IF(AND(Y30=2,Z30="Space"),AG31,""))))) -> 0 | AF32: =IF(AND(Y30=1,Z30="touching"),Z31,IF(AND(Y30=1,Z30="Space"),AB31,IF(AND(Y30=2,Z30="trefoil"),AD31,IF(AND(Y30=2,Z30="Touching"),AF31,IF(AND(Y30=2,Z30="Space"),AH31,""))))) -> 0 | AN32: =IF(AND(AJ30=1,AK30="touching"),AJ31,IF(AND(AJ30=1,AK30="Space"),AL31,IF(AND(AJ30=2,AK30="trefoil"),AN31,IF(AND(AJ30=2,AK30="Touching"),AP31,IF(AND(AJ30=2,AK30="Space"),AR31,""))))) -> 0 | AQ32: =IF(AND(AJ30=1,AK30="touching"),AK31,IF(AND(AJ30=1,AK30="Space"),AM31,IF(AND(AJ30=2,AK30="trefoil"),AO31,IF(AND(AJ30=2,AK30="Touching"),AQ31,IF(AND(AJ30=2,AK30="Space"),AS31,""))))) -> 0 | AU32: =IF(F36=2,AU31,IF(F36=3,AW31,IF(F36=4,AY31,IF(F36=5,BA31)))) -> FALSE | AY32: =IF(F36=2,AV31,IF(F36=3,AX31,IF(F36=4,AZ31,IF(F36=5,BB31)))) -> FALSE | BD32: =IF(F36=2,BD31,IF(F36=3,BF31,"")) ->  | BF32: =IF(F36=2,BE31,IF(F36=3,BG31,"")) ->  | BI32: =IF(F36=2,BI31,IF(F36=3,BK31,IF(F36=4,BM31,IF(F36=5,BO31)))) -> FALSE | BM32: =IF(F36=2,BJ31,IF(F36=3,BL31,IF(F36=4,BN31,IF(F36=5,BP31)))) -> FALSE | BV32: =IF(AND(BR30=1,BS30="touching"),BR31,IF(AND(BR30=1,BS30="Space"),BT31,IF(AND(BR30=2,BS30="trefoil"),BV31,IF(AND(BR30=2,BS30="Touching"),BX31,IF(AND(BR30=2,BS30="Space"),BZ31,""))))) -> 0.1490715466 | BY32: =IF(AND(BR30=1,BS30="touching"),BS31,IF(AND(BR30=1,BS30="Space"),BU31,IF(AND(BR30=2,BS30="trefoil"),BW31,IF(AND(BR30=2,BS30="Touching"),BY31,IF(AND(BR30=2,BS30="Space"),CA31,""))))) -> 0.146484232 | CB32: =IF(F36=2,CB31,IF(F36=3,CD31,IF(F36=4,CF31,))) -> 0 | CE32: =IF(F36=2,CC31,IF(F36=3,CE31,IF(F36=4,CG31,))) -> 0 | CM32: =IF(AND(CI30=1,CJ30="touching"),CI31,IF(AND(CI30=1,CJ30="Space"),CK31,IF(AND(CI30=2,CJ30="trefoil"),CM31,IF(AND(CI30=2,CJ30="Touching"),CO31,IF(AND(CI30=2,CJ30="Space"),CQ31,""))))) -> 0 | CP32: =IF(AND(CI30=1,CJ30="touching"),CJ31,IF(AND(CI30=1,CJ30="Space"),CL31,IF(AND(CI30=2,CJ30="trefoil"),CN31,IF(AND(CI30=2,CJ30="Touching"),CP31,IF(AND(CI30=2,CJ30="Space"),CR31,""))))) -> 0 | CS32: =IF(F36=2,CS31,IF(F36=3,CU31,IF(F36=4,CW31,))) -> 0 | CV32: =IF(F36=2,CT31,IF(F36=3,CV31,IF(F36=4,CX31,))) -> 0 | CZ32: =IF(F36=2,CZ31,IF(F36=3,DB31,IF(F36=4,DD31,))) -> 0 | DC32: =IF(F36=2,DA31,IF(F36=3,DC31,IF(F36=4,DE31,))) -> 0 | DK32: =IF(AND(DG30=1,DH30="touching"),DG31,IF(AND(DG30=1,DH30="Space"),DI31,IF(AND(DG30=2,DH30="trefoil"),DK31,IF(AND(DG30=2,DH30="Touching"),DM31,IF(AND(DG30=2,DH30="Space"),DO31,""))))) -> 0.1588 | DN32: =IF(AND(DG30=1,DH30="touching"),DH31,IF(AND(DG30=1,DH30="Space"),DJ31,IF(AND(DG30=2,DH30="trefoil"),DL31,IF(AND(DG30=2,DH30="Touching"),DN31,IF(AND(DG30=2,DH30="Space"),DP31,""))))) -> 0.14 | DR32: =IF(F36=2,DR31,IF(F36=3,DT31,IF(F36=4,DV31,))) -> 0 | DU32: =IF(F36=2,DS31,IF(F36=3,DU31,IF(F36=4,DW31,))) -> 0 | DY32: =IF(F36=2,DY31,IF(F36=3,EA31,IF(F36=4,EC31,))) -> 0 | EB32: =IF(F36=2,DZ31,IF(F36=3,EB31,IF(F36=4,ED31,))) -> 0 | EF32: =IF(C40="trefoil",EF31,IF(C40="Touching",EH31,IF(C40="Space",EJ31,""))) -> 0.1587612609 | EI32: =IF(C40="trefoil",EG31,IF(C40="Touching",EI31,IF(C40="Space",EK31,""))) -> 0.1496111805 | EM32: =IF(F36=3,EM31,"") ->  | EN32: =IF(F36=3,EN31,"") ->  | EP32: =IF(C40="trefoil",EP31,IF(C40="Touching",ER31,IF(C40="Space",ET31,""))) -> 0.1587 | ES32: =IF(C40="trefoil",EQ31,IF(C40="Touching",ES31,IF(C40="Space",EU31,""))) -> 0.1545 | EW32: =IF(F36=3,EW31,"") ->  | EX32: =IF(F36=3,EX31,"") ->  | EZ32: =IF(C40="trefoil",EZ31,IF(C40="Touching",FB31,IF(C40="Space",FD31,""))) -> 0.1587175076 | FC32: =IF(C40="trefoil",FA31,IF(C40="Touching",FC31,IF(C40="Space",FE31,""))) -> 0.162410598 | FG32: =IF(F36=3,FG31,"") ->  | FH32: =IF(F36=3,FH31,"") ->  | FJ32: =IF(C40="trefoil",FJ31,IF(C40="Touching",FL31,IF(C40="Space",FN31,""))) -> 0.1587 | FM32: =IF(C40="trefoil",FK31,IF(C40="Touching",FM31,IF(C40="Space",FO31,""))) -> 0.169 | FQ32: =IF(F36=3,FQ31,"") ->  | FR32: =IF(F36=3,FR31,"") ->  | FT32: =IF(C40="trefoil",FT31,IF(C40="Touching",FV31,IF(C40="Space",FX31,""))) -> 0.1587053261 | FW32: =IF(C40="trefoil",FU31,IF(C40="Touching",FW31,IF(C40="Space",FY31,""))) -> 0.1671587763 | GA32: =IF(F36=3,GA31,"") ->  | GB32: =IF(F36=3,GB31,"") ->  | GD32: =IF(C40="trefoil",GD31,IF(C40="Touching",GF31,IF(C40="Space",GH31,""))) -> 0.1586789685 | GG32: =IF(C40="trefoil",GE31,IF(C40="Touching",GG31,IF(C40="Space",GI31,""))) -> 0.180860355 | GK32: =IF(F36=3,GK31,"") ->  | GL32: =IF(F36=3,GL31,"") ->  | GR32: =IF(AND(GN30=1,GO30="touching"),GN31,IF(AND(GN30=1,GO30="Space"),GP31,IF(AND(GN30=2,GO30="trefoil"),GR31,IF(AND(GN30=2,GO30="Touching"),GT31,IF(AND(GN30=2,GO30="Space"),GV31,""))))) -> 0.2479845897 | GU32: =IF(AND(GN30=1,GO30="touching"),GO31,IF(AND(GN30=1,GO30="Space"),GQ31,IF(AND(GN30=2,GO30="trefoil"),GS31,IF(AND(GN30=2,GO30="Touching"),GU31,IF(AND(GN30=2,GO30="Space"),GW31,""))))) -> 0.1328336363 | HC32: =IF(AND(GY30=1,GZ30="touching"),GY31,IF(AND(GY30=1,GZ30="Space"),HA31,IF(AND(GY30=2,GZ30="trefoil"),HC31,IF(AND(GY30=2,GZ30="Touching"),HE31,IF(AND(GY30=2,GZ30="Space"),HG31,""))))) -> 0.2479755397 | HF32: =IF(AND(GY30=1,GZ30="touching"),GZ31,IF(AND(GY30=1,GZ30="Space"),HB31,IF(AND(GY30=2,GZ30="trefoil"),HD31,IF(AND(GY30=2,GZ30="Touching"),HF31,IF(AND(GY30=2,GZ30="Space"),HH31,""))))) -> 0.1356796207 | HJ32: =IF(C40="trefoil",HJ31,IF(C40="Touching",HL31,IF(C40="Space",HN31,""))) -> 0 | HM32: =IF(C40="trefoil",HK31,IF(C40="Touching",HM31,IF(C40="Space",HO31,""))) -> 0 | HQ32: =IF(C40="trefoil",HQ31,IF(C40="Touching",HS31,IF(C40="Space",HU31,""))) -> 0 | HT32: =IF(C40="trefoil",HR31,IF(C40="Touching",HT31,IF(C40="Space",HV31,""))) -> 0 | HX32: =IF(C40="Space",HX31,"") -> 0.2644993072 | HY32: =IF(C40="Space",HY31,"") -> 0.1516949731 | IA32: =IF(C40="Space",IA31,"") -> 0.2644746913 | IB32: =IF(C40="Space",IB31,"") -> 0.1640172343 | ID32: =IF(C40="Space",ID31,"") -> 0.2644666665 | IE32: =IF(C40="Space",IE31,"") -> 0.1693766394 | IK32: =IF(AND(IG30=1,IH30="touching"),IG31,IF(AND(IG30=1,IH30="Space"),II31,IF(AND(IG30=2,IH30="trefoil"),IK31,IF(AND(IG30=2,IH30="Touching"),IM31,IF(AND(IG30=2,IH30="Space"),IO31,""))))) -> 0.2645 | IN32: =IF(AND(IG30=1,IH30="touching"),IH31,IF(AND(IG30=1,IH30="Space"),IJ31,IF(AND(IG30=2,IH30="trefoil"),IL31,IF(AND(IG30=2,IH30="Touching"),IN31,IF(AND(IG30=2,IH30="Space"),IP31,""))))) -> 0.1436 | IR32: =IF(F36=2,IR31,IF(F36=3,IT31,IF(F36=4,IV31,""))) ->  | IU32: =IF(F36=2,IS31,IF(F36=3,IU31,IF(F36=4,IW31,""))) ->  | IY32: =IF(F36=2,IY31,IF(F36=3,JA31,IF(F36>=4,JC31,""))) ->  | JB32: =IF(F36=2,IZ31,IF(F36=3,JB31,IF(F36>=4,JD31,""))) -> 
B34: Check 1-3 phase | C34: =IF(Interface!C9="AC 1-Phase, 2-Wire",1,IF(Interface!C9="AC 3-Phase, 3-Wire",2)) -> 2 | D34: 1= single
D35: 2= 3 Phase | S35: IEC/TIS | T35: Install
B36: Type of Cable | C36: =Interface!C11 -> Building Wire Cable | E36: Core | F36: =Interface!C15 -> 1 | K36: 1 | L36: 60227 IEC 01 THW | O36: =IF(F36=1,G32,0) -> 0.1491549866 | P36: =IF(F36=1,J32,0) -> 0.1329073045 | Q36: PVC | R36: CU | S36: 1 | T36: 0
K37: 2 | L37: 60227 IEC 02 THW (f) | O37: =IF(F36=1,R32,0) -> 0.1551178066 | P37: =IF(F36=1,U32,0) -> 0.1310665425 | Q37: PVC | R37: CU Flex | S37: 1 | T37: 0 | U37: 0=Air only
B38: Cable Name | C38: =Interface!C13 -> 60227 IEC 01 THW | E38: Size | F38: =IF(I52=1,Interface!C17,IF(I52=2,Interface!C18,IF(I52=3,Interface!C19,IF(I52=4,Interface!C20)))) -> 150 | H38: Status Ch | I38: =IF(F38=0.5,1,IF(F38=0.75,2,IF(F38=1,3,IF(F38=1.5,4,IF(F38=2.5,5,IF(F38=4,6,IF(F38=6,7,IF(F38=10,8,IF(F38=16,9,IF(F38=25,10,IF(F38=35,11,IF(F38=50,12,IF(F38=70,13,IF(F38=95,14,IF(F38=120,15,IF(F38=150,16,IF(F38=185,17,IF(F38=240,18,IF(F38=300,19,IF(F38=400,20,IF(F38=500,21,IF(F38=630,22,IF(F38=800,23,IF(F38=1000,24,"")))))))))))))))))))))))) -> 16 | K38: 3 | L38: 60227 IEC 05 IV | O38: =IF(F36=1,AC32,0) -> 0 | P38: =IF(F36=1,AF32,0) -> 0 | Q38: PVC | R38: CU | S38: 1 | T38: 0 | U38: 1= Air+G
K39: 4 | L39: 60227 IEC 06 IV (f) | O39: =IF(F36=1,AN32,0) -> 0 | P39: =IF(F36=1,AQ32,0) -> 0 | Q39: PVC | R39: CU Flex | S39: 1 | T39: 0 | U39: 2=G only
B40: Installation | C40: =IF(OR(H66=1,H66=3),F67,IF(H66=2,F68,"")) -> Space | E40: Status | F40: =IF(C38=L36,1,IF(C38=L37,2,IF(C38=L38,3,IF(C38=L39,4,IF(C38=L40,5,IF(C38=L41,6,IF(C38=L42,7,IF(C38=L43,8,IF(C38=L44,9,IF(C38=L45,10,IF(C38=L46,11,IF(C38=L47,12,IF(C38=L48,13,IF(C38=L49,14,IF(C38=L50,15,IF(C38=L51,16,IF(C38=L52,17,IF(C38=L53,18,IF(C38=L54,19,IF(C38=L55,20,IF(C38=L56,21,IF(C38=L57,22,IF(C38=L58,23,IF(C38=L59,24,IF(C38=L60,25,IF(C38=L61,26,IF(C38=L62,27,""))))))))))))))))))))))))))) -> 1 | H40: =IF(H66=3,"Space",C40) -> Space | K40: 5 | L40: 60227 IEC 10 | O40: =AU32 -> FALSE | P40: =AY32 -> FALSE | Q40: PVC | R40: CU | S40: 1 | T40: 0
K41: 6 | L41: 60227 IEC 52 VCT | O41: =BD32 ->  | P41: =BF32 ->  | Q41: PVC | R41: CU Flex | S41: 1 | T41: 0
B42: Length of Cable | C42: =Interface!C35/1000 -> 0.099 | D42: km | E42: Current | F42: =Interface!C37 -> 99 | K42: 7 | L42: 60227 IEC 53 VCT | O42: =BI32 -> FALSE | P42: =BM32 -> FALSE | Q42: PVC | R42: CU Flex | S42: 1 | T42: 0
K43: 8 | L43: NYY | O43: =IF(F36=1,BV32,CB32) -> 0.1490715466 | P43: =IF(F36=1,BY32,CE32) -> 0.146484232 | Q43: PVC | R43: CU | S43: 1 | T43: 1
B44: Power Factor | C44: =Interface!C28 -> 0.85 | K44: 9 | L44: VCT | O44: =IF(F36=1,CM32,CS32) -> 0 | P44: =IF(F36=1,BV312,CV32) -> 0 | Q44: PVC | R44: CU Flex | S44: 1 | T44: 0
G45: Sing-Multi same Cable | I45: =IF(F36>=2,0.5,0) -> 0 | K45: 10 | L45: NYY-SWA | O45: =CZ32 -> 0 | P45: =DC32 -> 0 | Q45: PVC | R45: CU | S45: 1 | T45: 1
B46: Bundle | C46: =Interface!C33 -> 6 | G46: Status Size | I46: =F40+I45 -> 1 | K46: 11 | L46: FD-0.6/1KV-CV | O46: =IF(F36=1,DK32,DR32) -> 0.1588 | P46: =IF(F36=1,DN32,DU32) -> 0.14 | Q46: XLPE | R46: CU | S46: 2 | T46: 1 | IH46: P
K47: 12 | L47: FD-0.6/1KV-CV-SWA | O47: =DY32 -> 0 | P47: =EB32 -> 0 | Q47: XLPE | R47: CU | S47: 2 | T47: 1
B48: R | C48: =CHOOSE(F40,O36,O37,O38,O39,O40,O41,O42,O43,O44,O45,O46,O47,O48,O49,O50,O51,O52,O53,O54,O55,O56,O57,O58,O59,O60,O61,O62) -> 0.1491549866 | E48: Xl | F48: =CHOOSE(F40,P36,P37,P38,P39,P40,P41,P42,P43,P44,P45,P46,P47,P48,P49,P50,P51,P52,P53,P54,P55,P56,P57,P58,P59,P60,P61,P62) -> 0.1329073045 | K48: 13 | L48: 1.8/3KV-CV | O48: =IF(F36=1,EF32,EM32) -> 0.1587612609 | P48: =IF(F36,EI32,EN32) -> 0.1496111805 | Q48: XLPE | R48: CU | S48: 2 | T48: 1
K49: 14 | L49: 3.6/6KV-CV | O49: =IF(F36=1,EP32,EW32) -> 0.1587 | P49: =IF(F36=1,ES32,EX32) -> 0.1545 | Q49: XLPE | R49: CU | S49: 2 | T49: 1
B50: Impedance | C50: =C48*C44+F48*SIN(ACOS(C44)) -> 0.1967950057 | K50: 15 | L50: 6/10KV-CV | O50: =IF(F36=1,EZ32,FG32) -> 0.1587175076 | P50: =IF(F36=1,FC32,FH32) -> 0.162410598 | Q50: XLPE | R50: CU | S50: 2 | T50: 1
I51: High Light | K51: 16 | L51: 8.7/15KV-CV | O51: =IF(F36=1,FT32,GA32) -> 0.1587053261 | P51: =IF(F36=1,FW32,GB32) -> 0.1671587763 | Q51: XLPE | R51: CU | S51: 2 | T51: 1
B52: Impredance Used | C52: =C50/C46 -> 0.03279916761 | F52: R used | G52: =H57 -> 0.148366 | I52: =IF(OR(I46<=9.5,I46=26),1,IF(OR(I46<=15,I46=26.5),2,IF(I46<=20,3,IF(OR(I46<=25,I46=27.5),4,"")))) -> 1 | K52: 17 | L52: 12/20KV-CV | O52: =IF(F36=1,FJ32,FQ32) -> 0.1587 | P52: =IF(F36=1,FM32,FR32) -> 0.169 | Q52: XLPE | R52: CU | S52: 2 | T52: 1
F53: Voltage drop dc | G53: Type | H53: =CHOOSE(F40,R36,R37,R38,R39,R40,R41,R42,R43,R44,R45,R46,R47,R48,R49,R50,R51,R52,R53,R54,R55,R56,R57,R58,R59,R60,R61,R62) -> CU | K53: 18 | L53: 18/30KV-CV | O53: =IF(F36=1,GD32,GK32) -> 0.1586789685 | P53: =IF(F36=1,GG32,GL32) -> 0.180860355 | Q53: XLPE | R53: CU | S53: 2 | T53: 1
G54: Ins. | H54: =CHOOSE(F40,Q36,Q37,Q38,Q39,Q40,Q41,Q42,Q43,Q44,Q45,Q46,Q47,Q48,Q49,Q50,Q51,Q52,Q53,Q54,Q55,Q56,Q57,Q58,Q59,Q60,Q61,Q62) -> PVC | K54: 19 | L54: 69KV-CE | O54: =IF(F36=1,HJ32,0) -> 0 | P54: =IF(F36=1,HM32,0) -> 0 | Q54: XLPE | R54: CU | S54: 2 | T54: 2
G55: Temp | H55: =IF(H54="PVC",70,IF(H54="PE",75,IF(H54="XLPE",90,""))) -> 70 | I55: °C | K55: 20 | L55: 115KV-CE | O55: =IF(F36=1,HQ32,0) -> 0 | P55: =IF(F36=1,HT32,0) -> 0 | Q55: XLPE | R55: CU | S55: 2 | T55: 2
B56: Vdrop 1 Phase | C56: =2*F42*C42*C52 -> 0.6429292836 | G56: R20°C | H56: =Rdc!K5 -> 0.124 | I56: Ω/km | J56: . | K56: 21 | L56: THWA | O56: =IF(F36=1,GR32,0) -> 0.2479845897 | P56: =IF(F36=1,GU32,0) -> 0.1328336363 | Q56: PVC | R56: AL | S56: 1 | T56: 0
G57: Rdc Max | H57: =H56*(1+H58*(H55-20)) -> 0.148366 | I57: Ω/km | J57: . | K57: 22 | L57: THWA-C | O57: =IF(F36=1,HC32,0) -> 0.2479755397 | P57: =IF(F36=1,HF32,0) -> 0.1356796207 | Q57: PVC | R57: AL | S57: 1 | T57: 0
B58: Vdrop 3 Phase | C58: =SQRT(3)*F42*C42*C52 -> 0.5567930924 | G58: Alpha | H58: =IF(H53="AL",0.00403,IF(OR(H53="CU",H53="CU Flex"),0.00393,"")) -> 0.00393 | K58: 23 | L58: 15KV-CC | O58: =IF(F36=1,HX32,0) -> 0.2644993072 | P58: =IF(F36=1,HY32,0) -> 0.1516949731 | Q58: XLPE | R58: AL | S58: 1 | T58: 0
A59: *** | B59: Vdrop Show | C59: =IF(Interface!C9="AC 1-Phase, 2-Wire",D!C56,IF(Interface!C9="AC 3-Phase, 3-Wire",D!C58,"")) -> 0.5567930924 | D59: *** | F59: V drop | G59: =2*C42*F42*G52 -> 2.908270332 | K59: 24 | L59: 25KV-CC | O59: =IF(F36=1,IA32,0) -> 0.2644746913 | P59: =IF(F36=1,IB32,0) -> 0.1640172343 | Q59: XLPE | R59: AL | S59: 1 | T59: 0
B60: Group Core | C60: =IF(F40=1,1,IF(F40=2,1,IF(F40=3,1,IF(F40=4,1,IF(F40=19,1,IF(F40=20,1,IF(F40=21,1,IF(F40=22,1,IF(F40=23,1,IF(F40=24,1,IF(F40=25,1,IF(F40=13,2,IF(F40=14,2,IF(F40=15,2,IF(F40=16,2,IF(F40=17,2,IF(F40=18,2,IF(F40=6,3,IF(F40=5,4,IF(F40=7,4,IF(F40=10,5,IF(F40=12,5,IF(F40=8,6,IF(F40=9,6,IF(OR(F40=11,F40=26),6,IF(F40=27,7,"")))))))))))))))))))))))))) -> 1 | K60: 25 | L60: 35KV-CC | O60: =IF(F36=1,ID32,0) -> 0.2644666665 | P60: =IF(F36=1,IE32,0) -> 0.1693766394 | Q60: XLPE | R60: AL | S60: 1 | T60: 0
B61: Size Type | C61: =IF(D!$I$46=1,"6",IF(D!$I$46=2,"6",IF(D!$I$46=3,"2",IF(D!$I$46=4,"2",IF(D!$I$46=5.5,"5",IF(D!$I$46=6.5,"1",IF(D!$I$46=7.5,"3",IF(D!$I$46=8,"4",IF(D!$I$46=8.5,"7",IF(D!$I$46=9,"8",IF(D!$I$46=9.5,"8",IF(D!$I$46=10.5,"7",IF(D!$I$46=11,"6",IF(D!$I$46=11.5,"6",IF(D!$I$46=12.5,"6",IF(OR(D!$I$46=13,D!$I$46=26.5),"12",IF(D!$I$46=14,"11",IF(D!$I$46=14.5,"12",IF(D!$I$46=15,"13",IF(D!$I$46=15.5,"10",IF(D!$I$46=16,"15",IF(D!$I$46=16.5,"16",IF(D!$I$46=17,"17",IF(D!$I$46=17.5,"18",IF(D!$I$46=18,"17",IF(D!$I$46=18.5,"18",IF(D!$I$46=19,"19",IF(D!$I$46=20,"19",IF(D!$I$46=21,"9",IF(OR(D!$I$46=22,D!$I$46=26),"9",IF(D!$I$46=23,"20",IF(D!$I$46=24,"20",IF(D!$I$46=25,"14",IF(D!$I$46=27.5,"22")))))))))))))))))))))))))))))))))) -> 6 | F61: =IF(D!I46=1,"Size 1.5-400 mm²",IF(D!I46=2,"Size 1.5-400 mm²",IF(D!I46=3,"Size 0.5-1.0 mm²",IF(D!I46=4,"Size 0.5-1.0 mm²",IF(D!I46=5,"Size 1.5-35 mm²",IF(D!I46=5.5,"Size 1.5-35 mm²",IF(D!I46=6.5,"Size 0.5-0.75 mm²",IF(D!I46=7,"Size 0.75-2.5 mm²",IF(D!I46=8,"Size 1.0-500 mm²",IF(D!I46=8.5,"Size 50-300 mm²",IF(D!I46=9,"Size4-35 mm²",IF(D!I46=9.5,"Size4-35 mm²",IF(D!I46=10.5,"Size 50-300 mm²",IF(D!I46=11,"Size 1.5-1000 mm²",IF(D!I46=11.5,"Size 1.5-400 mm²",IF(D!I46=12.5,"Size 1.5-400 mm²",IF(D!I46=13,"Size 10-400 mm²",IF(D!I46=13.5,"Size 10-400 mm²",IF(D!I46=14,"Size 10-1000 mm²",IF(D!I46=14.5,"Size 10-400 mm²",IF(D!I46=15,"Size 16-1000 mm²",IF(D!I46=15.5,"Size 16-400 mm².",IF(D!I46=16,"Size 25-1000 mm².",IF(D!I46=16.5,"Size 25-400 mm²",IF(D!I46=17,"Size 35-1000 mm²",IF(D!I46=17.5,"Size 35-400 mm²",IF(D!I46=18,"Size 35-1000 mm²",IF(D!I46=18.5,"Size 35-400 mm²",IF(D!I46=19,"Size 400-800 mm²",IF(D!I46=20,"Size 400-800 mm²",IF(D!I46=21,"Size 10-500 mm²",IF(D!I46=22,"Size 10-500 mm²",IF(D!I46=23,"Size 35-240mm²",IF(D!I46=24,"Size 35-240 mm²",IF(D!I46=25,"Size 50-240 mm²",""))))))))))))))))))))))))))))))))))) -> Size 1.5-400 mm² | K61: 26 | L61: FD-0.6/1KV-AL-CV | O61: =IF(F36=1,IK32,IR32) -> 0.2645 | P61: =IF(F36=1,IN32,IU32) -> 0.1436 | Q61: XLPE | R61: AL | S61: 2 | T61: 1
K62: 27 | L62: CVV | O62: =IY32 ->  | P62: =JB32 ->  | Q62: PVC | R62: CU Flex | S62: 1 | T62: 0
A63: Sing or Multi | B63: =IF(Interface!C15=1,"Single Core","Multi-core") -> Single Core
D64: 导体尺寸
C65: 1 ENG | K65: IEC/TIS | S65: =CHOOSE(F40,S36,S37,S38,S39,S40,S41,S42,S43,S44,S45,S46,S47,S48,S49,S50,S51,S52,S53,S54,S55,S56,S57,S58,S59,S60,S61,S62) -> 1 | T65: =CHOOSE(F40,T36,T37,T38,T39,T40,T41,T42,T43,T44,T45,T46,T47,T48,T49,T50,T51,T52,T53,T54,T55,T56,T57,T58,T59,T60,T61,T62) -> 0
B66: =LG!B8 -> 1 | C66: 2 THAI | F66: Installation Check | H66: =IF(I46=26,1,IF(I46=1,1,IF(I46=2,1,IF(I46=3,1,IF(I46=4,1,IF(I46=5,2,IF(I46=5.5,2,IF(I46=6,2,IF(I46=6.5,2,IF(I46=7,2,IF(I46=7.5,2,IF(I46=8,1,IF(I46=8.5,2,IF(I46=9,1,IF(I46=9.5,2,IF(I46=10.5,2,IF(I46=11,1,IF(I46=26.5,2,IF(I46=11.5,2,IF(I46=12,2,IF(I46=12.5,2,IF(I46=13,1,IF(I46=13.5,2,IF(I46=14,1,IF(I46=14.5,2,IF(I46=15,1,IF(I46=15.5,2,IF(I46=16,1,IF(I46=16.5,2,IF(I46=17,1,IF(I46=17.5,2,IF(I46=18,1,IF(I46=18.5,2,IF(I46=19,1,IF(I46=19.5,2,IF(I46=20,1,IF(I46=20.5,2,IF(I46=21,1,IF(I46=22,1,IF(I46=23,3,IF(I46=24,3,IF(I46=25,3,2)))))))))))))))))))))))))))))))))))))))))) -> 1 | K66: =CHOOSE(F40,S36,S37,S38,S39,S40,S41,S42,S43,S44,S45,S46,S47,S48,S49,S50,S51,S52,S53,S54,S55,S56,S57,S58,S59,S60,S61,S62,) -> 1
C67: 3 JAPAN | F67: =IF(H66=1,Interface!C22,IF(H66=2,Interface!C23,IF(H66=3,Interface!C24,""))) -> Space | O67: A/G | P67: =IF(D!T65=0,ZZZ,IF(D!T65=1,AG,IF(D!T65=2,G,""))) -> 0
C68: 4 Chainese | F68: =IF(F67="Multi - Core","Space","") -> 
A69: Code Select Size | B69: =IF(AND(B66=1,I52=1),"Select Size",IF(AND(B66=2,I52=1),"เลือกขนาดสาย",IF(AND(B66=3,I52=1),"導体サイズ",IF(AND(B66=4,I52=1),"导体尺寸","")))) -> Select Size | C69: =IF(I52=1,"mm²","") -> mm²
B70: =IF(AND(B66=1,I52=2),"Select Size",IF(AND(B66=2,I52=2),"เลือกขนาดสาย",IF(AND(B66=3,I52=2),"導体サイズ",IF(AND(B66=4,I52=2),"导体尺寸","")))) ->  | C70: =IF(I52=2,"mm²","") -> 
B71: =IF(AND(B66=1,I52=3),"Select Size",IF(AND(B66=2,I52=3),"เลือกขนาดสาย",IF(AND(B66=3,I52=3),"導体サイズ",IF(AND(B66=4,I52=3),"导体尺寸","")))) ->  | C71: =IF(I52=3,"mm²","") -> 
B72: =IF(AND(B66=1,I52=4),"Select Size",IF(AND(B66=2,I52=4),"เลือกขนาดสาย",IF(AND(B66=3,I52=4),"導体サイズ",IF(AND(B66=4,I52=4),"导体尺寸","")))) ->  | C72: =IF(I52=4,"mm²","") ->  | F72: AC 1-Phase, 2-Wire
F73: AC 3-Phase, 3-Wire
B75: =IF(H66>=2,"Multi - Core","") ->  | C75: =IF(AND(B66=1,H66=2),"Laying",IF(AND(B66=2,H66=2),"ลักษณะการวาง",IF(AND(B66=3,H66=2),"施工条件",IF(AND(B66=4,H66=2),"电线安置方式","")))) -> 
B76: =IF(H66=3,"Space","") ->  | C76: =IF(AND(B66=1,H66=1),"Select Laying type",IF(AND(B66=2,H66=1),"เลือกรูปแบบการวาง",IF(AND(B66=3,H66=1),"施工条件",IF(AND(B66=4,H66=1),"电线安置方式","")))) -> Select Laying type
C77: =IF(AND(B66=1,H66=3),"Laying Type",IF(AND(B66=2,H66=3),"รูปแบบการวาง",IF(AND(B66=3,H66=3),"施工条件",IF(AND(B66=4,H66=3),"Laying Type","")))) -> 
C80: Select Size
C81: เลือกขนาดสาย
C82: 導体サイズ

Sheet LG (hidden)
A1: Sheet Name | B1: Topic1 | C1: Topic2 | D1: Topic3 | E1: Topic4 | F1: Topic5 | G1: Topic6 | H1: Topic7 | I1: Topic8 | J1: Topic9 | K1: Topic10 | L1: Topic11 | M1: Topic12 | N1: Topic13 | O1: Topic14 | P1: Topic15 | Q1: Topic16 | R1: Topic17 | S1: Topic18 | T1: Topic19 | U1: Topic20 | V1: Topic21 | W1: Topic22 | X1: Topic23 | Y1: Topic24 | Z1: Topic25 | AA1: Topic26 | AB1: Topic27 | AC1: Topic28 | AD1: Topic29 | AE1: Topic30 | AF1: Topic31 | AG1: Topic32 | AH1: Topic33 | AI1: Topic34 | AJ1: Topic35 | AK1: Topic36 | AL1: Topic37 | AM1: Topic38 | AN1: Topic39 | AO1: Topic40 | AP1: Topic41 | AQ1: Topic42 | AR1: Topic43 | AS1: Topic44 | AT1: Topic45 | AU1: Topic46 | AV1: Topic47 | AW1: Topic48 | AX1: Topic49 | AY1: Topic51 | AZ1: Topic52 | BA1: Topic53 | BB1: Topic54 | BC1: Topic55 | BD1: Topic56
A2: VOLTAGE DROP CALCULATION (Yazaki Cable) | B2: Type of Cable | C2: Cable Name | D2: Select No. of Core | E2: Select Size | F2: Select Installation | G2: Frequency 50 Hz (Thailand, Myanmar, Cambodia,China) | H2: Power Factor | I2: Type of Voltage Drop | J2: Length of Cable | K2: Metre | L2: Current | M2: A | N2: System Voltage | O2: V | P2: Part of System | Q2: Voltage Drop | R2: V | S2: Voltage Drop | T2: % | U2: Result | V2: VOLTAGE DROP CALCULATION (Other Cable) | W2: Current Used | X2: A | Y2: Length | Z2: Metre | AA2: AC Resistance | AB2: Ω/km | AC2: Reactance XL | AD2: Power Factor | AE2: Impedance | AF2: Ω/km | AG2: Type of Voltage Drop | AH2: System Voltage | AI2: V | AJ2: Part of System | AK2: Voltage Drop | AL2: V | AM2: Voltage Drop | AN2: % | AO2: Result | AP2: NOTE: NEC RECOMMENDATIONS | AQ2: Maximum combined voltage drop for both the feeder and branch circuit shouldn't | AR2: exceed 5%, and the maximum on the feeder or branch circuit shouldn't exceed 3% | AS2: ="" ->  | AT2: ="" ->  | AU2: =IF(Interface!G37<Interface!C37,"Load Current Exceed Capacity of Cable",IF(AND(Interface!C31="Main Feeder",Interface!C43>3),"% Voltage Drop Exceed the Standard",IF(AND(Interface!C31="Branch Circuits",Interface!C43>3),"% Voltage Drop Exceed the Standard","Can Use"))) -> Can Use | AV2: Installation | AW2: Maximum Capacity | AX2: Ambient | AY2: =IF(AND(Interface!C81="Main Feeder",Interface!C85>3),"% Voltage Drop Exceed the Standard",IF(AND(Interface!C81="Branch Circuits",Interface!C85>3),"% Voltage Drop Exceed the Standard","Can Use")) -> Can Use | AZ2: Input Data | BA2: Select Data | BB2: Do not Edit | BC2: Can Use | BD2: Cable/Phase
A3: การคำนวนแรงดันตก(สายไฟฟ้า ยาซากิ) | B3: ประเภทสายไฟฟ้า | C3: ชนิดของสายไฟฟ้า | D3: เลือกจำนวนแกน | E3: เลือกขนาดสาย | F3: เลือกลักษณะการติดตั้ง | G3: ความถี่ 50 เฮิร์ต (ประเทศไทย, พม่า, กัมพูชา, จีน) | H3: ตัวประกอบกำลัง | I3: รูปแบบของแรงดันตก | J3: ความยาวของสาย | K3: เมตร | L3: กระแสไฟฟ้า | M3: แอมแปร์ | N3: แรงดันไฟฟ้า | O3: โวลท์ | P3: ชนิดของระบบ | Q3: แรงดันตก | R3: โวลท์ | S3: แรงดันตก | T3: เปอร์เซ็นต์ | U3: ผลลัพธ์ | V3: การคำนวนแรงดันตก(สายยี่ห้ออื่น) | W3: ขนาดกระแสไฟฟ้าใช้งาน | X3: แอมแปร์ | Y3: ความยาวสาย | Z3: เมตร | AA3: ค่าความต้านทานไฟฟ้ากระแสสลับ | AB3: โอห์ม/กิโลเมตร | AC3: ค่าความต้านทานเหนี่ยวนำ(XL) | AD3: ตัวประกอบกำลัง | AE3: ค่าความต้านทานรวม(Z) | AF3: โอห์ม/กิโลเมตร | AG3: รูปแบบของแรงดันตก | AH3: แรงดันไฟฟ้า | AI3: โวลท์ | AJ3: ชนิดของระบบ | AK3: แรงดันตก | AL3: โวลท์ | AM3: แรงดันตก | AN3: เปอร์เซ็นต์ | AO3: ผลลัพธ์ | AP3: หมายเหตุ : ข้อแนะนำจากNEC | AQ3: แรงดันตกสูงสุดของสายป้อนหรือวงจรย่อยไม่ควรเกิน 3% และผลรวมแรงดันตกระหว่างสายป้อนและวงจรย่อยไม่ควรเกิน 5 % | AR3: ="" ->  | AS3: ="" ->  | AT3: ="" ->  | AU3: =IF(Interface!G37<Interface!C37,"กระแสใช้งานมากกว่าพิกัดสายไฟฟ้า",IF(AND(Interface!C31="Main Feeder",Interface!C43>3),"% แรงดันตกเกินมาตรฐาน",IF(AND(Interface!C31="Branch Circuits",Interface!C43>3),"% แรงดันตกเกินมาตรฐาน","สามารถใช้งานได้"))) -> สามารถใช้งานได้ | AV3: ลักษณะการติดตั้ง | AW3: พิกัดกระแสสูงสุด | AX3: อุณหภูมิโดยรอบ | AY3: =IF(AND(Interface!C81="Main Feeder",Interface!C85>3),"% แรงดันตกเกินมาตรฐาน",IF(AND(Interface!C81="Branch Circuits",Interface!C85>3),"% แรงดันตกเกินมาตรฐาน","สามารถใช้งานได้")) -> สามารถใช้งานได้ | AZ3: ข้อมูลขาเข้า | BA3: การเลือกข้อมูล | BB3: กรุณาอย่าแก้ไข | BC3: สามารถใช้งานได้ | BD3: จำนวน/เฟส
A4: 電圧降下計算表(タイ矢崎電線製品用) | B4: ケーブル区分 | C4: ケーブル品種名 | D4: 線芯数 | E4: 導体サイズ | F4: Select Installation | G4: 周波数 50Hz(タイ、ミャンマー、カンボジア、中国) | H4: 力率 | I4: 通電方式 | J4: ケーブル条長 | K4: m | L4: 電流値 | M4: A | N4: 使用電圧 | O4: V | P4: 使用系統 | Q4: 電圧降下 | R4: V | S4: 電圧降下率 | T4: % | U4: 結果 | V4: 電圧降下計算表(タイ矢崎カタログ以外及び他社製品) | W4: 使用電流値 | X4: A | Y4: ケーブル条長 | Z4: m | AA4: AC抵抗値 | AB4: Ω/km | AC4: リアクタンス | AD4: 力率 | AE4: インピーダンス | AF4: Ω/km | AG4: 通電方式 | AH4: システム電圧 | AI4: V | AJ4: 使用系統 | AK4: 電圧降下 | AL4: V | AM4: 電圧降下率 | AN4: % | AO4: 結果 | AP4: 注記：NEC 推奨値 | AQ4: Maximum combined voltage drop for both the feeder and branch circuit shouldn't | AR4: exceed 5%, and the maximum on the feeder or branch circuit shouldn't exceed 3% | AS4: ="" ->  | AT4: ="" ->  | AU4: =IF(Interface!G37<Interface!C37,"入力した電流値が許容電流を超えています。",IF(AND(Interface!C31="Main Feeder",Interface!C43>3),"%電圧降下率が基準値を超えます",IF(AND(Interface!C31="Branch Circuits",Interface!C43>3),"%電圧降下率が基準値を超えます","使用可"))) -> 使用可 | AV4: 施工環境 | AW4: 最大許容電流値 | AX4: 周囲温度 | AY4: =IF(AND(Interface!C81="Main Feeder",Interface!C85>3),"%電圧降下率が基準値を超えます",IF(AND(Interface!C81="Branch Circuits",Interface!C85>3),"%電圧降下率が基準値を超えます","使用可")) -> 使用可 | AZ4: データ入力 | BA4: データ選定 | BB4: 修正禁止 | BC4: 使用可 | BD4: Cable/Phase
A5: 电压损失计算表（矢崎电线） | B5: 电线型式 | C5: 电线品种 | D5: 线芯数 | E5: 导体尺寸 | F5: 选择安装方式 | G5: 频率 50 Hz (泰国，缅甸，柬埔寨，中国) | H5: 电功率系数 | I5: 通电方式 | J5: 电线长度 | K5: m | L5: 电流 | M5: A | N5: 使用电压 | O5: V | P5: 应用系统 | Q5: 电压损失 | R5: V | S5: 电压损失率 | T5: % | U5: 结果 | V5: 电压损失计算表（其他公司电线产品） | W5: 使用电流 | Y5: 电线长度 | Z5: 米 | AA5: 交流电阻 | AB5: Ω/km | AC5: 电抗 （XL） | AD5: 电功率系数 | AE5: 阻抗 | AF5: Ω/km | AG5: 通电方式 | AH5: 使用电压 | AI5: V | AJ5: 应用系统 | AK5: 电压损失 | AL5: V | AM5: 电压损失率 | AN5: % | AO5: 结果 | AP5: 备注：NEC 推荐标准 | AQ5: 分支线路和配电线路的最高合计电压损失率不得超过5%，每个分支电路或配电线路的最大电压损失率为3% | AR5: ="" ->  | AS5: ="" ->  | AT5: ="" ->  | AU5: =IF(Interface!G37<Interface!C37,"电流不超过电线电流负荷量",IF(AND(Interface!C31="Main Feeder",Interface!C43>3),"电压损失率超过标准值",IF(AND(Interface!C31="Branch Circuits",Interface!C43>3),"电压损失率超过标准值","合格"))) -> 合格 | AV5: 安装方式 | AW5: 最大电流负荷 | AX5: 周围温度 | AY5: =IF(AND(Interface!C81="Main Feeder",Interface!C85>3),"电压损失率超过标准值",IF(AND(Interface!C81="Branch Circuits",Interface!C85>3),"电压损失率超过标准值","合格")) -> 合格 | AZ5: 输入数据 | BA5: 选择数据 | BB5: 禁止修改 | BC5: 合格 | BD5: Cable/Phase
A8: Choose | B8: 1 | C8: English
C9: ภาษาไทย
C10: 日本語
C11: 中文
C12: 1
E19: % Voltage Drop Exceed the Standard
B20: 1 | C20: =Interface!C45 -> Can Use | D20: =IF(C20=E19,0,IF(C20=E20,0,IF(C20=E21,0,IF(C20=E22,0,IF(C20=E23,0,IF(C20=E24,0,IF(C20=E25,0,IF(C20=E26,0,1)))))))) -> 1 | E20: % แรงดันตกเกินมาตรฐาน
B21: 2 | C21: =Interface!C88 -> Can Use | D21: =IF(C21=E19,0,IF(C21=E20,0,IF(C21=E21,0,IF(C21=E22,0,1)))) -> 1 | E21: %電圧降下率が基準値を超えます
E22: 电压损失率超过标准值
E23: 电流不超过电线电流负荷量
E24: กระแสใช้งานมากกว่าพิกัดสายไฟฟ้า
E25: 入力した電流値が許容電流を超えています。
E26: Load Current Exceed Capacity of Cable

Sheet L (hidden)
B1: Status Bar | C1: =IF(Interface!C11=L!B2,1,IF(Interface!C11=L!C2,2,IF(Interface!C11=L!D2,3,IF(Interface!C11=L!E2,4,IF(Interface!C11=L!F2,5,IF(Interface!C11=L!G2,6,IF(Interface!C11=L!A2,7))))))) -> 1 | H1: CoreN | J1: Size | K1: Install | L1: Bundle | M1: Type | O1: Install2 | P1: Install3 | Q1: Size0 | R1: Size1 | S1: Size2 | T1: Size3 | U1: Size4 | V1: Size5 | W1: Size6 | X1: Size7 | Y1: Size8 | Z1: Size9 | AA1: Size10 | AB1: Size11 | AC1: Size12 | AD1: Size13 | AE1: Size14 | AF1: Size15 | AG1: Size16 | AH1: Size17 | AI1: Size18 | AJ1: Size19 | AK1: Size20 | AL1: Size21 | AM1: Core1 | AN1: Core2 | AO1: Core3 | AP1: Core4 | AQ1: Core5 | AR1: Core6 | AS1: TYPE | AV1: VD | AY1: VD1 | BD1: Install5 | BE1: Check | BF1: NO | BH1: Size22
A2: Control | B2: Building Wire Cable | C2: LV Power Cable | D2: MV Power Cable | E2: HV Power Cable | F2: AL Building Wire Cable | G2: AL HV Power Cable | H2: 1 | J2: 0.5 | K2: Space | L2: No | M2: AC 1-Phase, 2-Wire | O2: Multicore | P2: Space | Q2: 1.5 | R2: 0.5 | S2: 0.5 | T2: 0.75 | U2: 1 | V2: 1.5 | W2: 1.5 | X2: 50 | Y2: 4 | Z2: 10 | AA2: 16 | AB2: 10 | AC2: 10 | AD2: 16 | AE2: 50 | AF2: 25 | AG2: 25 | AH2: 35 | AI2: 35 | AJ2: 400 | AK2: 35 | AL2: 1.5 | AM2: 1 | AN2: 1 | AO2: 2 | AP2: 2 | AQ2: 1 | AR2: 2 | AS2: CU | AT2: 1 | AV2: Vdrop AC 3 Ph. | AX2: PVC | AY2: Vdrop AC 3 Ph. | BA2: 1 | BB2: 0.7 | BC2: Main Feeder | BD2: Space | BE2: O | BF2: 1 | BG2: 2 | BH2: 0.5
A3: CVV | B3: 60227 IEC 01 THW | C3: NYY-SWA | D3: 1.8/3KV-CV | E3: 69KV-CE | F3: THWA | G3: 15KV-CC | H3: 2 | J3: 0.75 | K3: Touching | L3: 1 | M3: AC 3-Phase, 3-Wire | Q3: 2.5 | R3: 0.75 | S3: 0.75 | T3: 1 | U3: 1.5 | V3: 2.5 | W3: 2.5 | X3: 70 | Y3: 6 | Z3: 16 | AA3: 25 | AB3: 16 | AC3: 16 | AD3: 25 | AE3: 70 | AF3: 35 | AG3: 35 | AH3: 50 | AI3: 50 | AJ3: 500 | AK3: 50 | AL3: 2.5 | AN3: 3 | AO3: 3 | AP3: 3 | AQ3: 2 | AR3: 3 | AS3: CU Flex | AT3: 2 | AV3: Vdrop AC 1 Ph. | AX3: PE | AY3: Vdrop AC 1 Ph. | BA3: 2 | BB3: 0.75 | BC3: Branch Circuits | BD3: Touching | BE3: P | BF3: 2 | BG3: 3 | BH3: 0.75
B4: 60227 IEC 02 THW (f) | C4: FD-0.6/1KV-CV | D4: 3.6/6KV-CV | E4: 115KV-CE | F4: THWA-C | G4: 25KV-CC | H4: 3 | J4: 1 | K4: Trefoil | L4: 2 | Q4: 4 | S4: 1 | T4: 1.5 | U4: 2.5 | V4: 4 | W4: 4 | X4: 95 | Y4: 10 | Z4: 25 | AA4: 35 | AB4: 25 | AC4: 25 | AD4: 35 | AE4: 95 | AF4: 50 | AG4: 50 | AH4: 70 | AI4: 70 | AJ4: 630 | AK4: 70 | AL4: 4 | AO4: 4 | AQ4: 3 | AR4: 4 | AS4: Aluminium | AT4: 3 | AV4: Vdrop DC | AX4: XLPE | BA4: 3 | BB4: 0.8 | BF4: 3 | BG4: 4 | BH4: 1
B5: 60227 IEC 05 IV | C5: FD-0.6/1KV-CV-SWA | D5: 6/10KV-CV | G5: 35KV-CC | H5: 4 | J5: 1.5 | L5: 3 | Q5: 6 | T5: 2.5 | U5: 4 | V5: 6 | W5: 6 | X5: 120 | Y5: 16 | Z5: 35 | AA5: 50 | AB5: 35 | AC5: 35 | AD5: 50 | AE5: 120 | AF5: 70 | AG5: 70 | AH5: 95 | AI5: 95 | AJ5: 800 | AK5: 95 | AL5: 6 | AO5: 5 | AQ5: 4 | AT5: 4 | BA5: 4 | BB5: 0.85 | BF5: 4 | BG5: 5 | BH5: 1.5
B6: 60227 IEC 06 IV (f) | C6: FD-0.6/1KV-AL-CV | D6: 8.7/15KV-CV | H6: 5 | J6: 2.5 | L6: 4 | Q6: 10 | U6: 6 | V6: 10 | W6: 10 | X6: 150 | Y6: 25 | Z6: 50 | AA6: 70 | AB6: 50 | AC6: 50 | AD6: 70 | AE6: 150 | AF6: 95 | AG6: 95 | AH6: 120 | AI6: 120 | AK6: 120 | AL6: 10 | AT6: 5 | BA6: 5 | BB6: 0.9 | BF6: 5 | BG6: 6 | BH6: 2.5
B7: 60227 IEC 10 | D7: 12/20KV-CV | J7: 4 | L7: 5 | Q7: 16 | U7: 10 | V7: 16 | W7: 16 | X7: 185 | Y7: 35 | Z7: 70 | AA7: 95 | AB7: 70 | AC7: 70 | AD7: 95 | AE7: 185 | AF7: 120 | AG7: 120 | AH7: 150 | AI7: 150 | AK7: 150 | AL7: 16 | AT7: 6 | BA7: 6 | BB7: 0.95 | BF7: 6 | BG7: 7 | BH7: 4
B8: 60227 IEC 52 VCT | D8: 18/30KV-CV | J8: 6 | L8: 6 | Q8: 25 | U8: 16 | V8: 25 | W8: 25 | X8: 240 | Z8: 95 | AA8: 120 | AB8: 95 | AC8: 95 | AD8: 120 | AE8: 240 | AF8: 150 | AG8: 150 | AH8: 185 | AI8: 185 | AK8: 185 | AL8: 25 | AT8: 7 | BA8: 7 | BB8: 1 | BF8: 7 | BG8: 8 | BH8: 6
B9: 60227 IEC 53 VCT | J9: 10 | L9: 7 | Q9: 35 | U9: 25 | V9: 35 | W9: 35 | X9: 300 | Z9: 120 | AA9: 150 | AB9: 120 | AC9: 120 | AD9: 150 | AF9: 185 | AG9: 185 | AH9: 240 | AI9: 240 | AK9: 240 | AL9: 35 | AT9: 8 | BA9: 8 | BF9: 8 | BG9: 9
B10: NYY | J10: 16 | K10: Install0 | L10: 8 | Q10: 50 | U10: 35 | W10: 50 | Z10: 150 | AA10: 185 | AB10: 150 | AC10: 150 | AD10: 185 | AF10: 240 | AG10: 240 | AH10: 300 | AI10: 300 | AL10: 50 | AT10: 9 | BA10: 9 | BF10: 9 | BG10: 10
B11: VCT | J11: 25 | L11: 9 | Q11: 70 | U11: 50 | W11: 70 | Z11: 185 | AA11: 240 | AB11: 185 | AC11: 185 | AD11: 240 | AF11: 300 | AG11: 300 | AH11: 400 | AI11: 400 | AL11: 70 | AT11: 10 | BA11: 10 | BF11: 10 | BG11: 11
J12: 35 | L12: 10 | Q12: 95 | U12: 70 | W12: 95 | Z12: 240 | AA12: 300 | AB12: 240 | AC12: 240 | AD12: 300 | AF12: 400 | AG12: 400 | AH12: 500 | AL12: 95 | AT12: 11 | BA12: 11 | BG12: 12
J13: 50 | Q13: 120 | U13: 95 | W13: 120 | Z13: 300 | AA13: 400 | AB13: 300 | AC13: 300 | AD13: 400 | AF13: 500 | AH13: 630 | AL13: 120 | BA13: 12 | BG13: 13
J14: 70 | Q14: 150 | U14: 120 | W14: 150 | Z14: 400 | AB14: 400 | AC14: 400 | AD14: 500 | AF14: 630 | AH14: 800 | AL14: 150 | BG14: 14
J15: 95 | Q15: 185 | U15: 150 | W15: 185 | Z15: 500 | AB15: 500 | AD15: 630 | AF15: 800 | AH15: 1000 | AL15: 185 | BG15: 15
J16: 120 | Q16: 240 | U16: 185 | W16: 240 | AB16: 630 | AD16: 800 | AF16: 1000 | AL16: 240 | BG16: 16
J17: 150 | U17: 240 | W17: 300 | AB17: 800 | AD17: 1000 | AL17: 300 | BG17: 17
J18: 185 | U18: 300 | W18: 400 | AB18: 1000 | AL18: 400 | BG18: 18
J19: 240 | U19: 400 | AL19: 500 | BG19: 19
J20: 300 | U20: 500 | AL20: 630 | BG20: 20
J21: 400 | AL21: 800 | BG21: 21
J22: 500 | AL22: 1000 | BG22: 22
J23: 630 | BG23: 23
J24: 800 | BG24: 24
J25: 1000 | BG25: 25
BG26: 26
BG27: 27
BG28: 28
BG29: 29
BG30: 30
BG31: 31
BG32: 32
BG33: 33
BG34: 34
BG35: 35
BG36: 36
BG37: 37
BG38: 38
BG39: 39
BG40: 40
BG41: 41
BG42: 42
BG43: 43
BG44: 44
BG45: 45
BG46: 46
BG47: 47
BG48: 48

Sheet Rdc (hidden)
B3: Rdc
C5: CU strand | E5: Flex | G5: Alu Strand | I5: =D!H53 -> CU | J5: R use | K5: =IF(I5="CU",C31,IF(I5="CU Flex",E31,IF(I5="AL",G31,""))) -> 0.124
C6: 0.5 | D6: 36 | E6: 0.5 | F6: 39
C7: 0.75 | D7: 24.5 | E7: 0.75 | F7: 26
C8: 1 | D8: 18.1 | E8: 1 | F8: 19.5
C9: 1.5 | D9: 12.1 | E9: 1.5 | F9: 13.3
C10: 2.5 | D10: 7.41 | E10: 2.5 | F10: 7.98
C11: 4 | D11: 4.61 | E11: 4 | F11: 4.95
C12: 6 | D12: 3.08 | E12: 6 | F12: 3.3
C13: 10 | D13: 1.83 | E13: 10 | F13: 1.91 | G13: 10 | H13: 3.08
C14: 16 | D14: 1.15 | E14: 16 | F14: 1.21 | G14: 16 | H14: 1.91
C15: 25 | D15: 0.727 | E15: 25 | F15: 0.78 | G15: 25 | H15: 1.2
C16: 35 | D16: 0.524 | E16: 35 | F16: 0.554 | G16: 35 | H16: 0.868
C17: 50 | D17: 0.387 | E17: 50 | F17: 0.386 | G17: 50 | H17: 0.641
C18: 70 | D18: 0.268 | E18: 70 | F18: 0.272 | G18: 70 | H18: 0.443
C19: 95 | D19: 0.193 | E19: 95 | F19: 0.206 | G19: 95 | H19: 0.32
C20: 120 | D20: 0.153 | E20: 120 | F20: 0.161 | G20: 120 | H20: 0.253
C21: 150 | D21: 0.124 | E21: 150 | F21: 0.129 | G21: 150 | H21: 0.206
C22: 185 | D22: 0.0991 | E22: 185 | F22: 0.106 | G22: 185 | H22: 0.164
C23: 240 | D23: 0.0754 | E23: 240 | F23: 0.0801 | G23: 240 | H23: 0.125
C24: 300 | D24: 0.0601 | E24: 300 | F24: 0.0641 | G24: 300 | H24: 0.1
C25: 400 | D25: 0.047 | E25: 400 | F25: 0.0486 | G25: 400 | H25: 0.0778
C26: 500 | D26: 0.0366 | E26: 500 | F26: 0.0384 | G26: 500 | H26: 0.0605
C27: 630 | D27: 0.0283 | E27: 630 | F27: 0.0287 | G27: 630 | H27: 0.0469
C28: 800 | D28: 0.0221 | G28: 800 | H28: 0.0367
C29: 1000 | D29: 0.0176 | G29: 1000 | H29: 0.0291
A31: Size | B31: =D!F38 -> 150 | C31: =IF(B31=C6,D6,IF(B31=C7,D7,IF(B31=C8,D8,IF(B31=C9,D9,IF(B31=C10,D10,IF(B31=C11,D11,IF(B31=C12,D12,IF(B31=C13,D13,IF(B31=C14,D14,IF(B31=C15,D15,IF(B31=C16,D16,IF(B31=C17,D17,IF(B31=C18,D18,IF(B31=C19,D19,IF(B31=C20,D20,IF(B31=C21,D21,IF(B31=C22,D22,IF(B31=C23,D23,IF(B31=C24,D24,IF(B31=C25,D25,IF(B31=C26,D26,IF(B31=C27,D27,IF(B31=C28,D28,IF(B31=C29,D29,"")))))))))))))))))))))))) -> 0.124 | D31: =B31 -> 150 | E31: =IF(D31=E6,F6,IF(D31=E7,F7,IF(D31=E8,F8,IF(D31=E9,F9,IF(D31=E10,F10,IF(D31=E11,F11,IF(D31=E12,F12,IF(D31=E13,F13,IF(D31=E14,F14,IF(D31=E15,F15,IF(D31=E16,F16,IF(D31=E17,F17,IF(D31=E18,F18,IF(D31=E19,F19,IF(D31=E20,F20,IF(D31=E21,F21,IF(D31=E22,F22,IF(D31=E23,F23,IF(D31=E24,F24,IF(D31=E25,F25,IF(D31=E26,F26,IF(D31=E27,F27,IF(D31=E28,F28,IF(D31=E29,F29,"")))))))))))))))))))))))) -> 0.129 | F31: =B31 -> 150 | G31: =IF(F31=G6,H6,IF(F31=G7,H7,IF(F31=G8,H8,IF(F31=G9,H9,IF(F31=G10,H10,IF(F31=G11,H11,IF(F31=G12,H12,IF(F31=G13,H13,IF(F31=G14,H14,IF(F31=G15,H15,IF(F31=G16,H16,IF(F31=G17,H17,IF(F31=G18,H18,IF(F31=G19,H19,IF(F31=G20,H20,IF(F31=G21,H21,IF(F31=G22,H22,IF(F31=G23,H23,IF(F31=G24,H24,IF(F31=G25,H25,IF(F31=G26,H26,IF(F31=G27,H27,IF(F31=G28,H28,IF(F31=G29,H29,"")))))))))))))))))))))))) -> 0.206
B40: Rdc
C42: CU strand | E42: Flex | G42: Alu Strand | I42: =Interface!#REF! ->  | J42: R use | K42: =IF(I42="CU",C68,IF(I42="CU Flex",E68,IF(I42="Aluminium",G68,""))) -> 
C43: 0.5 | D43: 36 | E43: 0.5 | F43: 39
C44: 0.75 | D44: 24.5 | E44: 0.75 | F44: 26
C45: 1 | D45: 18.1 | E45: 1 | F45: 19.5
C46: 1.5 | D46: 12.1 | E46: 1.5 | F46: 13.3
C47: 2.5 | D47: 7.41 | E47: 2.5 | F47: 7.98
C48: 4 | D48: 4.61 | E48: 4 | F48: 4.95
C49: 6 | D49: 3.08 | E49: 6 | F49: 3.3
C50: 10 | D50: 1.83 | E50: 10 | F50: 1.91 | G50: 10 | H50: 3.08
C51: 16 | D51: 1.15 | E51: 16 | F51: 1.21 | G51: 16 | H51: 1.91
C52: 25 | D52: 0.727 | E52: 25 | F52: 0.78 | G52: 25 | H52: 1.2
C53: 35 | D53: 0.524 | E53: 35 | F53: 0.554 | G53: 35 | H53: 0.868
C54: 50 | D54: 0.387 | E54: 50 | F54: 0.386 | G54: 50 | H54: 0.641
C55: 70 | D55: 0.268 | E55: 70 | F55: 0.272 | G55: 70 | H55: 0.443
C56: 95 | D56: 0.193 | E56: 95 | F56: 0.206 | G56: 95 | H56: 0.32
C57: 120 | D57: 0.153 | E57: 120 | F57: 0.161 | G57: 120 | H57: 0.253
C58: 150 | D58: 0.124 | E58: 150 | F58: 0.129 | G58: 150 | H58: 0.206
C59: 185 | D59: 0.0991 | E59: 185 | F59: 0.106 | G59: 185 | H59: 0.164
C60: 240 | D60: 0.0754 | E60: 240 | F60: 0.0801 | G60: 240 | H60: 0.125
C61: 300 | D61: 0.0601 | E61: 300 | F61: 0.0641 | G61: 300 | H61: 0.1
C62: 400 | D62: 0.047 | E62: 400 | F62: 0.0486 | G62: 400 | H62: 0.0778
C63: 500 | D63: 0.0366 | E63: 500 | F63: 0.0384 | G63: 500 | H63: 0.0605
C64: 630 | D64: 0.0283 | E64: 630 | F64: 0.0287 | G64: 630 | H64: 0.0469
C65: 800 | D65: 0.0221 | G65: 800 | H65: 0.0367
C66: 1000 | D66: 0.0176 | G66: 1000 | H66: 0.0291
A68: Size | B68: =Interface!#REF! ->  | C68: =IF(B68=C43,D43,IF(B68=C44,D44,IF(B68=C45,D45,IF(B68=C46,D46,IF(B68=C47,D47,IF(B68=C48,D48,IF(B68=C49,D49,IF(B68=C50,D50,IF(B68=C51,D51,IF(B68=C52,D52,IF(B68=C53,D53,IF(B68=C54,D54,IF(B68=C55,D55,IF(B68=C56,D56,IF(B68=C57,D57,IF(B68=C58,D58,IF(B68=C59,D59,IF(B68=C60,D60,IF(B68=C61,D61,IF(B68=C62,D62,IF(B68=C63,D63,IF(B68=C64,D64,IF(B68=C65,D65,IF(B68=C66,D66,"")))))))))))))))))))))))) ->  | D68: =B68 ->  | E68: =IF(D68=E43,F43,IF(D68=E44,F44,IF(D68=E45,F45,IF(D68=E46,F46,IF(D68=E47,F47,IF(D68=E48,F48,IF(D68=E49,F49,IF(D68=E50,F50,IF(D68=E51,F51,IF(D68=E52,F52,IF(D68=E53,F53,IF(D68=E54,F54,IF(D68=E55,F55,IF(D68=E56,F56,IF(D68=E57,F57,IF(D68=E58,F58,IF(D68=E59,F59,IF(D68=E60,F60,IF(D68=E61,F61,IF(D68=E62,F62,IF(D68=E63,F63,IF(D68=E64,F64,IF(D68=E65,F65,IF(D68=E66,F66,"")))))))))))))))))))))))) ->  | F68: =B68 ->  | G68: =IF(F68=G43,H43,IF(F68=G44,H44,IF(F68=G45,H45,IF(F68=G46,H46,IF(F68=G47,H47,IF(F68=G48,H48,IF(F68=G49,H49,IF(F68=G50,H50,IF(F68=G51,H51,IF(F68=G52,H52,IF(F68=G53,H53,IF(F68=G54,H54,IF(F68=G55,H55,IF(F68=G56,H56,IF(F68=G57,H57,IF(F68=G58,H58,IF(F68=G59,H59,IF(F68=G60,H60,IF(F68=G61,H61,IF(F68=G62,H62,IF(F68=G63,H63,IF(F68=G64,H64,IF(F68=G65,H65,IF(F68=G66,H66,"")))))))))))))))))))))))) -> 

Sheet Sheet1 (hidden)
D2: Air | K2: Ground | S2: Air | Z2: Ground | AH2: Air | AO2: Ground | AW2: Air | BD2: Ground | BL2: Air | BT2: Ground | CC2: Air | CJ2: Ground | CR2: Air | CZ2: Ground | DH2: Air | DO2: Ground | DW2: Air | ED2: Ground | EL2: Air | ES2: Ground | FA2: Air | FH2: Ground | FP2: Air | FX2: Ground | GG2: Air | GN2: Ground | GV2: Air | HC2: Ground | HK2: Air | HR2: Ground | HZ2: Air | IG2: Ground | IO2: Air | IV2: Ground | JD2: Air | JK2: Ground | JS2: Air | JZ2: Ground | KH2: Air | KO2: Ground | KW2: Air | LD2: Ground | LL2: Air | LS2: Ground | MA2: Air | MH2: Ground | MP2: Air | MW2: Ground | NE2: Air | NL2: Ground | NT2: Air | OA2: Ground | OI2: Air | OP2: Ground
C3: 60227 IEC 01 THW | D3: Touching2 | E3: Touching3 | F3: Trefoil | G3: Spacing | H3: 2 | I3: 3 | J3: 4 | K3: Touching2 | L3: Touching3 | M3: Trefoil | N3: Spacing | O3: 2 | P3: 3 | Q3: 4 | R3: 60227 IEC 01 THW (f) | S3: Touching2 | T3: Touching3 | U3: Trefoil | V3: Spacing | W3: 2 | X3: 3 | Y3: 4 | Z3: Touching2 | AA3: Touching3 | AB3: Trefoil | AC3: Spacing | AD3: 2 | AE3: 3 | AF3: 4 | AG3: 60227 IEC 05 IV | AH3: Touching2 | AI3: Touching3 | AJ3: Trefoil | AK3: Spacing | AL3: 2 | AM3: 3 | AN3: 4 | AO3: Touching2 | AP3: Touching3 | AQ3: Trefoil | AR3: Spacing | AS3: 2 | AT3: 3 | AU3: 4 | AV3: 60227 IEC 06 IV (f) | AW3: Touching2 | AX3: Touching3 | AY3: Trefoil | AZ3: Spacing | BA3: 2 | BB3: 3 | BC3: 4 | BD3: Touching2 | BE3: Touching3 | BF3: Trefoil | BG3: Spacing | BH3: 2 | BI3: 3 | BJ3: 4 | BK3: 60227 IEC 10 | BL3: Touching2 | BM3: Touching3 | BN3: Trefoil | BO3: Spacing | BP3: 2 | BQ3: 3 | BR3: 4 | BS3: 5 | BT3: Touching2 | BU3: Touching3 | BV3: Trefoil | BW3: Spacing | BX3: 2 | BY3: 3 | BZ3: 4 | CA3: 5 | CB3: 60227 IEC 52 VCT | CC3: Touching2 | CD3: Touching3 | CE3: Trefoil | CF3: Spacing | CG3: 2 | CH3: 3 | CI3: 4 | CJ3: Touching2 | CK3: Touching3 | CL3: Trefoil | CM3: Spacing | CN3: 2 | CO3: 3 | CP3: 4 | CQ3: 60227 IEC 53 VCT | CR3: Touching2 | CS3: Touching3 | CT3: Trefoil | CU3: Spacing | CV3: 2 | CW3: 3 | CX3: 4 | CY3: 5 | CZ3: Touching2 | DA3: Touching3 | DB3: Trefoil | DC3: Spacing | DD3: 2 | DE3: 3 | DF3: 4 | DG3: NYY | DH3: Touching2 | DI3: Touching3 | DJ3: Trefoil | DK3: Spacing | DL3: 2 | DM3: 3 | DN3: 4 | DO3: Touching2 | DP3: Touching3 | DQ3: Trefoil | DR3: Spacing | DS3: 2 | DT3: 3 | DU3: 4 | DV3: VCT | DW3: Touching2 | DX3: Touching3 | DY3: Trefoil | DZ3: Spacing | EA3: 2 | EB3: 3 | EC3: 4 | ED3: Touching2 | EE3: Touching3 | EF3: Trefoil | EG3: Spacing | EH3: 2 | EI3: 3 | EJ3: 4 | EK3: NYY-SWA | EL3: Touching2 | EM3: Touching3 | EN3: Trefoil | EO3: Spacing | EP3: 2 | EQ3: 3 | ER3: 4 | ES3: Touching2 | ET3: Touching3 | EU3: Trefoil | EV3: Spacing | EW3: 2 | EX3: 3 | EY3: 4 | EZ3: FD-0.6/1KV-CV | FA3: Touching2 | FB3: Touching3 | FC3: Trefoil | FD3: Spacing | FE3: 2 | FF3: 3 | FG3: 4 | FH3: Touching2 | FI3: Touching3 | FJ3: Trefoil | FK3: Spacing | FL3: 2 | FM3: 3 | FN3: 4 | FO3: FD-0.6/1KV-CV-SWA | FP3: Touching2 | FQ3: Touching3 | FR3: Trefoil | FS3: Spacing | FT3: 2 | FU3: 3 | FV3: 4 | FW3: 5 | FX3: Touching2 | FY3: Touching3 | FZ3: Trefoil | GA3: Spacing | GB3: 2 | GC3: 3 | GD3: 4 | GE3: 5 | GF3: 1.8/3KV-CV | GG3: Touching2 | GH3: Touching3 | GI3: Trefoil | GJ3: Spacing | GK3: 2 | GL3: 3 | GM3: 4 | GN3: Touching2 | GO3: Touching3 | GP3: Trefoil | GQ3: Spacing | GR3: 2 | GS3: 3 | GT3: 4 | GU3: 3.6/6KV-CV | GV3: Touching2 | GW3: Touching3 | GX3: Trefoil | GY3: Spacing | GZ3: 2 | HA3: 3 | HB3: 4 | HC3: Touching2 | HD3: Touching3 | HE3: Trefoil | HF3: Spacing | HG3: 2 | HH3: 3 | HI3: 4 | HJ3: 6/10KV-CV | HK3: Touching2 | HL3: Touching3 | HM3: Trefoil | HN3: Spacing | HO3: 2 | HP3: 3 | HQ3: 4 | HR3: Touching2 | HS3: Touching3 | HT3: Trefoil | HU3: Spacing | HV3: 2 | HW3: 3 | HX3: 4 | HY3: 8.7/15KV-CV | HZ3: Touching2 | IA3: Touching3 | IB3: Trefoil | IC3: Spacing | ID3: 2 | IE3: 3 | IF3: 4 | IG3: Touching2 | IH3: Touching3 | II3: Trefoil | IJ3: Spacing | IK3: 2 | IL3: 3 | IM3: 4 | IN3: 12/20KV-CV | IO3: Touching2 | IP3: Touching3 | IQ3: Trefoil | IR3: Spacing | IS3: 2 | IT3: 3 | IU3: 4 | IV3: Touching2 | IW3: Touching3 | IX3: Trefoil | IY3: Spacing | IZ3: 2 | JA3: 3 | JB3: 4 | JC3: 18/30KV-CV | JD3: Touching2 | JE3: Touching3 | JF3: Trefoil | JG3: Spacing | JH3: 2 | JI3: 3 | JJ3: 4 | JK3: Touching2 | JL3: Touching3 | JM3: Trefoil | JN3: Spacing | JO3: 2 | JP3: 3 | JQ3: 4 | JR3: THWA | JS3: Touching2 | JT3: Touching3 | JU3: Trefoil | JV3: Spacing | JW3: 2 | JX3: 3 | JY3: 4 | JZ3: Touching2 | KA3: Touching3 | KB3: Trefoil | KC3: Spacing | KD3: 2 | KE3: 3 | KF3: 4 | KG3: 115KV-CE | KH3: Touching2 | KI3: Touching3 | KJ3: Trefoil | KK3: Spacing | KL3: 2 | KM3: 3 | KN3: 4 | KO3: Touching2 | KP3: Touching3 | KQ3: Trefoil | KR3: Spacing | KS3: 2 | KT3: 3 | KU3: 4 | KV3: THWA | KW3: Touching2 | KX3: Touching3 | KY3: Trefoil | KZ3: Spacing | LA3: 2 | LB3: 3 | LC3: 4 | LD3: Touching2 | LE3: Touching3 | LF3: Trefoil | LG3: Spacing | LH3: 2 | LI3: 3 | LJ3: 4 | LK3: THWA-C | LL3: Touching2 | LM3: Touching3 | LN3: Trefoil | LO3: Spacing | LP3: 2 | LQ3: 3 | LR3: 4 | LS3: Touching2 | LT3: Touching3 | LU3: Trefoil | LV3: Spacing | LW3: 2 | LX3: 3 | LY3: 4 | LZ3: 15KV-CC | MA3: Touching2 | MB3: Touching3 | MC3: Trefoil | MD3: Spacing | ME3: 2 | MF3: 3 | MG3: 4 | MH3: Touching2 | MI3: Touching3 | MJ3: Trefoil | MK3: Spacing | ML3: 2 | MM3: 3 | MN3: 4 | MO3: 25KV-CC | MP3: Touching2 | MQ3: Touching3 | MR3: Trefoil | MS3: Spacing | MT3: 2 | MU3: 3 | MV3: 4 | MW3: Touching2 | MX3: Touching3 | MY3: Trefoil | MZ3: Spacing | NA3: 2 | NB3: 3 | NC3: 4 | ND3: 35KV-CC | NE3: Touching2 | NF3: Touching3 | NG3: Trefoil | NH3: Spacing | NI3: 2 | NJ3: 3 | NK3: 4 | NL3: Touching2 | NM3: Touching3 | NN3: Trefoil | NO3: Spacing | NP3: 2 | NQ3: 3 | NR3: 4 | NS3: FD-0.6/1KV-AL-CV | NT3: Touching2 | NU3: Touching3 | NV3: Trefoil | NW3: Spacing | NX3: 2 | NY3: 3 | NZ3: 4 | OA3: Touching2 | OB3: Touching3 | OC3: Trefoil | OD3: Spacing | OE3: 2 | OF3: 3 | OG3: 4 | OH3: CVV | OI3: Touching2 | OJ3: Touching3 | OK3: Trefoil | OL3: Spacing | OM3: 2 | ON3: 3 | OO3: 4 | OP3: Touching2 | OQ3: Touching3 | OR3: Trefoil | OS3: Spacing | OT3: 2 | OU3: 3 | OV3: 4
B5: 1 | C5: 0.5 | R5: 0.5 | AG5: 0.5 | AH5: 8 | AI5: 7 | AJ5: 7 | AK5: 11 | AV5: 0.5 | AW5: 9 | AX5: 7 | AY5: 7 | AZ5: 11 | BK5: 0.5 | CB5: 0.5 | CG5: 9 | CH5: 8 | CQ5: 0.5 | CV5: 12 | CW5: 10 | CX5: 10 | CY5: 10 | DG5: 0.5 | DV5: 0.5 | EK5: 0.5 | EZ5: 0.5 | FO5: 0.5 | GF5: 0.5 | GU5: 0.5 | HJ5: 0.5 | HY5: 0.5 | IN5: 0.5 | JC5: 0.5 | JR5: 0.5 | KG5: 0.5 | KV5: 0.5 | LK5: 0.5 | LZ5: 0.5 | MO5: 0.5 | ND5: 0.5 | NS5: 0.5 | OH5: 0.5 | OM5: 12 | ON5: 10 | OO5: 10
B6: 2 | C6: 0.75 | R6: 0.75 | AG6: 0.75 | AH6: 10 | AI6: 9 | AJ6: 8 | AK6: 14 | AV6: 0.75 | AW6: 10 | AX6: 9 | AY6: 9 | AZ6: 14 | BK6: 0.75 | CB6: 0.75 | CG6: 12 | CH6: 10 | CQ6: 0.75 | CV6: 14 | CW6: 12 | CX6: 12 | CY6: 12 | DG6: 0.75 | DV6: 0.75 | EK6: 0.75 | EZ6: 0.75 | FO6: 0.75 | GF6: 0.75 | GU6: 0.75 | HJ6: 0.75 | HY6: 0.75 | IN6: 0.75 | JC6: 0.75 | JR6: 0.75 | KG6: 0.75 | KV6: 0.75 | LK6: 0.75 | LZ6: 0.75 | MO6: 0.75 | ND6: 0.75 | NS6: 0.75 | OH6: 0.75 | OM6: 15 | ON6: 13 | OO6: 13
B7: 3 | C7: 1 | R7: 1 | AG7: 1 | AH7: 13 | AI7: 11 | AJ7: 10 | AK7: 16 | AV7: 1 | AW7: 12 | AX7: 11 | AY7: 10 | AZ7: 16 | BK7: 1 | CB7: 1 | CQ7: 1 | CV7: 18 | CW7: 15 | CX7: 15 | CY7: 15 | DG7: 1 | DH7: 16 | DI7: 16 | DJ7: 15 | DK7: 19 | DO7: 27 | DP7: 27 | DQ7: 20 | DR7: 27 | DV7: 1 | EK7: 1 | EP7: 16 | EQ7: 14 | ER7: 14 | EW7: 21 | EX7: 18 | EY7: 18 | EZ7: 1 | FO7: 1 | GF7: 1 | GU7: 1 | HJ7: 1 | HY7: 1 | IN7: 1 | JC7: 1 | JR7: 1 | KG7: 1 | KV7: 1 | LK7: 1 | LZ7: 1 | MO7: 1 | ND7: 1 | NS7: 1 | OH7: 1 | OM7: 17 | ON7: 15 | OO7: 15
B8: 4 | C8: 1.5 | D8: 16 | E8: 14 | F8: 14 | G8: 21 | R8: 1.5 | S8: 16 | T8: 14 | U8: 13 | V8: 20 | AG8: 1.5 | AV8: 1.5 | BK8: 1.5 | BP8: 19 | BQ8: 16 | BR8: 16 | BS8: 16 | CB8: 1.5 | CQ8: 1.5 | CV8: 25 | CW8: 21 | CX8: 21 | CY8: 21 | DG8: 1.5 | DH8: 20 | DI8: 19 | DJ8: 19 | DK8: 24 | DO8: 33 | DP8: 33 | DQ8: 24 | DR8: 33 | DV8: 1.5 | EK8: 1.5 | EP8: 20 | EQ8: 17 | ER8: 17 | EW8: 27 | EX8: 23 | EY8: 23 | EZ8: 1.5 | FA8: 26 | FB8: 24 | FC8: 23 | FD8: 31 | FE8: 26 | FF8: 22 | FG8: 22 | FH8: 44 | FI8: 44 | FJ8: 30 | FK8: 44 | FL8: 33 | FM8: 28 | FN8: 28 | FO8: 1.5 | FT8: 28 | FU8: 24 | FV8: 24 | FW8: 24 | GB8: 33 | GC8: 28 | GD8: 28 | GE8: 28 | GF8: 1.5 | GU8: 1.5 | HJ8: 1.5 | HY8: 1.5 | IN8: 1.5 | JC8: 1.5 | JR8: 1.5 | KG8: 1.5 | KV8: 1.5 | LK8: 1.5 | LZ8: 1.5 | MO8: 1.5 | ND8: 1.5 | NS8: 1.5 | OH8: 1.5 | OM8: 22 | ON8: 19 | OO8: 19
B9: 5 | C9: 2.5 | D9: 22 | E9: 20 | F9: 19 | G9: 28 | R9: 2.5 | S9: 22 | T9: 19 | U9: 19 | V9: 28 | AG9: 2.5 | AV9: 2.5 | BK9: 2.5 | BP9: 25 | BQ9: 22 | BR9: 22 | BS9: 22 | CB9: 2.5 | CQ9: 2.5 | DG9: 2.5 | DH9: 27 | DI9: 26 | DJ9: 25 | DK9: 32 | DO9: 44 | DP9: 44 | DQ9: 32 | DR9: 44 | DV9: 2.5 | EK9: 2.5 | EP9: 27 | EQ9: 23 | ER9: 23 | EW9: 35 | EX9: 30 | EY9: 30 | EZ9: 2.5 | FA9: 34 | FB9: 32 | FC9: 31 | FD9: 42 | FE9: 35 | FF9: 30 | FG9: 30 | FH9: 58 | FI9: 58 | FJ9: 39 | FK9: 58 | FL9: 44 | FM9: 37 | FN9: 37 | FO9: 2.5 | FT9: 37 | FU9: 32 | FV9: 32 | FW9: 32 | GB9: 43 | GC9: 37 | GD9: 37 | GE9: 37 | GF9: 2.5 | GU9: 2.5 | HJ9: 2.5 | HY9: 2.5 | IN9: 2.5 | JC9: 2.5 | JR9: 2.5 | KG9: 2.5 | KV9: 2.5 | LK9: 2.5 | LZ9: 2.5 | MO9: 2.5 | ND9: 2.5 | NS9: 2.5 | OH9: 2.5 | OM9: 29 | ON9: 25 | OO9: 25
B10: 6 | C10: 4 | D10: 29 | E10: 26 | F10: 25 | G10: 37 | R10: 4 | S10: 29 | T10: 26 | U10: 25 | V10: 37 | AG10: 4 | AV10: 4 | BK10: 4 | BP10: 34 | BQ10: 29 | BR10: 29 | BS10: 29 | CB10: 4 | CQ10: 4 | DG10: 4 | DH10: 35 | DI10: 34 | DJ10: 33 | DK10: 42 | DO10: 58 | DP10: 58 | DQ10: 41 | DR10: 58 | DV10: 4 | DW10: 33 | DX10: 31 | DY10: 30 | DZ10: 40 | EA10: 33 | EB10: 29 | EC10: 29 | EK10: 4 | EP10: 35 | EQ10: 31 | ER10: 31 | EW10: 45 | EX10: 39 | EY10: 39 | EZ10: 4 | FA10: 45 | FB10: 42 | FC10: 41 | FD10: 55 | FE10: 46 | FF10: 39 | FG10: 39 | FH10: 75 | FI10: 75 | FJ10: 50 | FK10: 75 | FL10: 57 | FM10: 48 | FN10: 48 | FO10: 4 | FT10: 50 | FU10: 42 | FV10: 42 | FW10: 42 | GB10: 57 | GC10: 48 | GD10: 48 | GE10: 48 | GF10: 4 | GU10: 4 | HJ10: 4 | HY10: 4 | IN10: 4 | JC10: 4 | JR10: 4 | KG10: 4 | KV10: 4 | LK10: 4 | LZ10: 4 | MO10: 4 | ND10: 4 | NS10: 4 | OH10: 4 | OM10: 39 | ON10: 34 | OO10: 34
B11: 7 | C11: 6 | D11: 39 | E11: 35 | F11: 34 | G11: 49 | R11: 6 | S11: 38 | T11: 34 | U11: 33 | V11: 48 | AG11: 6 | AV11: 6 | BK11: 6 | BP11: 44 | BQ11: 37 | BR11: 37 | BS11: 37 | CB11: 6 | CQ11: 6 | DG11: 6 | DH11: 45 | DI11: 43 | DJ11: 42 | DK11: 54 | DO11: 74 | DP11: 74 | DQ11: 52 | DR11: 74 | DV11: 6 | DW11: 42 | DX11: 40 | DY11: 39 | DZ11: 51 | EA11: 43 | EB11: 37 | EC11: 37 | EK11: 6 | EP11: 46 | EQ11: 40 | ER11: 40 | EW11: 58 | EX11: 50 | EY11: 50 | EZ11: 6 | FA11: 57 | FB11: 53 | FC11: 52 | FD11: 69 | FE11: 59 | FF11: 50 | FG11: 50 | FH11: 94 | FI11: 94 | FJ11: 63 | FK11: 94 | FL11: 79 | FM11: 60 | FN11: 60 | FO11: 6 | FT11: 63 | FU11: 53 | FV11: 53 | FW11: 53 | GB11: 71 | GC11: 60 | GD11: 60 | GE11: 60 | GF11: 6 | GU11: 6 | HJ11: 6 | HY11: 6 | IN11: 6 | JC11: 6 | JR11: 6 | KG11: 6 | KV11: 6 | LK11: 6 | LZ11: 6 | MO11: 6 | ND11: 6 | NS11: 6 | OH11: 6 | OM11: 51 | ON11: 44 | OO11: 44
B12: 8 | C12: 10 | D12: 54 | E12: 50 | F12: 48 | G12: 68 | R12: 10 | S12: 54 | T12: 50 | U12: 49 | V12: 68 | AG12: 10 | AV12: 10 | BK12: 10 | BP12: 60 | BQ12: 52 | BR12: 52 | BS12: 52 | CB12: 10 | CQ12: 10 | DG12: 10 | DH12: 61 | DI12: 59 | DJ12: 57 | DK12: 73 | DO12: 100 | DP12: 100 | DQ12: 69 | DR12: 100 | DV12: 10 | DW12: 61 | DX12: 58 | DY12: 56 | DZ12: 73 | EA12: 61 | EB12: 52 | EC12: 52 | EK12: 10 | EP12: 63 | EQ12: 55 | ER12: 55 | EW12: 77 | EX12: 66 | EY12: 66 | EZ12: 10 | FA12: 76 | FB12: 71 | FC12: 65 | FD12: 93 | FE12: 79 | FF12: 67 | FG12: 67 | FH12: 125 | FI12: 125 | FJ12: 83 | FK12: 125 | FL12: 93 | FM12: 79 | FN12: 79 | FO12: 10 | FT12: 83 | FU12: 71 | FV12: 71 | FW12: 71 | GB12: 93 | GC12: 79 | GD12: 79 | GE12: 79 | GF12: 10 | GG12: 84 | GH12: 81 | GI12: 79 | GJ12: 100 | GL12: 73 | GN12: 123 | GO12: 123 | GP12: 85 | GQ12: 123 | GS12: 80 | GU12: 10 | GV12: 86 | GW12: 83 | GX12: 81 | GY12: 100 | HA12: 80 | HC12: 120 | HD12: 120 | HE12: 84 | HF12: 120 | HH12: 84 | HJ12: 10 | HY12: 10 | IN12: 10 | JC12: 10 | JR12: 10 | KG12: 10 | KV12: 10 | KW12: 41.68689012 | KX12: 38.36880088 | KY12: 37.25501688 | KZ12: 52.2250109 | LK12: 10 | LL12: 41.15793072 | LM12: 37.81768638 | LN12: 36.72362144 | LO12: 51.56086234 | LZ12: 10 | MO12: 10 | ND12: 10 | NS12: 10 | NT12: 59 | NU12: 55 | NV12: 54 | NW12: 72 | NX12: 61 | NY12: 52 | NZ12: 52 | OA12: 96 | OB12: 96 | OC12: 64 | OD12: 96 | OE12: 72 | OF12: 61 | OG12: 61 | OH12: 10
B13: 9 | C13: 16 | D13: 72 | E13: 67 | F13: 65 | G13: 91 | R13: 16 | S13: 72 | T13: 67 | U13: 65 | V13: 91 | AG13: 16 | AV13: 16 | BK13: 16 | BP13: 80 | BQ13: 69 | BR13: 69 | BS13: 69 | CB13: 16 | CQ13: 16 | DG13: 16 | DH13: 81 | DI13: 78 | DJ13: 76 | DK13: 96 | DO13: 131 | DP13: 131 | DQ13: 89 | DR13: 131 | DV13: 16 | DW13: 79 | DX13: 76 | DY13: 74 | DZ13: 95 | EA13: 80 | EB13: 69 | EC13: 69 | EK13: 16 | EP13: 84 | EQ13: 72 | ER13: 72 | EW13: 100 | EX13: 85 | EY13: 85 | EZ13: 16 | FA13: 101 | FB13: 95 | FC13: 92 | FD13: 123 | FE13: 105 | FF13: 85 | FG13: 85 | FH13: 162 | FI13: 162 | FJ13: 107 | FK13: 162 | FL13: 121 | FM13: 98 | FN13: 98 | FO13: 16 | FT13: 111 | FU13: 94 | FV13: 94 | FW13: 94 | GB13: 121 | GC13: 102 | GD13: 102 | GE13: 102 | GF13: 16 | GG13: 110 | GH13: 106 | GI13: 103 | GJ13: 131 | GL13: 96 | GN13: 160 | GO13: 160 | GP13: 109 | GQ13: 160 | GS13: 103 | GU13: 16 | GV13: 113 | GW13: 109 | GX13: 107 | GY13: 132 | HA13: 105 | HC13: 156 | HD13: 156 | HE13: 108 | HF13: 156 | HH13: 108 | HJ13: 16 | HK13: 116 | HL13: 114 | HM13: 111 | HN13: 134 | HP13: 115 | HR13: 155 | HS13: 155 | HT13: 109 | HU13: 155 | HW13: 113 | HY13: 16 | IN13: 16 | JC13: 16 | JR13: 16 | KG13: 16 | KV13: 16 | KW13: 56.30318678 | KX13: 52.2720821 | KY13: 50.73278138 | KZ13: 70.45065164 | LK13: 16 | LL13: 55.13344317 | LM13: 51.03259616 | LN13: 49.53663145 | LO13: 69.03012227 | LZ13: 16 | MO13: 16 | ND13: 16 | NS13: 16 | NT13: 78 | NU13: 74 | NV13: 72 | NW13: 95 | NX13: 82 | NY13: 69 | NZ13: 69 | OA13: 126 | OB13: 126 | OC13: 82 | OD13: 126 | OE13: 94 | OF13: 79 | OG13: 79 | OH13: 16
B14: 10 | C14: 25 | D14: 98 | E14: 92 | F14: 89 | G14: 122 | R14: 25 | S14: 96 | T14: 91 | U14: 88 | V14: 120 | AG14: 25 | AV14: 25 | BK14: 25 | BP14: 107 | BQ14: 92 | BR14: 92 | BS14: 92 | CB14: 25 | CQ14: 25 | DG14: 25 | DH14: 107 | DI14: 103 | DJ14: 100 | DK14: 128 | DO14: 170 | DP14: 170 | DQ14: 115 | DR14: 170 | DV14: 25 | DW14: 105 | DX14: 101 | DY14: 98 | DZ14: 125 | EA14: 104 | EB14: 90 | EC14: 90 | EK14: 25 | EP14: 111 | EQ14: 97 | ER14: 97 | EW14: 129 | EX14: 110 | EY14: 110 | EZ14: 25 | FA14: 135 | FB14: 128 | FC14: 125 | FD14: 164 | FE14: 141 | FF14: 120 | FG14: 120 | FH14: 210 | FI14: 210 | FJ14: 137 | FK14: 210 | FL14: 156 | FM14: 132 | FN14: 132 | FO14: 25 | FT14: 147 | FU14: 125 | FV14: 125 | FW14: 125 | GB14: 156 | GC14: 132 | GD14: 132 | GE14: 132 | GF14: 25 | GG14: 144 | GH14: 139 | GI14: 135 | GJ14: 171 | GL14: 126 | GN14: 205 | GO14: 205 | GP14: 138 | GQ14: 205 | GS14: 133 | GU14: 25 | GV14: 149 | GW14: 145 | GX14: 142 | GY14: 175 | HA14: 139 | HC14: 203 | HD14: 203 | HE14: 139 | HF14: 203 | HH14: 138 | HJ14: 25 | HK14: 152 | HL14: 149 | HM14: 145 | HN14: 176 | HP14: 149 | HR14: 200 | HS14: 200 | HT14: 139 | HU14: 200 | HW14: 144 | HY14: 25 | HZ14: 154 | IA14: 151 | IB14: 148 | IC14: 177 | IE14: 146 | IG14: 198 | IH14: 198 | II14: 140 | IJ14: 198 | IL14: 140 | IN14: 25 | JC14: 25 | JR14: 25 | KG14: 25 | KV14: 25 | KW14: 76.3126049 | KX14: 71.67614763 | KY14: 69.55019685 | KZ14: 94.90289694 | LK14: 25 | LL14: 74.65652558 | LM14: 69.9244669 | LN14: 67.86284301 | LO14: 92.88436209 | LZ14: 25 | MO14: 25 | ND14: 25 | NS14: 25 | NT14: 105 | NU14: 100 | NV14: 97 | NW14: 128 | NX14: 110 | NY14: 93 | NZ14: 93 | OA14: 163 | OB14: 163 | OC14: 107 | OD14: 163 | OE14: 121 | OF14: 103 | OG14: 103 | OH14: 25
B15: 11 | C15: 35 | D15: 121 | E15: 115 | F15: 111 | G15: 151 | R15: 35 | S15: 121 | T15: 114 | U15: 111 | V15: 151 | AG15: 35 | AV15: 35 | BK15: 35 | BP15: 131 | BQ15: 113 | BR15: 113 | BS15: 113 | CB15: 35 | CQ15: 35 | DG15: 35 | DH15: 131 | DI15: 126 | DJ15: 123 | DK15: 157 | DO15: 206 | DP15: 206 | DQ15: 138 | DR15: 206 | DV15: 35 | DW15: 130 | DX15: 126 | DY15: 122 | DZ15: 155 | EA15: 130 | EB15: 112 | EC15: 112 | EK15: 35 | EP15: 136 | EQ15: 118 | ER15: 118 | EW15: 155 | EX15: 132 | EY15: 132 | EZ15: 35 | FA15: 166 | FB15: 158 | FC15: 154 | FD15: 202 | FE15: 174 | FF15: 148 | FG15: 148 | FH15: 253 | FI15: 253 | FJ15: 165 | FK15: 253 | FL15: 188 | FM15: 159 | FN15: 159 | FO15: 35 | FT15: 182 | FU15: 154 | FV15: 154 | FW15: 154 | GB15: 188 | GC15: 158 | GD15: 158 | GE15: 158 | GF15: 35 | GG15: 176 | GH15: 170 | GI15: 166 | GJ15: 210 | GL15: 154 | GN15: 250 | GO15: 250 | GP15: 167 | GQ15: 250 | GS15: 159 | GU15: 35 | GV15: 182 | GW15: 177 | GX15: 172 | GY15: 213 | HA15: 168 | HC15: 244 | HD15: 244 | HE15: 167 | HF15: 244 | HH15: 165 | HJ15: 35 | HK15: 184 | HL15: 181 | HM15: 176 | HN15: 214 | HP15: 177 | HR15: 241 | HS15: 241 | HT15: 167 | HU15: 241 | HW15: 169 | HY15: 35 | HZ15: 187 | IA15: 184 | IB15: 179 | IC15: 215 | IE15: 178 | IG15: 237 | IH15: 237 | II15: 167 | IJ15: 237 | IL15: 168 | IN15: 35 | IO15: 188 | IP15: 186 | IQ15: 181 | IR15: 214 | IT15: 176 | IV15: 235 | IW15: 235 | IX15: 166 | IY15: 235 | JA15: 166 | JC15: 35 | JD15: 191 | JE15: 190 | JF15: 186 | JG15: 213 | JI15: 154 | JK15: 228 | JL15: 228 | JM15: 166 | JN15: 228 | JP15: 149 | JR15: 35 | KG15: 35 | KV15: 35 | KW15: 93.31889758 | KX15: 88.18334399 | KY15: 85.5569656 | KZ15: 115.6289852 | LK15: 35 | LL15: 92.00394659 | LM15: 86.68114753 | LN15: 84.09022617 | LO15: 114.3743811 | LZ15: 35 | MD15: 164 | MO15: 35 | MS15: 165 | ND15: 35 | NH15: 200 | NS15: 35 | NT15: 128 | NU15: 122 | NV15: 119 | NW15: 156 | NX15: 134 | NY15: 114 | NZ15: 114 | OA15: 196 | OB15: 196 | OC15: 128 | OD15: 196 | OE15: 146 | OF15: 123 | OG15: 123 | OH15: 35
B16: 12 | C16: 50 | D16: 149 | E16: 141 | F16: 137 | G16: 184 | R16: 50 | S16: 154 | T16: 147 | U16: 142 | V16: 191 | AG16: 50 | AV16: 50 | BK16: 50 | CB16: 50 | CQ16: 50 | DG16: 50 | DH16: 158 | DI16: 153 | DJ16: 148 | DK16: 189 | DL16: 160 | DM16: 136 | DN16: 136 | DO16: 245 | DP16: 245 | DQ16: 163 | DR16: 245 | DS16: 195 | DT16: 164 | DU16: 164 | DV16: 50 | EK16: 50 | EP16: 1654 | EQ16: 143 | ER16: 143 | EW16: 183 | EX16: 155 | EY16: 155 | EZ16: 50 | FA16: 201 | FB16: 193 | FC16: 187 | FD16: 245 | FE16: 211 | FF16: 180 | FG16: 180 | FH16: 300 | FI16: 300 | FJ16: 195 | FK16: 300 | FL16: 222 | FM16: 188 | FN16: 188 | FO16: 50 | FT16: 219 | FU16: 186 | FV16: 186 | FW16: 186 | GB16: 222 | GC16: 187 | GD16: 187 | GE16: 187 | GF16: 50 | GG16: 213 | GH16: 206 | GI16: 200 | GJ16: 255 | GL16: 186 | GN16: 297 | GO16: 297 | GP16: 197 | GQ16: 297 | GS16: 188 | GU16: 50 | GV16: 218 | GW16: 213 | GX16: 208 | GY16: 256 | HA16: 202 | HC16: 290 | HD16: 290 | HE16: 197 | HF16: 290 | HH16: 195 | HJ16: 50 | HK16: 221 | HL16: 217 | HM16: 212 | HN16: 258 | HP16: 210 | HR16: 286 | HS16: 286 | HT16: 197 | HU16: 286 | HW16: 198 | HY16: 50 | HZ16: 224 | IA16: 220 | IB16: 215 | IC16: 258 | IE16: 212 | IG16: 283 | IH16: 283 | II16: 197 | IJ16: 283 | IL16: 197 | IN16: 50 | IO16: 225 | IP16: 222 | IQ16: 217 | IR16: 258 | IT16: 212 | IV16: 279 | IW16: 279 | IX16: 197 | IY16: 279 | JA16: 196 | JC16: 50 | JD16: 228 | JE16: 226 | JF16: 221 | JG16: 256 | JI16: 208 | JK16: 273 | JL16: 273 | JM16: 196 | JN16: 273 | JP16: 192 | JR16: 50 | KG16: 50 | KV16: 50 | KW16: 115.5249767 | KX16: 110.0008279 | KY16: 106.6694942 | KZ16: 142.8289843 | LK16: 50 | LL16: 113.1091167 | LM16: 107.4638047 | LN16: 104.2351891 | LO16: 139.8279077 | LZ16: 50 | MD16: 198 | MO16: 50 | MS16: 199 | ND16: 50 | NH16: 251 | NS16: 50 | NT16: 155 | NU16: 149 | NV16: 145 | NW16: 189 | NX16: 163 | NY16: 139 | NZ16: 139 | OA16: 232 | OB16: 232 | OC16: 151 | OD16: 232 | OE16: 172 | OF16: 145 | OG16: 145 | OH16: 50
B17: 13 | C17: 70 | D17: 189 | E17: 181 | F17: 175 | G17: 234 | R17: 70 | S17: 194 | T17: 186 | U17: 180 | V17: 240 | AG17: 70 | AV17: 70 | BK17: 70 | CB17: 70 | CQ17: 70 | DG17: 70 | DH17: 199 | DI17: 193 | DJ17: 187 | DK17: 238 | DL17: 200 | DM17: 174 | DN17: 174 | DO17: 302 | DP17: 302 | DQ17: 200 | DR17: 302 | DS17: 239 | DT17: 205 | DU17: 205 | DV17: 70 | EK17: 70 | EP17: 206 | EQ17: 179 | ER17: 179 | EW17: 224 | EX17: 190 | EY17: 190 | EZ17: 70 | FA17: 254 | FB17: 245 | FC17: 238 | FD17: 309 | FE17: 267 | FF17: 227 | FG17: 227 | FH17: 368 | FI17: 368 | FJ17: 239 | FK17: 368 | FL17: 272 | FM17: 230 | FN17: 230 | FO17: 70 | FT17: 275 | FU17: 233 | FV17: 233 | FW17: 233 | GB17: 271 | GC17: 228 | GD17: 228 | GE17: 228 | GF17: 70 | GG17: 267 | GH17: 260 | GI17: 255 | GJ17: 320 | GL17: 233 | GN17: 365 | GO17: 365 | GP17: 241 | GQ17: 365 | GS17: 229 | GU17: 70 | GV17: 372 | GW17: 267 | GX17: 259 | GY17: 321 | HA17: 251 | HC17: 356 | HD17: 356 | HE17: 240 | HF17: 356 | HH17: 237 | HJ17: 70 | HK17: 276 | HL17: 271 | HM17: 264 | HN17: 322 | HP17: 259 | HR17: 352 | HS17: 352 | HT17: 241 | HU17: 352 | HW17: 240 | HY17: 70 | HZ17: 279 | IA17: 275 | IB17: 268 | IC17: 322 | IE17: 262 | IG17: 347 | IH17: 347 | II17: 240 | IJ17: 347 | IL17: 240 | IN17: 70 | IO17: 280 | IP17: 277 | IQ17: 270 | IR17: 321 | IT17: 263 | IV17: 344 | IW17: 344 | IX17: 240 | IY17: 344 | JA17: 239 | JC17: 70 | JD17: 283 | JE17: 281 | JF17: 275 | JG17: 319 | JI17: 263 | JK17: 336 | JL17: 336 | JM17: 240 | JN17: 336 | JP17: 237 | JR17: 70 | KG17: 70 | KV17: 70 | KW17: 147.4416221 | KX17: 141.2681606 | KY17: 136.8920914 | KZ17: 182.2142717 | LK17: 70 | LL17: 143.9053696 | LM17: 137.5432835 | LN17: 133.3218937 | LO17: 177.8492815 | LZ17: 70 | MD17: 250 | MO17: 70 | MS17: 250 | ND17: 70 | NH17: 306 | NS17: 70 | NT17: 197 | NU17: 190 | NV17: 184 | NW17: 240 | NX17: 207 | NY17: 176 | NZ17: 176 | OA17: 285 | OB17: 285 | OC17: 185 | OD17: 285 | OE17: 211 | OF17: 178 | OG17: 178 | OH17: 70
B18: 14 | C18: 95 | D18: 237 | E18: 228 | F18: 221 | G18: 292 | R18: 95 | S18: 235 | T18: 227 | U18: 219 | V18: 289 | AG18: 95 | AV18: 95 | BK18: 95 | CB18: 95 | CQ18: 95 | DG18: 95 | DH18: 245 | DI18: 239 | DJ18: 232 | DK18: 294 | DL18: 245 | DM18: 213 | DN18: 213 | DO18: 363 | DP18: 363 | DQ18: 240 | DR18: 363 | DS18: 288 | DT18: 245 | DU18: 245 | DV18: 95 | EK18: 95 | EP18: 253 | EQ18: 220 | ER18: 220 | EW18: 268 | EX18: 227 | EY18: 227 | EZ18: 95 | FA18: 315 | FB18: 306 | FC18: 296 | FD18: 383 | FE18: 329 | FF18: 280 | FG18: 280 | FH18: 442 | FI18: 442 | FJ18: 286 | FK18: 442 | FL18: 326 | FM18: 276 | FN18: 276 | FO18: 95 | FT18: 337 | FU18: 286 | FV18: 286 | FW18: 286 | GB18: 325 | GC18: 273 | GD18: 273 | GE18: 273 | GF18: 95 | GG18: 328 | GH18: 320 | GI18: 311 | GJ18: 394 | GL18: 286 | GN18: 439 | GO18: 439 | GP18: 289 | GQ18: 439 | GS18: 275 | GU18: 95 | GV18: 333 | GW18: 327 | GX18: 318 | GY18: 393 | HA18: 307 | HC18: 428 | HD18: 429 | HE18: 288 | HF18: 429 | HH18: 284 | HJ18: 95 | HK18: 337 | HL18: 332 | HM18: 323 | HN18: 394 | HP18: 297 | HR18: 424 | HS18: 424 | HT18: 288 | HU18: 424 | HW18: 281 | HY18: 95 | HZ18: 340 | IA18: 336 | IB18: 327 | IC18: 394 | IE18: 319 | IG18: 419 | IH18: 419 | II18: 288 | IJ18: 419 | IL18: 287 | IN18: 95 | IO18: 342 | IP18: 338 | IQ18: 330 | IR18: 393 | IT18: 321 | IV18: 414 | IW18: 414 | IX18: 288 | IY18: 414 | JA18: 286 | JC18: 95 | JD18: 345 | JE18: 343 | JF18: 335 | JG18: 390 | JI18: 321 | JK18: 405 | JL18: 405 | JM18: 287 | JN18: 405 | JP18: 284 | JR18: 95 | KG18: 95 | KV18: 95 | KW18: 183.3152627 | KX18: 176.8037917 | KY18: 171.2520192 | KZ18: 225.6709588 | LK18: 95 | LL18: 178.1355016 | LM18: 171.3400387 | LN18: 166.0181551 | LO18: 219.3361858 | LZ18: 95 | MD18: 306 | MO18: 95 | MS18: 305 | ND18: 95 | NH18: 355 | NS18: 95 | NT18: 243 | NU18: 236 | NV18: 228 | NW18: 295 | NX18: 254 | NY18: 216 | NZ18: 216 | OA18: 342 | OB18: 342 | OC18: 221 | OD18: 342 | OE18: 253 | OF18: 213 | OG18: 213 | OH18: 95
B19: 15 | C19: 120 | D19: 276 | E19: 268 | F19: 259 | G19: 341 | R19: 120 | S19: 278 | T19: 269 | U19: 260 | V19: 342 | AG19: 120 | AV19: 120 | BK19: 120 | CB19: 120 | CQ19: 120 | DG19: 120 | DH19: 285 | DI19: 278 | DJ19: 270 | DK19: 342 | DL19: 285 | DM19: 247 | DN19: 247 | DO19: 414 | DP19: 415 | DQ19: 274 | DR19: 415 | DS19: 329 | DT19: 279 | DU19: 279 | DV19: 120 | EK19: 120 | EP19: 292 | EQ19: 253 | ER19: 253 | EW19: 305 | EX19: 257 | EY19: 257 | EZ19: 120 | FA19: 367 | FB19: 357 | FC19: 346 | FD19: 446 | FE19: 382 | FF19: 326 | FG19: 326 | FH19: 410 | FI19: 399 | FJ19: 387 | FK19: 497 | FL19: 371 | FM19: 313 | FN19: 313 | FO19: 120 | FT19: 389 | FU19: 332 | FV19: 332 | FW19: 332 | GB19: 368 | GC19: 310 | GD19: 310 | GE19: 310 | GF19: 120 | GG19: 381 | GH19: 372 | GI19: 361 | GJ19: 456 | GL19: 331 | GN19: 499 | GO19: 500 | GP19: 328 | GQ19: 500 | GS19: 312 | GU19: 120 | GV19: 386 | GW19: 379 | GX19: 368 | GY19: 455 | HA19: 353 | HC19: 489 | HD19: 489 | HE19: 327 | HF19: 489 | HH19: 322 | HJ19: 120 | HK19: 390 | HL19: 384 | HM19: 373 | HN19: 456 | HP19: 363 | HR19: 484 | HS19: 484 | HT19: 327 | HU19: 484 | HW19: 325 | HY19: 120 | HZ19: 392 | IA19: 388 | IB19: 377 | IC19: 454 | IE19: 307 | IG19: 478 | IH19: 478 | II19: 327 | IJ19: 478 | IL19: 325 | IN19: 120 | IO19: 394 | IP19: 390 | IQ19: 380 | IR19: 453 | IT19: 369 | IV19: 472 | IW19: 473 | IX19: 327 | IY19: 473 | JA19: 325 | JC19: 120 | JD19: 397 | JE19: 395 | JF19: 385 | JG19: 450 | JI19: 370 | JK19: 463 | JL19: 463 | JM19: 327 | JN19: 463 | JP19: 323 | JR19: 120 | KG19: 120 | KV19: 120 | KW19: 213.775042 | KX19: 206.8633355 | KY19: 200.2480952 | KZ19: 263.1909846 | LK19: 120 | LL19: 208.6846159 | LM19: 201.5044195 | LN19: 195.1246862 | LO19: 256.9208562 | LZ19: 120 | MD19: 355 | MO19: 120 | MS19: 353 | ND19: 120 | NH19: 403 | NS19: 120 | NT19: 285 | NU19: 277 | NV19: 268 | NW19: 345 | NX19: 296 | NY19: 253 | NZ19: 253 | OA19: 390 | OB19: 390 | OC19: 252 | OD19: 391 | OE19: 288 | OF19: 243 | OG19: 243 | OH19: 120
B20: 16 | C20: 150 | D20: 318 | E20: 309 | F20: 299 | G20: 391 | R20: 150 | S20: 322 | T20: 314 | U20: 303 | V20: 396 | AG20: 150 | AV20: 150 | BK20: 150 | CB20: 150 | CQ20: 150 | DG20: 150 | DH20: 327 | DI20: 320 | DJ20: 311 | DK20: 390 | DL20: 325 | DM20: 284 | DN20: 284 | DO20: 463 | DP20: 463 | DQ20: 300 | DR20: 464 | DS20: 368 | DT20: 315 | DU20: 315 | DV20: 150 | EK20: 150 | EP20: 330 | EQ20: 287 | ER20: 287 | EW20: 339 | EX20: 287 | EY20: 287 | EZ20: 150 | FA20: 442 | FB20: 411 | FC20: 398 | FD20: 510 | FE20: 436 | FF20: 372 | FG20: 372 | FH20: 562 | FI20: 563 | FJ20: 364 | FK20: 564 | FL20: 415 | FM20: 350 | FN20: 350 | FO20: 150 | FT20: 444 | FU20: 376 | FV20: 376 | FW20: 376 | GB20: 412 | GC20: 346 | GD20: 346 | GE20: 346 | GF20: 150 | GG20: 434 | GH20: 425 | GI20: 412 | GJ20: 521 | GL20: 377 | GN20: 561 | GO20: 562 | GP20: 368 | GQ20: 562 | GS20: 350 | GU20: 150 | GV20: 439 | GW20: 432 | GX20: 419 | GY20: 518 | HA20: 400 | HC20: 549 | HD20: 549 | HE20: 366 | HF20: 550 | HH20: 360 | HJ20: 150 | HK20: 443 | HL20: 437 | HM20: 425 | HN20: 518 | HP20: 412 | HR20: 543 | HS20: 544 | HT20: 366 | HU20: 544 | HW20: 364 | HY20: 150 | HZ20: 446 | IA20: 441 | IB20: 429 | IC20: 517 | IE20: 416 | IG20: 538 | IH20: 538 | II20: 367 | IJ20: 538 | IL20: 364 | IN20: 150 | IO20: 448 | IP20: 444 | IQ20: 432 | IR20: 516 | IT20: 418 | IV20: 532 | IW20: 532 | IX20: 366 | IY20: 533 | JA20: 364 | JC20: 150 | JD20: 451 | JE20: 448 | JF20: 437 | JG20: 510 | JI20: 419 | JK20: 520 | JL20: 521 | JM20: 366 | JN20: 521 | JP20: 363 | JR20: 150 | KG20: 150 | KV20: 150 | KW20: 245.9845415 | KX20: 239.0989159 | KY20: 231.3993943 | KZ20: 301.5810931 | LK20: 150 | LL20: 239.228656 | LM20: 231.9033036 | LN20: 224.4838487 | LO20: 293.704218 | LZ20: 150 | MD20: 405 | MO20: 150 | MS20: 402 | ND20: 150 | NH20: 464 | NS20: 150 | NT20: 325 | NU20: 317 | NV20: 308 | NW20: 393 | NX20: 337 | NY20: 288 | NZ20: 288 | OA20: 435 | OB20: 436 | OC20: 282 | OD20: 436 | OE20: 322 | OF20: 271 | OG20: 271 | OH20: 150
B21: 17 | C21: 185 | D21: 370 | E21: 361 | F21: 348 | G21: 454 | R21: 185 | S21: 365 | T21: 357 | U21: 345 | V21: 448 | AG21: 185 | AV21: 185 | BK21: 185 | CB21: 185 | CQ21: 185 | DG21: 185 | DH21: 378 | DI21: 372 | DJ21: 360 | DK21: 451 | DL21: 374 | DM21: 325 | DN21: 325 | DO21: 523 | DP21: 524 | DQ21: 346 | DR21: 525 | DS21: 417 | DT21: 355 | DU21: 355 | DV21: 185 | EK21: 185 | EP21: 378 | EQ21: 328 | ER21: 328 | EW21: 382 | EX21: 322 | EY21: 322 | EZ21: 185 | FA21: 488 | FB21: 477 | FC21: 462 | FD21: 589 | FE21: 504 | FF21: 431 | FG21: 431 | FH21: 634 | FI21: 636 | FJ21: 412 | FK21: 637 | FL21: 468 | FM21: 395 | FN21: 395 | FO21: 185 | FT21: 509 | FU21: 430 | FV21: 430 | FW21: 430 | GB21: 463 | GC21: 388 | GD21: 388 | GE21: 388 | GF21: 185 | GG21: 500 | GH21: 491 | GI21: 476 | GJ21: 600 | GL21: 433 | GN21: 634 | GO21: 635 | GP21: 415 | GQ21: 636 | GS21: 395 | GU21: 185 | GV21: 507 | GW21: 499 | GX21: 485 | GY21: 599 | HA21: 460 | HC21: 623 | HD21: 624 | HE21: 414 | HF21: 625 | HH21: 406 | HJ21: 185 | HK21: 510 | HL21: 504 | HM21: 489 | HN21: 596 | HP21: 472 | HR21: 616 | HS21: 616 | HT21: 414 | HU21: 617 | HW21: 410 | HY21: 185 | HZ21: 513 | IA21: 508 | IB21: 494 | IC21: 595 | IE21: 476 | IG21: 609 | IH21: 609 | II21: 414 | IJ21: 610 | IL21: 411 | IN21: 185 | IO21: 514 | IP21: 510 | IQ21: 496 | IR21: 592 | IT21: 478 | IV21: 602 | IW21: 603 | IX21: 414 | IY21: 603 | JA21: 411 | JC21: 185 | JD21: 516 | JE21: 514 | JF21: 501 | JG21: 586 | JI21: 479 | JK21: 591 | JL21: 591 | JM21: 414 | JN21: 591 | JP21: 409 | JR21: 185 | KG21: 185 | KV21: 185 | KW21: 287.2090589 | KX21: 280.2498249 | KY21: 271.0386437 | KZ21: 351.5326474 | LK21: 185 | LL21: 278.8303901 | LM21: 271.4538191 | LN21: 262.6501523 | LO21: 341.2228333 | LZ21: 185 | MD21: 468 | MO21: 185 | MS21: 464 | ND21: 185 | NH21: 552 | NS21: 185 | NT21: 379 | NU21: 371 | NV21: 360 | NW21: 458 | NX21: 391 | NY21: 334 | NZ21: 334 | OA21: 494 | OB21: 495 | OC21: 321 | OD21: 495 | OE21: 364 | OF21: 308 | OG21: 308 | OH21: 185
B22: 18 | C22: 240 | D22: 443 | E22: 434 | F22: 418 | G22: 543 | R22: 240 | S22: 440 | T22: 432 | U22: 416 | V22: 539 | AG22: 240 | AV22: 240 | BK22: 240 | CB22: 240 | CQ22: 240 | DG22: 240 | DH22: 450 | DI22: 444 | DJ22: 430 | DK22: 536 | DL22: 440 | DM22: 384 | DN22: 384 | DO22: 604 | DP22: 607 | DQ22: 401 | DR22: 609 | DS22: 481 | DT22: 411 | DU22: 411 | DV22: 240 | EK22: 240 | EP22: 443 | EQ22: 391 | ER22: 391 | EW22: 439 | EX22: 377 | EY22: 377 | EZ22: 240 | FA22: 584 | FB22: 574 | FC22: 555 | FD22: 706 | FE22: 597 | FF22: 482 | FG22: 482 | FH22: 735 | FI22: 738 | FJ22: 477 | FK22: 741 | FL22: 540 | FM22: 442 | FN22: 442 | FO22: 240 | FT22: 600 | FU22: 505 | FV22: 505 | FW22: 505 | GB22: 534 | GC22: 445 | GD22: 445 | GE22: 445 | GF22: 240 | GG22: 595 | GH22: 586 | GI22: 567 | GJ22: 714 | GL22: 513 | GN22: 735 | GO22: 738 | GP22: 480 | GQ22: 740 | GS22: 456 | GU22: 240 | GV22: 600 | GW22: 593 | GX22: 575 | GY22: 709 | HA22: 542 | HC22: 721 | HD22: 723 | HE22: 479 | HF22: 725 | HH22: 469 | HJ22: 240 | HK22: 604 | HL22: 598 | HM22: 581 | HN22: 708 | HP22: 555 | HR22: 716 | HS22: 717 | HT22: 480 | HU22: 719 | HW22: 474 | HY22: 240 | HZ22: 607 | IA22: 602 | IB22: 585 | IC22: 705 | IE22: 559 | IG22: 708 | IH22: 709 | II22: 480 | IJ22: 711 | IL22: 474 | IN22: 240 | IO22: 608 | IP22: 604 | IQ22: 587 | IR22: 702 | IT22: 562 | IV22: 702 | IW22: 703 | IX22: 480 | IY22: 705 | JA22: 475 | JC22: 240 | JD22: 610 | JE22: 607 | JF22: 592 | JG22: 693 | JI22: 564 | JK22: 689 | JL22: 689 | JM22: 480 | JN22: 690 | JP22: 475 | JR22: 240 | KG22: 240 | KV22: 240 | KW22: 344.5603364 | KX22: 337.6284443 | KY22: 326.218885 | KZ22: 420.8648016 | LK22: 240 | LL22: 335.0662919 | LM22: 327.6761759 | LN22: 316.7480628 | LO22: 409.1817897 | LZ22: 240 | MD22: 560 | MO22: 240 | MS22: 553 | ND22: 240 | NS22: 240 | NT22: 454 | NU22: 446 | NV22: 432 | NW22: 548 | NX22: 466 | NY22: 398 | NZ22: 398 | OA22: 574 | OB22: 575 | OC22: 373 | OD22: 576 | OE22: 423 | OF22: 357 | OG22: 357 | OH22: 240
B23: 19 | C23: 300 | D23: 513 | E23: 504 | F23: 485 | G23: 628 | R23: 300 | AG23: 300 | AV23: 300 | BK23: 300 | CB23: 300 | CQ23: 300 | DG23: 300 | DH23: 519 | DI23: 514 | DJ23: 496 | DK23: 619 | DL23: 505 | DM23: 438 | DN23: 438 | DO23: 681 | DP23: 685 | DQ23: 451 | DR23: 689 | DS23: 541 | DT23: 462 | DU23: 462 | DV23: 300 | EK23: 300 | EP23: 506 | EQ23: 435 | ER23: 435 | EW23: 492 | EX23: 408 | EY23: 408 | EZ23: 300 | FA23: 675 | FB23: 665 | FC23: 642 | FD23: 815 | FE23: 685 | FF23: 586 | FG23: 586 | FH23: 827 | FI23: 832 | FJ23: 537 | FK23: 837 | FL23: 606 | FM23: 512 | FN23: 512 | FO23: 300 | FT23: 684 | FU23: 574 | FV23: 574 | FW23: 574 | GB23: 597 | GC23: 496 | GD23: 496 | GE23: 496 | GF23: 300 | GG23: 686 | GH23: 677 | GI23: 653 | GJ23: 825 | GL23: 588 | GN23: 830 | GO23: 834 | GP23: 540 | GQ23: 838 | GS23: 512 | GU23: 300 | GV23: 691 | GW23: 685 | GX23: 663 | GY23: 816 | HA23: 621 | HC23: 812 | HD23: 816 | HE23: 540 | HF23: 819 | HH23: 527 | HJ23: 300 | HK23: 695 | HL23: 689 | HM23: 667 | HN23: 815 | HP23: 635 | HR23: 808 | HS23: 811 | HT23: 540 | HU23: 814 | HW23: 532 | HY23: 300 | HZ23: 697 | IA23: 692 | IB23: 672 | IC23: 812 | IE23: 639 | IG23: 802 | IH23: 804 | II23: 541 | IJ23: 807 | IL23: 534 | IN23: 300 | IO23: 698 | IP23: 694 | IQ23: 674 | IR23: 807 | IT23: 641 | IV23: 794 | IW23: 797 | IX23: 541 | IY23: 799 | JA23: 534 | JC23: 300 | JD23: 699 | JE23: 697 | JF23: 678 | JG23: 796 | JI23: 645 | JK23: 780 | JL23: 781 | JM23: 541 | JN23: 783 | JP23: 535 | JR23: 300 | KG23: 300 | KV23: 300 | KW23: 399.8184126 | KX23: 393.0619994 | KY23: 379.3880407 | KZ23: 487.5451149 | LK23: 300 | LL23: 388.6502148 | LM23: 381.3662705 | LN23: 368.2766129 | LO23: 473.830206 | LZ23: 300 | MO23: 300 | ND23: 300 | NS23: 300 | NT23: 526 | NU23: 518 | NV23: 501 | NW23: 633 | NX23: 536 | NY23: 458 | NZ23: 458 | OA23: 648 | OB23: 649 | OC23: 420 | OD23: 651 | OE23: 476 | OF23: 403 | OG23: 403 | OH23: 300
B24: 20 | C24: 400 | D24: 599 | E24: 592 | F24: 567 | G24: 736 | R24: 400 | AG24: 400 | AV24: 400 | BK24: 400 | CB24: 400 | CQ24: 400 | DG24: 400 | DH24: 605 | DI24: 600 | DJ24: 578 | DK24: 723 | DO24: 771 | DP24: 779 | DQ24: 511 | DR24: 786 | DV24: 400 | EK24: 400 | EZ24: 400 | FA24: 788 | FB24: 779 | FC24: 750 | FD24: 952 | FE24: 791 | FF24: 677 | FG24: 677 | FH24: 935 | FI24: 944 | FJ24: 608 | FK24: 952 | FL24: 683 | FM24: 577 | FN24: 577 | FO24: 400 | FT24: 783 | FU24: 652 | FV24: 652 | FW24: 652 | GB24: 670 | GC24: 549 | GD24: 549 | GE24: 549 | GF24: 400 | GG24: 798 | GH24: 790 | GI24: 761 | GJ24: 961 | GL24: 678 | GN24: 938 | GO24: 946 | GP24: 611 | GQ24: 954 | GS24: 578 | GU24: 400 | GV24: 804 | GW24: 798 | GX24: 771 | GY24: 749 | HA24: 716 | HC24: 921 | HD24: 927 | HE24: 612 | HF24: 933 | HH24: 595 | HJ24: 400 | HK24: 805 | HL24: 800 | HM24: 773 | HN24: 947 | HP24: 729 | HR24: 918 | HS24: 924 | HT24: 612 | HU24: 929 | HW24: 600 | HY24: 400 | HZ24: 808 | IA24: 804 | IB24: 778 | IC24: 943 | IE24: 734 | IG24: 912 | IH24: 917 | II24: 614 | IJ24: 922 | IL24: 603 | IN24: 400 | IO24: 808 | IP24: 805 | IQ24: 780 | IR24: 937 | IT24: 736 | IV24: 904 | IW24: 909 | IX24: 614 | IY24: 913 | JA24: 604 | JC24: 400 | JD24: 809 | JE24: 807 | JF24: 784 | JG24: 924 | JI24: 740 | JK24: 889 | JL24: 893 | JM24: 615 | JN24: 896 | JP24: 606 | JR24: 400 | KA24: 886 | KB24: 627 | KC24: 888 | KG24: 400 | KP24: 863 | KQ24: 623 | KR24: 864 | KV24: 400 | KW24: 471.2181739 | KX24: 464.7604853 | KY24: 447.81763 | KZ24: 574.2696617 | LK24: 400 | LL24: 458.0059627 | LM24: 450.9505663 | LN24: 434.7528485 | LO24: 557.9577406 | LZ24: 400 | MO24: 400 | ND24: 400 | NS24: 400 | NT24: 619 | NU24: 612 | NV24: 591 | NW24: 745 | NX24: 626 | NY24: 536 | NZ24: 536 | OA24: 741 | OB24: 743 | OC24: 481 | OD24: 746 | OE24: 544 | OF24: 460 | OG24: 460 | OH24: 400
B25: 21 | C25: 500 | R25: 500 | AG25: 500 | AV25: 500 | BK25: 500 | CB25: 500 | CQ25: 500 | DG25: 500 | DH25: 702 | DI25: 699 | DJ25: 671 | DK25: 839 | DO25: 866 | DP25: 877 | DQ25: 575 | DR25: 890 | DV25: 500 | EK25: 500 | EZ25: 500 | FA25: 920 | FB25: 913 | FC25: 875 | FD25: 1114 | FH25: 1054 | FI25: 1069 | FJ25: 686 | FK25: 1084 | FO25: 500 | GF25: 500 | GU25: 500 | GV25: 934 | GW25: 930 | GX25: 896 | GY25: 1105 | HC25: 1041 | HD25: 1051 | HE25: 692 | HF25: 1062 | HJ25: 500 | HK25: 936 | HL25: 932 | HM25: 898 | HN25: 1103 | HR25: 1039 | HS25: 1049 | HT25: 693 | HU25: 1060 | HY25: 500 | HZ25: 941 | IA25: 938 | IB25: 905 | IC25: 1102 | IG25: 1036 | IH25: 1045 | II25: 696 | IJ25: 1054 | IN25: 500 | IO25: 938 | IP25: 936 | IQ25: 905 | IR25: 1090 | IV25: 1026 | IW25: 1034 | IX25: 695 | IY25: 1043 | JC25: 500 | JD25: 937 | JE25: 937 | JF25: 908 | JG25: 1073 | JK25: 1011 | JL25: 1018 | JM25: 697 | JN25: 1024 | JR25: 500 | KA25: 1016 | KB25: 714 | KC25: 1020 | KG25: 500 | KP25: 989 | KQ25: 710 | KR25: 991 | KV25: 500 | KW25: 556.2015597 | KX25: 550.6238447 | KY25: 529.4089739 | KZ25: 676.4179423 | LK25: 500 | LL25: 541.6957428 | LM25: 535.4982178 | LN25: 515.1829912 | LO25: 658.3999828 | LZ25: 500 | MO25: 500 | ND25: 500 | NS25: 500 | NT25: 733 | NU25: 726 | NV25: 700 | NW25: 883 | OA25: 848 | OB25: 853 | OC25: 551 | OD25: 858 | OH25: 500
B26: 22 | C26: 630 | R26: 630 | AG26: 630 | AV26: 630 | BK26: 630 | CB26: 630 | CQ26: 630 | DG26: 630 | DV26: 630 | EK26: 630 | EZ26: 630 | FA26: 1067 | FB26: 1064 | FC26: 1014 | FD26: 1298 | FH26: 1179 | FI26: 1204 | FJ26: 768 | FK26: 1229 | FO26: 630 | GF26: 630 | GU26: 630 | GV26: 1080 | GW26: 1079 | GX26: 1035 | GY26: 1284 | HC26: 1170 | HD26: 1189 | HE26: 777 | HF26: 1209 | HJ26: 630 | HK26: 1082 | HL26: 1081 | HM26: 1037 | HN26: 1285 | HR26: 1171 | HS26: 1189 | HT26: 779 | HU26: 1208 | HY26: 630 | HZ26: 1088 | IA26: 1088 | IB26: 1045 | IC26: 1283 | IG26: 1169 | IH26: 1185 | II26: 783 | IJ26: 1203 | IN26: 630 | IO26: 1079 | IP26: 1079 | IQ26: 1038 | IR26: 1263 | IV26: 1156 | IW26: 1172 | IX26: 781 | IY26: 1188 | JC26: 630 | JD26: 1084 | JE26: 1085 | JF26: 1048 | JG26: 1247 | JK26: 1146 | JL26: 1158 | JM26: 787 | JN26: 1171 | JR26: 630 | KA26: 1159 | KB26: 809 | KC26: 1167 | KG26: 630 | KP26: 1131 | KQ26: 807 | KR26: 1137 | KV26: 630 | LK26: 630 | LZ26: 630 | MO26: 630 | ND26: 630 | NS26: 630 | OH26: 630
B27: 23 | C27: 800 | R27: 800 | AG27: 800 | AV27: 800 | BK27: 800 | CB27: 800 | CQ27: 800 | DG27: 800 | DV27: 800 | EK27: 800 | EZ27: 800 | FA27: 1216 | FB27: 1220 | FC27: 1156 | FD27: 1494 | FH27: 1301 | FI27: 1339 | FJ27: 849 | FK27: 1380 | FO27: 800 | GF27: 800 | GU27: 800 | GV27: 1229 | GW27: 1235 | GX27: 1176 | GY27: 1477 | HC27: 1298 | HD27: 1328 | HE27: 861 | HF27: 1361 | HJ27: 800 | HK27: 1232 | HL27: 1237 | HM27: 1179 | HN27: 1478 | HR27: 1299 | HS27: 1328 | HT27: 862 | HU27: 1360 | HY27: 800 | HZ27: 1238 | IA27: 1243 | IB27: 1188 | IC27: 1472 | IG27: 1297 | IH27: 1324 | II27: 867 | IJ27: 1353 | IN27: 800 | IO27: 1228 | IP27: 1234 | IQ27: 1180 | IR27: 1451 | IV27: 1287 | IW27: 1312 | IX27: 866 | IY27: 1340 | JC27: 800 | JD27: 1234 | JE27: 1240 | JF27: 1192 | JG27: 1433 | JK27: 1279 | JL27: 1300 | JM27: 876 | JN27: 1322 | JR27: 800 | KA27: 1307 | KB27: 905 | KC27: 1320 | KG27: 800 | KP27: 1277 | KQ27: 904 | KR27: 1287 | KV27: 800 | LK27: 800 | LZ27: 800 | MO27: 800 | ND27: 800 | NS27: 800 | OH27: 800
B28: 24 | C28: 1000 | R28: 1000 | AG28: 1000 | AV28: 1000 | BK28: 1000 | CB28: 1000 | CQ28: 1000 | DG28: 1000 | DV28: 1000 | EK28: 1000 | EZ28: 1000 | FA28: 1371 | FB28: 1391 | FC28: 1307 | FD28: 1712 | FH28: 1419 | FI28: 1473 | FJ28: 926 | FK28: 1532 | FO28: 1000 | GF28: 1000 | GU28: 1000 | GV28: 1384 | GW28: 1403 | GX28: 1327 | GY28: 1690 | HC28: 1420 | HD28: 1466 | HE28: 940 | HF28: 1515 | HJ28: 1000 | HK28: 1387 | HL28: 1406 | HM28: 1330 | HN28: 1690 | HR28: 1422 | HS28: 1466 | HT28: 942 | HU28: 1514 | HY28: 1000 | HZ28: 1394 | IA28: 1412 | IB28: 1339 | IC28: 1683 | IG28: 1423 | IH28: 1463 | II28: 949 | IJ28: 1507 | IN28: 1000 | IO28: 1382 | IP28: 1400 | IQ28: 1330 | IR28: 1656 | IV28: 1411 | IW28: 1450 | IX28: 948 | IY28: 1492 | JC28: 1000 | JD28: 1394 | JE28: 1408 | JF28: 1345 | JG28: 1634 | JK28: 1409 | JL28: 1441 | JM28: 961 | JN28: 1475 | JR28: 1000 | KG28: 1000 | KV28: 1000 | LK28: 1000 | LZ28: 1000 | MO28: 1000 | ND28: 1000 | NS28: 1000 | OH28: 1000
C30: Status | D30: =C45 -> 16 | E30: =D30 -> 16 | F30: =E30 -> 16 | G30: =F30 -> 16 | H30: =G30 -> 16 | I30: 16 | J30: 16 | K30: 16 | L30: 16 | M30: 16 | N30: =M30 -> 16 | O30: 16 | P30: 16 | Q30: 16 | R30: 16 | S30: 16 | T30: 16 | U30: 16 | V30: 16 | W30: =V30 -> 16 | X30: 16 | Y30: 16 | Z30: 16 | AA30: 16 | AB30: 16 | AC30: 16 | AD30: 16 | AE30: 16 | AF30: 16 | AG30: =AF30 -> 16 | AH30: 16 | AI30: 16 | AJ30: 16 | AK30: 16 | AL30: 16 | AM30: 16 | AN30: 16 | AO30: 16 | AP30: 16 | AQ30: 16 | AR30: 16 | AS30: 16 | AT30: 16 | AU30: 16 | AV30: 16 | AW30: 16 | AX30: 16 | AY30: 16 | AZ30: 16 | BA30: 16 | BB30: 16 | BC30: 16 | BD30: 16 | BE30: 16 | BF30: 16 | BG30: 16 | BH30: 16 | BI30: 16 | BJ30: 16 | BK30: =BJ30 -> 16 | BL30: 16 | BM30: 16 | BN30: 16 | BO30: 16 | BP30: 16 | BQ30: 16 | BR30: 16 | BS30: 16 | BT30: =BR30 -> 16 | BU30: 16 | BV30: 16 | BW30: 16 | BX30: 16 | BY30: 16 | BZ30: 16 | CA30: =BZ30 -> 16 | CB30: 16 | CC30: 16 | CD30: 16 | CE30: 16 | CF30: 16 | CG30: 16 | CH30: 16 | CI30: 16 | CJ30: 16 | CK30: 16 | CL30: 16 | CM30: 16 | CN30: 16 | CO30: 16 | CP30: 16 | CQ30: 16 | CR30: 16 | CS30: 16 | CT30: 16 | CU30: 16 | CV30: 16 | CW30: 16 | CX30: 16 | CY30: 16 | CZ30: =CX30 -> 16 | DA30: =CZ30 -> 16 | DB30: 16 | DC30: 16 | DD30: 16 | DE30: 16 | DF30: 16 | DG30: =DF30 -> 16 | DH30: 16 | DI30: 16 | DJ30: 16 | DK30: 16 | DL30: 16 | DM30: 16 | DN30: 16 | DO30: 16 | DP30: 16 | DQ30: 16 | DR30: 16 | DS30: 16 | DT30: 16 | DU30: 16 | DV30: 16 | DW30: 16 | DX30: 16 | DY30: 16 | DZ30: 16 | EA30: 16 | EB30: 16 | EC30: 16 | ED30: 16 | EE30: 16 | EF30: 16 | EG30: 16 | EH30: 16 | EI30: 16 | EJ30: 16 | EK30: 16 | EL30: 16 | EM30: =EL30 -> 16 | EN30: 16 | EO30: 16 | EP30: 16 | EQ30: 16 | ER30: 16 | ES30: 16 | ET30: 16 | EU30: 16 | EV30: 16 | EW30: 16 | EX30: 16 | EY30: 16 | EZ30: 16 | FA30: 16 | FB30: 16 | FC30: 16 | FD30: 16 | FE30: 16 | FF30: 16 | FG30: 16 | FH30: 16 | FI30: 16 | FJ30: 16 | FK30: 16 | FL30: 16 | FM30: 16 | FN30: 16 | FO30: =FN30 -> 16 | FP30: 16 | FQ30: 16 | FR30: 16 | FS30: 16 | FT30: 16 | FU30: 16 | FV30: 16 | FW30: =FV30 -> 16 | FX30: =FV30 -> 16 | FY30: 16 | FZ30: 16 | GA30: 16 | GB30: 16 | GC30: 16 | GD30: 16 | GE30: =GD30 -> 16 | GF30: 16 | GG30: 16 | GH30: 16 | GI30: 16 | GJ30: 16 | GK30: 16 | GL30: 16 | GM30: 16 | GN30: 16 | GO30: 16 | GP30: 16 | GQ30: 16 | GR30: 16 | GS30: 16 | GT30: 16 | GU30: 16 | GV30: 16 | GW30: 16 | GX30: 16 | GY30: 16 | GZ30: 16 | HA30: 16 | HB30: 16 | HC30: 16 | HD30: 16 | HE30: 16 | HF30: 16 | HG30: 16 | HH30: 16 | HI30: 16 | HJ30: 16 | HK30: =HJ30 -> 16 | HL30: 16 | HM30: 16 | HN30: 16 | HO30: 16 | HP30: 16 | HQ30: 16 | HR30: 16 | HS30: 16 | HT30: 16 | HU30: 16 | HV30: 16 | HW30: 16 | HX30: 16 | HY30: 16 | HZ30: 16 | IA30: 16 | IB30: 16 | IC30: 16 | ID30: 16 | IE30: 16 | IF30: 16 | IG30: 16 | IH30: 16 | II30: 16 | IJ30: 16 | IK30: 16 | IL30: 16 | IM30: 16 | IN30: 16 | IO30: 16 | IP30: 16 | IQ30: =IP30 -> 16 | IR30: 16 | IS30: 16 | IT30: 16 | IU30: 16 | IV30: 16 | IW30: 16 | IX30: 16 | IY30: 16 | IZ30: 16 | JA30: 16 | JB30: 16 | JC30: 16 | JD30: 16 | JE30: 16 | JF30: 16 | JG30: 16 | JH30: 16 | JI30: 16 | JJ30: 16 | JK30: 16 | JL30: 16 | JM30: 16 | JN30: 16 | JO30: 16 | JP30: 16 | JQ30: 16 | JR30: 16 | JS30: 16 | JT30: 16 | JU30: 16 | JV30: 16 | JW30: =JV30 -> 16 | JX30: 16 | JY30: 16 | JZ30: 16 | KA30: 16 | KB30: 16 | KC30: 16 | KD30: 16 | KE30: 16 | KF30: 16 | KG30: 16 | KH30: 16 | KI30: 16 | KJ30: 16 | KK30: 16 | KL30: 16 | KM30: 16 | KN30: 16 | KO30: 16 | KP30: 16 | KQ30: 16 | KR30: 16 | KS30: 16 | KT30: 16 | KU30: 16 | KV30: 16 | KW30: 16 | KX30: 16 | KY30: 16 | KZ30: 16 | LA30: 16 | LB30: 16 | LC30: =LB30 -> 16 | LD30: 16 | LE30: 16 | LF30: 16 | LG30: 16 | LH30: 16 | LI30: 16 | LJ30: 16 | LK30: 16 | LL30: 16 | LM30: 16 | LN30: 16 | LO30: 16 | LP30: 16 | LQ30: 16 | LR30: 16 | LS30: 16 | LT30: 16 | LU30: 16 | LV30: 16 | LW30: 16 | LX30: 16 | LY30: 16 | LZ30: 16 | MA30: 16 | MB30: 16 | MC30: 16 | MD30: 16 | ME30: 16 | MF30: 16 | MG30: 16 | MH30: 16 | MI30: =MH30 -> 16 | MJ30: 16 | MK30: 16 | ML30: 16 | MM30: 16 | MN30: 16 | MO30: 16 | MP30: 16 | MQ30: 16 | MR30: 16 | MS30: 16 | MT30: 16 | MU30: 16 | MV30: 16 | MW30: 16 | MX30: 16 | MY30: 16 | MZ30: 16 | NA30: 16 | NB30: 16 | NC30: 16 | ND30: 16 | NE30: 16 | NF30: 16 | NG30: 16 | NH30: 16 | NI30: 16 | NJ30: 16 | NK30: 16 | NL30: 16 | NM30: 16 | NN30: 16 | NO30: 16 | NP30: 16 | NQ30: 16 | NR30: 16 | NS30: =NR30 -> 16 | NT30: =NS30 -> 16 | NU30: =NT30 -> 16 | NV30: =NU30 -> 16 | NW30: =NV30 -> 16 | NX30: =NW30 -> 16 | NY30: =NX30 -> 16 | NZ30: =NY30 -> 16 | OA30: =NZ30 -> 16 | OB30: =OA30 -> 16 | OC30: =OB30 -> 16 | OD30: =OC30 -> 16 | OE30: =OD30 -> 16 | OF30: =OE30 -> 16 | OG30: =OF30 -> 16 | OH30: =OG30 -> 16 | OI30: =OH30 -> 16 | OJ30: =OI30 -> 16 | OK30: =OJ30 -> 16 | OL30: =OK30 -> 16 | OM30: =OL30 -> 16 | ON30: =OM30 -> 16 | OO30: =ON30 -> 16 | OP30: =OO30 -> 16 | OQ30: =OP30 -> 16 | OR30: =OQ30 -> 16 | OS30: =OR30 -> 16 | OT30: =OS30 -> 16 | OU30: =OT30 -> 16 | OV30: =OU30 -> 16
C31: Current(A) | D31: =CHOOSE(D30,D5,D6,D7,D8,D9,D10,D11,D12,D13,D14,D15,D16,D17,D18,D19,D20,D21,D22,D23,D24,D25,D26,D27,D28) -> 318 | E31: =CHOOSE(E30,E5,E6,E7,E8,E9,E10,E11,E12,E13,E14,E15,E16,E17,E18,E19,E20,E21,E22,E23,E24,E25,E26,E27,E28) -> 309 | F31: =CHOOSE(F30,F5,F6,F7,F8,F9,F10,F11,F12,F13,F14,F15,F16,F17,F18,F19,F20,F21,F22,F23,F24,F25,F26,F27,F28) -> 299 | G31: =CHOOSE(G30,G5,G6,G7,G8,G9,G10,G11,G12,G13,G14,G15,G16,G17,G18,G19,G20,G21,G22,G23,G24,G25,G26,G27,G28) -> 391 | H31: =CHOOSE(H30,H5,H6,H7,H8,H9,H10,H11,H12,H13,H14,H15,H16,H17,H18,H19,H20,H21,H22,H23,H24,H25,H26,H27,H28) -> 0 | I31: 0 | J31: 0 | K31: 0 | L31: 0 | M31: 0 | N31: =CHOOSE(N30,N5,N6,N7,N8,N9,N10,N11,N12,N13,N14,N15,N16,N17,N18,N19,N20,N21,N22,N23,N24,N25,N26,N27,N28) -> 0 | O31: 0 | P31: 0 | Q31: 0 | R31: 150 | S31: 322 | T31: 314 | U31: 303 | V31: 396 | W31: 0 | X31: 0 | Y31: 0 | Z31: 0 | AA31: 0 | AB31: 0 | AC31: 0 | AD31: 0 | AE31: 0 | AF31: 0 | AG31: 150 | AH31: 0 | AI31: 0 | AJ31: 0 | AK31: 0 | AL31: =CHOOSE(AL30,AL5,AL6,AL7,AL8,AL9,AL10,AL11,AL12,AL13,AL14,AL15,AL16,AL17,AL18,AL19,AL20,AL21,AL22,AL23,AL24,AL25,AL26,AL27,AL28) -> 0 | AM31: 0 | AN31: 0 | AO31: 0 | AP31: 0 | AQ31: 0 | AR31: 0 | AS31: 0 | AT31: 0 | AU31: 0 | AV31: 150 | AW31: 0 | AX31: =CHOOSE(AX30,AX5,AX6,AX7,AX8,AX9,AX10,AX11,AX12,AX13,AX14,AX15,AX16,AX17,AX18,AX19,AX20,AX21,AX22,AX23,AX24,AX25,AX26,AX27,AX28) -> 0 | AY31: =CHOOSE(AY30,AY5,AY6,AY7,AY8,AY9,AY10,AY11,AY12,AY13,AY14,AY15,AY16,AY17,AY18,AY19,AY20,AY21,AY22,AY23,AY24,AY25,AY26,AY27,AY28) -> 0 | AZ31: =CHOOSE(AZ30,AZ5,AZ6,AZ7,AZ8,AZ9,AZ10,AZ11,AZ12,AZ13,AZ14,AZ15,AZ16,AZ17,AZ18,AZ19,AZ20,AZ21,AZ22,AZ23,AZ24,AZ25,AZ26,AZ27,AZ28) -> 0 | BA31: =CHOOSE(BA30,BA5,BA6,BA7,BA8,BA9,BA10,BA11,BA12,BA13,BA14,BA15,BA16,BA17,BA18,BA19,BA20,BA21,BA22,BA23,BA24,BA25,BA26,BA27,BA28) -> 0 | BB31: 0 | BC31: 0 | BD31: 0 | BE31: 0 | BF31: 0 | BG31: 0 | BH31: 0 | BI31: 0 | BJ31: 0 | BK31: =CHOOSE(BK30,BK5,BK6,BK7,BK8,BK9,BK10,BK11,BK12,BK13,BK14,BK15,BK16,BK17,BK18,BK19,BK20,BK21,BK22,BK23,BK24,BK25,BK26,BK27,BK28) -> 150 | BL31: 0 | BM31: 0 | BN31: 0 | BO31: 0 | BP31: 0 | BQ31: 0 | BR31: 0 | BS31: 0 | BT31: 0 | BU31: 0 | BV31: 0 | BW31: 0 | BX31: 0 | BY31: 0 | BZ31: 0 | CA31: 0 | CB31: 150 | CC31: 0 | CD31: 0 | CE31: 0 | CF31: 0 | CG31: =CHOOSE(CG30,CG5,CG6,CG7,CG8,CG9,CG10,CG11,CG12,CG13,CG14,CG15,CG16,CG17,CG18,CG19,CG20,CG21,CG22,CG23,CG24,CG25,CG26,CG27,CG28) -> 0 | CH31: 0 | CI31: 0 | CJ31: 0 | CK31: 0 | CL31: 0 | CM31: 0 | CN31: 0 | CO31: 0 | CP31: 0 | CQ31: =CHOOSE(CQ30,CQ5,CQ6,CQ7,CQ8,CQ9,CQ10,CQ11,CQ12,CQ13,CQ14,CQ15,CQ16,CQ17,CQ18,CQ19,CQ20,CQ21,CQ22,CQ23,CQ24,CQ25,CQ26,CQ27,CQ28) -> 150 | CR31: 0 | CS31: 0 | CT31: 0 | CU31: 0 | CV31: 0 | CW31: 0 | CX31: 0 | CY31: 0 | CZ31: 0 | DA31: 0 | DB31: 0 | DC31: 0 | DD31: 0 | DE31: 0 | DF31: 0 | DG31: 150 | DH31: 327 | DI31: 320 | DJ31: 311 | DK31: 390 | DL31: =CHOOSE(DL30,DL5,DL6,DL7,DL8,DL9,DL10,DL11,DL12,DL13,DL14,DL15,DL16,DL17,DL18,DL19,DL20,DL21,DL22,DL23,DL24,DL25,DL26,DL27,DL28) -> 325 | DM31: 284 | DN31: 284 | DO31: 463 | DP31: 463 | DQ31: 300 | DR31: 464 | DS31: 368 | DT31: 315 | DU31: 315 | DV31: 150 | DW31: 0 | DX31: =CHOOSE(DX30,DX5,DX6,DX7,DX8,DX9,DX10,DX11,DX12,DX13,DX14,DX15,DX16,DX17,DX18,DX19,DX20,DX21,DX22,DX23,DX24,DX25,DX26,DX27,DX28) -> 0 | DY31: =CHOOSE(DY30,DY5,DY6,DY7,DY8,DY9,DY10,DY11,DY12,DY13,DY14,DY15,DY16,DY17,DY18,DY19,DY20,DY21,DY22,DY23,DY24,DY25,DY26,DY27,DY28) -> 0 | DZ31: =CHOOSE(DZ30,DZ5,DZ6,DZ7,DZ8,DZ9,DZ10,DZ11,DZ12,DZ13,DZ14,DZ15,DZ16,DZ17,DZ18,DZ19,DZ20,DZ21,DZ22,DZ23,DZ24,DZ25,DZ26,DZ27,DZ28) -> 0 | EA31: =CHOOSE(EA30,EA5,EA6,EA7,EA8,EA9,EA10,EA11,EA12,EA13,EA14,EA15,EA16,EA17,EA18,EA19,EA20,EA21,EA22,EA23,EA24,EA25,EA26,EA27,EA28) -> 0 | EB31: 0 | EC31: 0 | ED31: 0 | EE31: 0 | EF31: 0 | EG31: 0 | EH31: 0 | EI31: 0 | EJ31: 0 | EK31: 150 | EL31: 0 | EM31: =CHOOSE(EM30,EM5,EM6,EM7,EM8,EM9,EM10,EM11,EM12,EM13,EM14,EM15,EM16,EM17,EM18,EM19,EM20,EM21,EM22,EM23,EM24,EM25,EM26,EM27,EM28) -> 0 | EN31: =CHOOSE(EN30,EN5,EN6,EN7,EN8,EN9,EN10,EN11,EN12,EN13,EN14,EN15,EN16,EN17,EN18,EN19,EN20,EN21,EN22,EN23,EN24,EN25,EN26,EN27,EN28) -> 0 | EO31: =CHOOSE(EO30,EO5,EO6,EO7,EO8,EO9,EO10,EO11,EO12,EO13,EO14,EO15,EO16,EO17,EO18,EO19,EO20,EO21,EO22,EO23,EO24,EO25,EO26,EO27,EO28) -> 0 | EP31: =CHOOSE(EP30,EP5,EP6,EP7,EP8,EP9,EP10,EP11,EP12,EP13,EP14,EP15,EP16,EP17,EP18,EP19,EP20,EP21,EP22,EP23,EP24,EP25,EP26,EP27,EP28) -> 330 | EQ31: 287 | ER31: 287 | ES31: 0 | ET31: 0 | EU31: 0 | EV31: 0 | EW31: 339 | EX31: 287 | EY31: 287 | EZ31: 150 | FA31: 442 | FB31: =CHOOSE(FB30,FB5,FB6,FB7,FB8,FB9,FB10,FB11,FB12,FB13,FB14,FB15,FB16,FB17,FB18,FB19,FB20,FB21,FB22,FB23,FB24,FB25,FB26,FB27,FB28) -> 411 | FC31: =CHOOSE(FC30,FC5,FC6,FC7,FC8,FC9,FC10,FC11,FC12,FC13,FC14,FC15,FC16,FC17,FC18,FC19,FC20,FC21,FC22,FC23,FC24,FC25,FC26,FC27,FC28) -> 398 | FD31: =CHOOSE(FD30,FD5,FD6,FD7,FD8,FD9,FD10,FD11,FD12,FD13,FD14,FD15,FD16,FD17,FD18,FD19,FD20,FD21,FD22,FD23,FD24,FD25,FD26,FD27,FD28) -> 510 | FE31: =CHOOSE(FE30,FE5,FE6,FE7,FE8,FE9,FE10,FE11,FE12,FE13,FE14,FE15,FE16,FE17,FE18,FE19,FE20,FE21,FE22,FE23,FE24,FE25,FE26,FE27,FE28) -> 436 | FF31: 372 | FG31: 372 | FH31: 562 | FI31: 563 | FJ31: 364 | FK31: 564 | FL31: 415 | FM31: 350 | FN31: 350 | FO31: =CHOOSE(FO30,FO5,FO6,FO7,FO8,FO9,FO10,FO11,FO12,FO13,FO14,FO15,FO16,FO17,FO18,FO19,FO20,FO21,FO22,FO23,FO24,FO25,FO26,FO27,FO28) -> 150 | FP31: 0 | FQ31: 0 | FR31: 0 | FS31: 0 | FT31: 444 | FU31: 376 | FV31: 376 | FW31: 376 | FX31: 0 | FY31: 0 | FZ31: 0 | GA31: 0 | GB31: 412 | GC31: 346 | GD31: 346 | GE31: 346 | GF31: 150 | GG31: 434 | GH31: 425 | GI31: 412 | GJ31: 521 | GK31: =CHOOSE(GK30,GK5,GK6,GK7,GK8,GK9,GK10,GK11,GK12,GK13,GK14,GK15,GK16,GK17,GK18,GK19,GK20,GK21,GK22,GK23,GK24,GK25,GK26,GK27,GK28) -> 0 | GL31: 377 | GM31: 0 | GN31: 561 | GO31: 562 | GP31: 368 | GQ31: 562 | GR31: 0 | GS31: 350 | GT31: 0 | GU31: 150 | GV31: 439 | GW31: =CHOOSE(GW30,GW5,GW6,GW7,GW8,GW9,GW10,GW11,GW12,GW13,GW14,GW15,GW16,GW17,GW18,GW19,GW20,GW21,GW22,GW23,GW24,GW25,GW26,GW27,GW28) -> 432 | GX31: =CHOOSE(GX30,GX5,GX6,GX7,GX8,GX9,GX10,GX11,GX12,GX13,GX14,GX15,GX16,GX17,GX18,GX19,GX20,GX21,GX22,GX23,GX24,GX25,GX26,GX27,GX28) -> 419 | GY31: =CHOOSE(GY30,GY5,GY6,GY7,GY8,GY9,GY10,GY11,GY12,GY13,GY14,GY15,GY16,GY17,GY18,GY19,GY20,GY21,GY22,GY23,GY24,GY25,GY26,GY27,GY28) -> 518 | GZ31: =CHOOSE(GZ30,GZ5,GZ6,GZ7,GZ8,GZ9,GZ10,GZ11,GZ12,GZ13,GZ14,GZ15,GZ16,GZ17,GZ18,GZ19,GZ20,GZ21,GZ22,GZ23,GZ24,GZ25,GZ26,GZ27,GZ28) -> 0 | HA31: 400 | HB31: 0 | HC31: 549 | HD31: 549 | HE31: 366 | HF31: 550 | HG31: 0 | HH31: 360 | HI31: 0 | HJ31: 150 | HK31: 443 | HL31: =CHOOSE(HL30,HL5,HL6,HL7,HL8,HL9,HL10,HL11,HL12,HL13,HL14,HL15,HL16,HL17,HL18,HL19,HL20,HL21,HL22,HL23,HL24,HL25,HL26,HL27,HL28) -> 437 | HM31: =CHOOSE(HM30,HM5,HM6,HM7,HM8,HM9,HM10,HM11,HM12,HM13,HM14,HM15,HM16,HM17,HM18,HM19,HM20,HM21,HM22,HM23,HM24,HM25,HM26,HM27,HM28) -> 425 | HN31: =CHOOSE(HN30,HN5,HN6,HN7,HN8,HN9,HN10,HN11,HN12,HN13,HN14,HN15,HN16,HN17,HN18,HN19,HN20,HN21,HN22,HN23,HN24,HN25,HN26,HN27,HN28) -> 518 | HO31: =CHOOSE(HO30,HO5,HO6,HO7,HO8,HO9,HO10,HO11,HO12,HO13,HO14,HO15,HO16,HO17,HO18,HO19,HO20,HO21,HO22,HO23,HO24,HO25,HO26,HO27,HO28) -> 0 | HP31: 412 | HQ31: 0 | HR31: 543 | HS31: 544 | HT31: 366 | HU31: 544 | HV31: 0 | HW31: 364 | HX31: 0 | HY31: 150 | HZ31: 446 | IA31: =CHOOSE(IA30,IA5,IA6,IA7,IA8,IA9,IA10,IA11,IA12,IA13,IA14,IA15,IA16,IA17,IA18,IA19,IA20,IA21,IA22,IA23,IA24,IA25,IA26,IA27,IA28) -> 441 | IB31: =CHOOSE(IB30,IB5,IB6,IB7,IB8,IB9,IB10,IB11,IB12,IB13,IB14,IB15,IB16,IB17,IB18,IB19,IB20,IB21,IB22,IB23,IB24,IB25,IB26,IB27,IB28) -> 429 | IC31: =CHOOSE(IC30,IC5,IC6,IC7,IC8,IC9,IC10,IC11,IC12,IC13,IC14,IC15,IC16,IC17,IC18,IC19,IC20,IC21,IC22,IC23,IC24,IC25,IC26,IC27,IC28) -> 517 | ID31: =CHOOSE(ID30,ID5,ID6,ID7,ID8,ID9,ID10,ID11,ID12,ID13,ID14,ID15,ID16,ID17,ID18,ID19,ID20,ID21,ID22,ID23,ID24,ID25,ID26,ID27,ID28) -> 0 | IE31: 416 | IF31: 0 | IG31: 538 | IH31: 538 | II31: 367 | IJ31: 538 | IK31: 0 | IL31: 364 | IM31: 0 | IN31: 150 | IO31: 448 | IP31: =CHOOSE(IP30,IP5,IP6,IP7,IP8,IP9,IP10,IP11,IP12,IP13,IP14,IP15,IP16,IP17,IP18,IP19,IP20,IP21,IP22,IP23,IP24,IP25,IP26,IP27,IP28) -> 444 | IQ31: =CHOOSE(IQ30,IQ5,IQ6,IQ7,IQ8,IQ9,IQ10,IQ11,IQ12,IQ13,IQ14,IQ15,IQ16,IQ17,IQ18,IQ19,IQ20,IQ21,IQ22,IQ23,IQ24,IQ25,IQ26,IQ27,IQ28) -> 432 | IR31: =CHOOSE(IR30,IR5,IR6,IR7,IR8,IR9,IR10,IR11,IR12,IR13,IR14,IR15,IR16,IR17,IR18,IR19,IR20,IR21,IR22,IR23,IR24,IR25,IR26,IR27,IR28) -> 516 | IS31: =CHOOSE(IS30,IS5,IS6,IS7,IS8,IS9,IS10,IS11,IS12,IS13,IS14,IS15,IS16,IS17,IS18,IS19,IS20,IS21,IS22,IS23,IS24,IS25,IS26,IS27,IS28) -> 0 | IT31: 418 | IU31: 0 | IV31: 532 | IW31: 532 | IX31: 366 | IY31: 533 | IZ31: 0 | JA31: 364 | JB31: 0 | JC31: 150 | JD31: 451 | JE31: =CHOOSE(JE30,JE5,JE6,JE7,JE8,JE9,JE10,JE11,JE12,JE13,JE14,JE15,JE16,JE17,JE18,JE19,JE20,JE21,JE22,JE23,JE24,JE25,JE26,JE27,JE28) -> 448 | JF31: =CHOOSE(JF30,JF5,JF6,JF7,JF8,JF9,JF10,JF11,JF12,JF13,JF14,JF15,JF16,JF17,JF18,JF19,JF20,JF21,JF22,JF23,JF24,JF25,JF26,JF27,JF28) -> 437 | JG31: =CHOOSE(JG30,JG5,JG6,JG7,JG8,JG9,JG10,JG11,JG12,JG13,JG14,JG15,JG16,JG17,JG18,JG19,JG20,JG21,JG22,JG23,JG24,JG25,JG26,JG27,JG28) -> 510 | JH31: =CHOOSE(JH30,JH5,JH6,JH7,JH8,JH9,JH10,JH11,JH12,JH13,JH14,JH15,JH16,JH17,JH18,JH19,JH20,JH21,JH22,JH23,JH24,JH25,JH26,JH27,JH28) -> 0 | JI31: 419 | JJ31: 0 | JK31: 520 | JL31: 521 | JM31: 366 | JN31: 521 | JO31: 0 | JP31: 363 | JQ31: 0 | JR31: 150 | JS31: 0 | JT31: =CHOOSE(JT30,JT5,JT6,JT7,JT8,JT9,JT10,JT11,JT12,JT13,JT14,JT15,JT16,JT17,JT18,JT19,JT20,JT21,JT22,JT23,JT24,JT25,JT26,JT27,JT28) -> 0 | JU31: =CHOOSE(JU30,JU5,JU6,JU7,JU8,JU9,JU10,JU11,JU12,JU13,JU14,JU15,JU16,JU17,JU18,JU19,JU20,JU21,JU22,JU23,JU24,JU25,JU26,JU27,JU28) -> 0 | JV31: =CHOOSE(JV30,JV5,JV6,JV7,JV8,JV9,JV10,JV11,JV12,JV13,JV14,JV15,JV16,JV17,JV18,JV19,JV20,JV21,JV22,JV23,JV24,JV25,JV26,JV27,JV28) -> 0 | JW31: =CHOOSE(JW30,JW5,JW6,JW7,JW8,JW9,JW10,JW11,JW12,JW13,JW14,JW15,JW16,JW17,JW18,JW19,JW20,JW21,JW22,JW23,JW24,JW25,JW26,JW27,JW28) -> 0 | JX31: 0 | JY31: 0 | JZ31: 0 | KA31: 0 | KB31: 0 | KC31: 0 | KD31: 0 | KE31: 0 | KF31: 0 | KG31: 150 | KH31: 0 | KI31: =CHOOSE(KI30,KI5,KI6,KI7,KI8,KI9,KI10,KI11,KI12,KI13,KI14,KI15,KI16,KI17,KI18,KI19,KI20,KI21,KI22,KI23,KI24,KI25,KI26,KI27,KI28) -> 0 | KJ31: =CHOOSE(KJ30,KJ5,KJ6,KJ7,KJ8,KJ9,KJ10,KJ11,KJ12,KJ13,KJ14,KJ15,KJ16,KJ17,KJ18,KJ19,KJ20,KJ21,KJ22,KJ23,KJ24,KJ25,KJ26,KJ27,KJ28) -> 0 | KK31: =CHOOSE(KK30,KK5,KK6,KK7,KK8,KK9,KK10,KK11,KK12,KK13,KK14,KK15,KK16,KK17,KK18,KK19,KK20,KK21,KK22,KK23,KK24,KK25,KK26,KK27,KK28) -> 0 | KL31: =CHOOSE(KL30,KL5,KL6,KL7,KL8,KL9,KL10,KL11,KL12,KL13,KL14,KL15,KL16,KL17,KL18,KL19,KL20,KL21,KL22,KL23,KL24,KL25,KL26,KL27,KL28) -> 0 | KM31: 0 | KN31: 0 | KO31: 0 | KP31: 0 | KQ31: 0 | KR31: 0 | KS31: 0 | KT31: 0 | KU31: 0 | KV31: 150 | KW31: 245.9845415 | KX31: =CHOOSE(KX30,KX5,KX6,KX7,KX8,KX9,KX10,KX11,KX12,KX13,KX14,KX15,KX16,KX17,KX18,KX19,KX20,KX21,KX22,KX23,KX24,KX25,KX26,KX27,KX28) -> 239.0989159 | KY31: =CHOOSE(KY30,KY5,KY6,KY7,KY8,KY9,KY10,KY11,KY12,KY13,KY14,KY15,KY16,KY17,KY18,KY19,KY20,KY21,KY22,KY23,KY24,KY25,KY26,KY27,KY28) -> 231.3993943 | KZ31: =CHOOSE(KZ30,KZ5,KZ6,KZ7,KZ8,KZ9,KZ10,KZ11,KZ12,KZ13,KZ14,KZ15,KZ16,KZ17,KZ18,KZ19,KZ20,KZ21,KZ22,KZ23,KZ24,KZ25,KZ26,KZ27,KZ28) -> 301.5810931 | LA31: =CHOOSE(LA30,LA5,LA6,LA7,LA8,LA9,LA10,LA11,LA12,LA13,LA14,LA15,LA16,LA17,LA18,LA19,LA20,LA21,LA22,LA23,LA24,LA25,LA26,LA27,LA28) -> 0 | LB31: 0 | LC31: 0 | LD31: 0 | LE31: 0 | LF31: 0 | LG31: 0 | LH31: 0 | LI31: 0 | LJ31: 0 | LK31: 150 | LL31: 239.228656 | LM31: =CHOOSE(LM30,LM5,LM6,LM7,LM8,LM9,LM10,LM11,LM12,LM13,LM14,LM15,LM16,LM17,LM18,LM19,LM20,LM21,LM22,LM23,LM24,LM25,LM26,LM27,LM28) -> 231.9033036 | LN31: =CHOOSE(LN30,LN5,LN6,LN7,LN8,LN9,LN10,LN11,LN12,LN13,LN14,LN15,LN16,LN17,LN18,LN19,LN20,LN21,LN22,LN23,LN24,LN25,LN26,LN27,LN28) -> 224.4838487 | LO31: =CHOOSE(LO30,LO5,LO6,LO7,LO8,LO9,LO10,LO11,LO12,LO13,LO14,LO15,LO16,LO17,LO18,LO19,LO20,LO21,LO22,LO23,LO24,LO25,LO26,LO27,LO28) -> 293.704218 | LP31: =CHOOSE(LP30,LP5,LP6,LP7,LP8,LP9,LP10,LP11,LP12,LP13,LP14,LP15,LP16,LP17,LP18,LP19,LP20,LP21,LP22,LP23,LP24,LP25,LP26,LP27,LP28) -> 0 | LQ31: 0 | LR31: 0 | LS31: 0 | LT31: 0 | LU31: 0 | LV31: 0 | LW31: 0 | LX31: 0 | LY31: 0 | LZ31: 150 | MA31: 0 | MB31: =CHOOSE(MB30,MB5,MB6,MB7,MB8,MB9,MB10,MB11,MB12,MB13,MB14,MB15,MB16,MB17,MB18,MB19,MB20,MB21,MB22,MB23,MB24,MB25,MB26,MB27,MB28) -> 0 | MC31: =CHOOSE(MC30,MC5,MC6,MC7,MC8,MC9,MC10,MC11,MC12,MC13,MC14,MC15,MC16,MC17,MC18,MC19,MC20,MC21,MC22,MC23,MC24,MC25,MC26,MC27,MC28) -> 0 | MD31: =CHOOSE(MD30,MD5,MD6,MD7,MD8,MD9,MD10,MD11,MD12,MD13,MD14,MD15,MD16,MD17,MD18,MD19,MD20,MD21,MD22,MD23,MD24,MD25,MD26,MD27,MD28) -> 405 | ME31: =CHOOSE(ME30,ME5,ME6,ME7,ME8,ME9,ME10,ME11,ME12,ME13,ME14,ME15,ME16,ME17,ME18,ME19,ME20,ME21,ME22,ME23,ME24,ME25,ME26,ME27,ME28) -> 0 | MF31: 0 | MG31: 0 | MH31: 0 | MI31: 0 | MJ31: 0 | MK31: 0 | ML31: 0 | MM31: 0 | MN31: 0 | MO31: 150 | MP31: 0 | MQ31: =CHOOSE(MQ30,MQ5,MQ6,MQ7,MQ8,MQ9,MQ10,MQ11,MQ12,MQ13,MQ14,MQ15,MQ16,MQ17,MQ18,MQ19,MQ20,MQ21,MQ22,MQ23,MQ24,MQ25,MQ26,MQ27,MQ28) -> 0 | MR31: =CHOOSE(MR30,MR5,MR6,MR7,MR8,MR9,MR10,MR11,MR12,MR13,MR14,MR15,MR16,MR17,MR18,MR19,MR20,MR21,MR22,MR23,MR24,MR25,MR26,MR27,MR28) -> 0 | MS31: =CHOOSE(MS30,MS5,MS6,MS7,MS8,MS9,MS10,MS11,MS12,MS13,MS14,MS15,MS16,MS17,MS18,MS19,MS20,MS21,MS22,MS23,MS24,MS25,MS26,MS27,MS28) -> 402 | MT31: =CHOOSE(MT30,MT5,MT6,MT7,MT8,MT9,MT10,MT11,MT12,MT13,MT14,MT15,MT16,MT17,MT18,MT19,MT20,MT21,MT22,MT23,MT24,MT25,MT26,MT27,MT28) -> 0 | MU31: 0 | MV31: 0 | MW31: 0 | MX31: 0 | MY31: 0 | MZ31: 0 | NA31: 0 | NB31: 0 | NC31: 0 | ND31: 150 | NE31: 0 | NF31: =CHOOSE(NF30,NF5,NF6,NF7,NF8,NF9,NF10,NF11,NF12,NF13,NF14,NF15,NF16,NF17,NF18,NF19,NF20,NF21,NF22,NF23,NF24,NF25,NF26,NF27,NF28) -> 0 | NG31: =CHOOSE(NG30,NG5,NG6,NG7,NG8,NG9,NG10,NG11,NG12,NG13,NG14,NG15,NG16,NG17,NG18,NG19,NG20,NG21,NG22,NG23,NG24,NG25,NG26,NG27,NG28) -> 0 | NH31: =CHOOSE(NH30,NH5,NH6,NH7,NH8,NH9,NH10,NH11,NH12,NH13,NH14,NH15,NH16,NH17,NH18,NH19,NH20,NH21,NH22,NH23,NH24,NH25,NH26,NH27,NH28) -> 464 | NI31: =CHOOSE(NI30,NI5,NI6,NI7,NI8,NI9,NI10,NI11,NI12,NI13,NI14,NI15,NI16,NI17,NI18,NI19,NI20,NI21,NI22,NI23,NI24,NI25,NI26,NI27,NI28) -> 0 | NJ31: 0 | NK31: 0 | NL31: 0 | NM31: 0 | NN31: 0 | NO31: 0 | NP31: 0 | NQ31: 0 | NR31: 0 | NS31: 150 | NT31: 325 | NU31: =CHOOSE(NU30,NU5,NU6,NU7,NU8,NU9,NU10,NU11,NU12,NU13,NU14,NU15,NU16,NU17,NU18,NU19,NU20,NU21,NU22,NU23,NU24,NU25,NU26,NU27,NU28) -> 317 | NV31: =CHOOSE(NV30,NV5,NV6,NV7,NV8,NV9,NV10,NV11,NV12,NV13,NV14,NV15,NV16,NV17,NV18,NV19,NV20,NV21,NV22,NV23,NV24,NV25,NV26,NV27,NV28) -> 308 | NW31: =CHOOSE(NW30,NW5,NW6,NW7,NW8,NW9,NW10,NW11,NW12,NW13,NW14,NW15,NW16,NW17,NW18,NW19,NW20,NW21,NW22,NW23,NW24,NW25,NW26,NW27,NW28) -> 393 | NX31: =CHOOSE(NX30,NX5,NX6,NX7,NX8,NX9,NX10,NX11,NX12,NX13,NX14,NX15,NX16,NX17,NX18,NX19,NX20,NX21,NX22,NX23,NX24,NX25,NX26,NX27,NX28) -> 337 | NY31: 288 | NZ31: 288 | OA31: 435 | OB31: 436 | OC31: 282 | OD31: 436 | OE31: 322 | OF31: 271 | OG31: 271 | OH31: 150 | OI31: 0 | OJ31: =CHOOSE(OJ30,OJ5,OJ6,OJ7,OJ8,OJ9,OJ10,OJ11,OJ12,OJ13,OJ14,OJ15,OJ16,OJ17,OJ18,OJ19,OJ20,OJ21,OJ22,OJ23,OJ24,OJ25,OJ26,OJ27,OJ28) -> 0 | OK31: =CHOOSE(OK30,OK5,OK6,OK7,OK8,OK9,OK10,OK11,OK12,OK13,OK14,OK15,OK16,OK17,OK18,OK19,OK20,OK21,OK22,OK23,OK24,OK25,OK26,OK27,OK28) -> 0 | OL31: =CHOOSE(OL30,OL5,OL6,OL7,OL8,OL9,OL10,OL11,OL12,OL13,OL14,OL15,OL16,OL17,OL18,OL19,OL20,OL21,OL22,OL23,OL24,OL25,OL26,OL27,OL28) -> 0 | OM31: =CHOOSE(OM30,OM5,OM6,OM7,OM8,OM9,OM10,OM11,OM12,OM13,OM14,OM15,OM16,OM17,OM18,OM19,OM20,OM21,OM22,OM23,OM24,OM25,OM26,OM27,OM28) -> 0 | ON31: 0 | OO31: 0 | OP31: 0 | OQ31: 0 | OR31: 0 | OS31: 0 | OT31: 0 | OU31: 0 | OV31: 0
C32: check Condition | D32: =IF(B48="Air",D31,0) -> 318 | E32: =IF(E33="Air",E31,0) -> 309 | F32: 299 | G32: 391 | H32: 0 | I32: 0 | J32: 0 | K32: =IF(K33="Ground",K31,0) -> 0 | L32: 0 | M32: 0 | N32: 0 | O32: 0 | P32: 0 | Q32: 0 | R32: 0 | S32: =IF(S33="Air",S31,0) -> 322 | T32: 314 | U32: 303 | V32: 396 | W32: 0 | X32: 0 | Y32: 0 | Z32: =IF(Z33="Ground",Z31,0) -> 0 | AA32: 0 | AB32: 0 | AC32: 0 | AD32: 0 | AE32: 0 | AF32: 0 | AG32: 0 | AH32: =IF(AH33="Air",AH31,0) -> 0 | AI32: 0 | AJ32: 0 | AK32: 0 | AL32: 0 | AM32: 0 | AN32: 0 | AO32: =IF(AO33="Ground",AO31,0) -> 0 | AP32: 0 | AQ32: 0 | AR32: 0 | AS32: 0 | AT32: 0 | AU32: 0 | AV32: 0 | AW32: =IF(AW33="Air",AW31,0) -> 0 | AX32: 0 | AY32: 0 | AZ32: 0 | BA32: 0 | BB32: 0 | BC32: 0 | BD32: =IF(BD33="Ground",BD31,0) -> 0 | BE32: 0 | BF32: 0 | BG32: 0 | BH32: 0 | BI32: 0 | BJ32: 0 | BK32: =IF(BK33="Ground",BK31,0) -> 0 | BL32: =IF(BL33="Air",BL31,0) -> 0 | BM32: 0 | BN32: 0 | BO32: 0 | BP32: 0 | BQ32: 0 | BR32: 0 | BS32: 0 | BT32: =IF(BT33="Ground",BT31,0) -> 0 | BU32: 0 | BV32: 0 | BW32: 0 | BX32: 0 | BY32: 0 | BZ32: 0 | CA32: 0 | CB32: 0 | CC32: =IF(CC33="Air",CC31,0) -> 0 | CD32: 0 | CE32: 0 | CF32: 0 | CG32: 0 | CH32: 0 | CI32: 0 | CJ32: =IF(CJ33="Ground",CJ31,0) -> 0 | CK32: 0 | CL32: 0 | CM32: 0 | CN32: 0 | CO32: 0 | CP32: 0 | CQ32: =IF(CQ33="Ground",CQ31,0) -> 0 | CR32: =IF(CR33="Air",CR31,0) -> 0 | CS32: 0 | CT32: 0 | CU32: 0 | CV32: 0 | CW32: 0 | CX32: 0 | CY32: 0 | CZ32: =IF(CZ33="Ground",CZ31,0) -> 0 | DA32: 0 | DB32: 0 | DC32: 0 | DD32: 0 | DE32: 0 | DF32: 0 | DG32: 0 | DH32: =IF(DH33="Air",DH31,0) -> 327 | DI32: 320 | DJ32: 311 | DK32: 390 | DL32: 325 | DM32: 284 | DN32: 284 | DO32: =IF(DO33="Ground",DO31,0) -> 0 | DP32: 0 | DQ32: 0 | DR32: 0 | DS32: 0 | DT32: 0 | DU32: 0 | DV32: 0 | DW32: =IF(DW33="Air",DW31,0) -> 0 | DX32: 0 | DY32: 0 | DZ32: 0 | EA32: 0 | EB32: 0 | EC32: 0 | ED32: =IF(ED33="Ground",ED31,0) -> 0 | EE32: 0 | EF32: 0 | EG32: 0 | EH32: 0 | EI32: 0 | EJ32: 0 | EK32: 0 | EL32: =IF(EL33="Air",EL31,0) -> 0 | EM32: 0 | EN32: 0 | EO32: 0 | EP32: 330 | EQ32: 287 | ER32: 287 | ES32: =IF(ES33="Ground",ES31,0) -> 0 | ET32: 0 | EU32: 0 | EV32: 0 | EW32: 0 | EX32: 0 | EY32: 0 | EZ32: 0 | FA32: =IF(FA33="Air",FA31,0) -> 442 | FB32: 411 | FC32: 398 | FD32: 510 | FE32: 436 | FF32: 372 | FG32: 372 | FH32: =IF(FH33="Ground",FH31,0) -> 0 | FI32: 0 | FJ32: 0 | FK32: 0 | FL32: 0 | FM32: 0 | FN32: 0 | FO32: =IF(FO33="Ground",FO31,0) -> 0 | FP32: =IF(FP33="Air",FP31,0) -> 0 | FQ32: 0 | FR32: 0 | FS32: 0 | FT32: 444 | FU32: 376 | FV32: 376 | FW32: 376 | FX32: =IF(FX33="Ground",FX31,0) -> 0 | FY32: 0 | FZ32: 0 | GA32: 0 | GB32: 0 | GC32: 0 | GD32: 0 | GE32: 0 | GF32: 0 | GG32: =IF(GG33="Air",GG31,0) -> 434 | GH32: 425 | GI32: 412 | GJ32: 521 | GK32: 0 | GL32: 377 | GM32: 0 | GN32: =IF(GN33="Ground",GN31,0) -> 0 | GO32: 0 | GP32: 0 | GQ32: 0 | GR32: 0 | GS32: 0 | GT32: 0 | GU32: 0 | GV32: =IF(GV33="Air",GV31,0) -> 439 | GW32: 432 | GX32: 419 | GY32: 518 | GZ32: 0 | HA32: 400 | HB32: 0 | HC32: =IF(HC33="Ground",HC31,0) -> 0 | HD32: 0 | HE32: 0 | HF32: 0 | HG32: 0 | HH32: 0 | HI32: 0 | HJ32: 0 | HK32: =IF(HK33="Air",HK31,0) -> 443 | HL32: 437 | HM32: 425 | HN32: 518 | HO32: 0 | HP32: 412 | HQ32: 0 | HR32: =IF(HR33="Ground",HR31,0) -> 0 | HS32: 0 | HT32: 0 | HU32: 0 | HV32: 0 | HW32: 0 | HX32: 0 | HY32: 0 | HZ32: =IF(HZ33="Air",HZ31,0) -> 446 | IA32: 441 | IB32: 429 | IC32: 517 | ID32: 0 | IE32: 416 | IF32: 0 | IG32: =IF(IG33="Ground",IG31,0) -> 0 | IH32: 0 | II32: 0 | IJ32: 0 | IK32: 0 | IL32: 0 | IM32: 0 | IN32: 0 | IO32: =IF(IO33="Air",IO31,0) -> 448 | IP32: 444 | IQ32: 432 | IR32: 516 | IS32: 0 | IT32: 418 | IU32: 0 | IV32: =IF(IV33="Ground",IV31,0) -> 0 | IW32: 0 | IX32: 0 | IY32: 0 | IZ32: 0 | JA32: 0 | JB32: 0 | JC32: 0 | JD32: =IF(JD33="Air",JD31,0) -> 451 | JE32: 448 | JF32: 437 | JG32: 510 | JH32: 0 | JI32: 419 | JJ32: 0 | JK32: =IF(JK33="Ground",JK31,0) -> 0 | JL32: 0 | JM32: 0 | JN32: 0 | JO32: 0 | JP32: 0 | JQ32: 0 | JR32: 0 | JS32: =IF(JS33="Air",JS31,0) -> 0 | JT32: 0 | JU32: 0 | JV32: 0 | JW32: 0 | JX32: 0 | JY32: 0 | JZ32: =IF(JZ33="Ground",JZ31,0) -> 0 | KA32: 0 | KB32: 0 | KC32: 0 | KD32: 0 | KE32: 0 | KF32: 0 | KG32: 0 | KH32: =IF(KH33="Air",KH31,0) -> 0 | KI32: 0 | KJ32: 0 | KK32: 0 | KL32: 0 | KM32: 0 | KN32: 0 | KO32: =IF(KO33="Ground",KO31,0) -> 0 | KP32: 0 | KQ32: 0 | KR32: 0 | KS32: 0 | KT32: 0 | KU32: 0 | KV32: 0 | KW32: =IF(KW33="Air",KW31,0) -> 245.9845415 | KX32: 239.0989159 | KY32: 231.3993943 | KZ32: 301.5810931 | LA32: 0 | LB32: 0 | LC32: 0 | LD32: =IF(LD33="Ground",LD31,0) -> 0 | LE32: 0 | LF32: 0 | LG32: 0 | LH32: 0 | LI32: 0 | LJ32: 0 | LK32: 0 | LL32: =IF(LL33="Air",LL31,0) -> 239.228656 | LM32: 231.9033036 | LN32: 224.4838487 | LO32: 293.704218 | LP32: 0 | LQ32: 0 | LR32: 0 | LS32: =IF(LS33="Ground",LS31,0) -> 0 | LT32: 0 | LU32: 0 | LV32: 0 | LW32: 0 | LX32: 0 | LY32: 0 | LZ32: 0 | MA32: =IF(MA33="Air",MA31,0) -> 0 | MB32: 0 | MC32: 0 | MD32: 405 | ME32: 0 | MF32: 0 | MG32: 0 | MH32: =IF(MH33="Ground",MH31,0) -> 0 | MI32: 0 | MJ32: 0 | MK32: 0 | ML32: 0 | MM32: 0 | MN32: 0 | MO32: 0 | MP32: =IF(MP33="Air",MP31,0) -> 0 | MQ32: 0 | MR32: 0 | MS32: 402 | MT32: 0 | MU32: 0 | MV32: 0 | MW32: =IF(MW33="Ground",MW31,0) -> 0 | MX32: 0 | MY32: 0 | MZ32: 0 | NA32: 0 | NB32: 0 | NC32: 0 | ND32: 0 | NE32: =IF(NE33="Air",NE31,0) -> 0 | NF32: 0 | NG32: 0 | NH32: 464 | NI32: 0 | NJ32: 0 | NK32: 0 | NL32: =IF(NL33="Ground",NL31,0) -> 0 | NM32: 0 | NN32: 0 | NO32: 0 | NP32: 0 | NQ32: 0 | NR32: 0 | NS32: 0 | NT32: =IF(NT33="Air",NT31,0) -> 325 | NU32: 317 | NV32: 308 | NW32: 393 | NX32: 337 | NY32: 288 | NZ32: 288 | OA32: =IF(OA33="Ground",OA31,0) -> 0 | OB32: 0 | OC32: 0 | OD32: 0 | OE32: 0 | OF32: 0 | OG32: 0 | OH32: 0 | OI32: =IF(OI33="Air",OI31,0) -> 0 | OJ32: 0 | OK32: 0 | OL32: 0 | OM32: 0 | ON32: 0 | OO32: 0 | OP32: =IF(OP33="Ground",OP31,0) -> 0 | OQ32: 0 | OR32: 0 | OS32: 0 | OT32: 0 | OU32: 0 | OV32: 0
D33: =B48 -> Air | E33: =D33 -> Air | F33: =E33 -> Air | G33: =F33 -> Air | H33: =G33 -> Air | I33: Air | J33: Air | K33: Air | L33: Air | M33: Air | N33: =M33 -> Air | O33: Air | P33: Air | Q33: Air | R33: Air | S33: Air | T33: Air | U33: Air | V33: Air | W33: =V33 -> Air | X33: Air | Y33: Air | Z33: Air | AA33: Air | AB33: Air | AC33: Air | AD33: Air | AE33: Air | AF33: Air | AG33: =AF33 -> Air | AH33: Air | AI33: Air | AJ33: Air | AK33: Air | AL33: Air | AM33: Air | AN33: Air | AO33: Air | AP33: Air | AQ33: Air | AR33: Air | AS33: Air | AT33: Air | AU33: Air | AV33: Air | AW33: Air | AX33: Air | AY33: Air | AZ33: Air | BA33: Air | BB33: Air | BC33: Air | BD33: Air | BE33: Air | BF33: Air | BG33: Air | BH33: Air | BI33: Air | BJ33: Air | BK33: =BJ33 -> Air | BL33: Air | BM33: Air | BN33: Air | BO33: Air | BP33: Air | BQ33: Air | BR33: Air | BS33: Air | BT33: =BR33 -> Air | BU33: Air | BV33: Air | BW33: Air | BX33: Air | BY33: Air | BZ33: Air | CA33: =BZ33 -> Air | CB33: Air | CC33: Air | CD33: Air | CE33: Air | CF33: Air | CG33: Air | CH33: Air | CI33: Air | CJ33: Air | CK33: Air | CL33: Air | CM33: Air | CN33: Air | CO33: Air | CP33: Air | CQ33: Air | CR33: Air | CS33: Air | CT33: Air | CU33: Air | CV33: Air | CW33: Air | CX33: Air | CY33: Air | CZ33: =CX33 -> Air | DA33: =CZ33 -> Air | DB33: Air | DC33: Air | DD33: Air | DE33: Air | DF33: Air | DG33: =DF33 -> Air | DH33: Air | DI33: Air | DJ33: Air | DK33: Air | DL33: Air | DM33: Air | DN33: Air | DO33: Air | DP33: Air | DQ33: Air | DR33: Air | DS33: Air | DT33: Air | DU33: Air | DV33: Air | DW33: Air | DX33: Air | DY33: Air | DZ33: Air | EA33: Air | EB33: Air | EC33: Air | ED33: Air | EE33: Air | EF33: Air | EG33: Air | EH33: Air | EI33: Air | EJ33: Air | EK33: Air | EL33: Air | EM33: =EL33 -> Air | EN33: Air | EO33: Air | EP33: Air | EQ33: Air | ER33: Air | ES33: Air | ET33: Air | EU33: Air | EV33: Air | EW33: Air | EX33: Air | EY33: Air | EZ33: Air | FA33: Air | FB33: Air | FC33: Air | FD33: Air | FE33: Air | FF33: Air | FG33: Air | FH33: Air | FI33: Air | FJ33: Air | FK33: Air | FL33: Air | FM33: Air | FN33: Air | FO33: =FN33 -> Air | FP33: Air | FQ33: Air | FR33: Air | FS33: Air | FT33: Air | FU33: Air | FV33: Air | FW33: =FV33 -> Air | FX33: =FV33 -> Air | FY33: Air | FZ33: Air | GA33: Air | GB33: Air | GC33: Air | GD33: Air | GE33: =GD33 -> Air | GF33: Air | GG33: Air | GH33: Air | GI33: Air | GJ33: Air | GK33: Air | GL33: Air | GM33: Air | GN33: Air | GO33: Air | GP33: Air | GQ33: Air | GR33: Air | GS33: Air | GT33: Air | GU33: Air | GV33: Air | GW33: Air | GX33: Air | GY33: Air | GZ33: Air | HA33: Air | HB33: Air | HC33: Air | HD33: Air | HE33: Air | HF33: Air | HG33: Air | HH33: Air | HI33: Air | HJ33: Air | HK33: =HJ33 -> Air | HL33: Air | HM33: Air | HN33: Air | HO33: Air | HP33: Air | HQ33: Air | HR33: Air | HS33: Air | HT33: Air | HU33: Air | HV33: Air | HW33: Air | HX33: Air | HY33: Air | HZ33: Air | IA33: Air | IB33: Air | IC33: Air | ID33: Air | IE33: Air | IF33: Air | IG33: Air | IH33: Air | II33: Air | IJ33: Air | IK33: Air | IL33: Air | IM33: Air | IN33: Air | IO33: Air | IP33: Air | IQ33: =IP33 -> Air | IR33: Air | IS33: Air | IT33: Air | IU33: Air | IV33: Air | IW33: Air | IX33: Air | IY33: Air | IZ33: Air | JA33: Air | JB33: Air | JC33: Air | JD33: Air | JE33: Air | JF33: Air | JG33: Air | JH33: Air | JI33: Air | JJ33: Air | JK33: Air | JL33: Air | JM33: Air | JN33: Air | JO33: Air | JP33: Air | JQ33: Air | JR33: Air | JS33: Air | JT33: Air | JU33: Air | JV33: Air | JW33: =JV33 -> Air | JX33: Air | JY33: Air | JZ33: Air | KA33: Air | KB33: Air | KC33: Air | KD33: Air | KE33: Air | KF33: Air | KG33: Air | KH33: Air | KI33: Air | KJ33: Air | KK33: Air | KL33: Air | KM33: Air | KN33: Air | KO33: Air | KP33: Air | KQ33: Air | KR33: Air | KS33: Air | KT33: Air | KU33: Air | KV33: Air | KW33: Air | KX33: Air | KY33: Air | KZ33: Air | LA33: Air | LB33: Air | LC33: =LB33 -> Air | LD33: Air | LE33: Air | LF33: Air | LG33: Air | LH33: Air | LI33: Air | LJ33: Air | LK33: Air | LL33: Air | LM33: Air | LN33: Air | LO33: Air | LP33: Air | LQ33: Air | LR33: Air | LS33: Air | LT33: Air | LU33: Air | LV33: Air | LW33: Air | LX33: Air | LY33: Air | LZ33: Air | MA33: Air | MB33: Air | MC33: Air | MD33: Air | ME33: Air | MF33: Air | MG33: Air | MH33: Air | MI33: =MH33 -> Air | MJ33: Air | MK33: Air | ML33: Air | MM33: Air | MN33: Air | MO33: Air | MP33: Air | MQ33: Air | MR33: Air | MS33: Air | MT33: Air | MU33: Air | MV33: Air | MW33: Air | MX33: Air | MY33: Air | MZ33: Air | NA33: Air | NB33: Air | NC33: Air | ND33: Air | NE33: Air | NF33: Air | NG33: Air | NH33: Air | NI33: Air | NJ33: Air | NK33: Air | NL33: Air | NM33: Air | NN33: Air | NO33: Air | NP33: Air | NQ33: Air | NR33: Air | NS33: =NR33 -> Air | NT33: =NS33 -> Air | NU33: =NT33 -> Air | NV33: =NU33 -> Air | NW33: =NV33 -> Air | NX33: =NW33 -> Air | NY33: =NX33 -> Air | NZ33: =NY33 -> Air | OA33: =NZ33 -> Air | OB33: =OA33 -> Air | OC33: =OB33 -> Air | OD33: =OC33 -> Air | OE33: =OD33 -> Air | OF33: =OE33 -> Air | OG33: =OF33 -> Air | OH33: =OG33 -> Air | OI33: =OH33 -> Air | OJ33: =OI33 -> Air | OK33: =OJ33 -> Air | OL33: =OK33 -> Air | OM33: =OL33 -> Air | ON33: =OM33 -> Air | OO33: =ON33 -> Air | OP33: =OO33 -> Air | OQ33: =OP33 -> Air | OR33: =OQ33 -> Air | OS33: =OR33 -> Air | OT33: =OS33 -> Air | OU33: =OT33 -> Air | OV33: =OU33 -> Air
C34: A | D34: =IF(D33="air",D31,0) -> 318 | E34: 309 | F34: 299 | G34: 391 | H34: 0 | I34: 0 | J34: 0 | K34: =IF(K33="Ground",K31,0) -> 0 | L34: 0 | M34: 0 | N34: 0 | O34: 0 | P34: 0 | Q34: 0 | R34: 0 | S34: =IF(S33="Air",S31,0) -> 322 | T34: =IF(T33="air",T31,0) -> 314 | U34: 303 | V34: 396 | W34: 0 | X34: 0 | Y34: 0 | Z34: =IF(Z33="Ground",Z31,0) -> 0 | AA34: 0 | AB34: 0 | AC34: 0 | AD34: 0 | AE34: 0 | AF34: 0 | AG34: 0 | AH34: =IF(AH33="Air",AH31,0) -> 0 | AI34: =IF(AI33="air",AI31,0) -> 0 | AJ34: 0 | AK34: 0 | AL34: 0 | AM34: 0 | AN34: 0 | AO34: =IF(AO33="Ground",AO31,0) -> 0 | AP34: 0 | AQ34: 0 | AR34: 0 | AS34: 0 | AT34: 0 | AU34: 0 | AV34: 0 | AW34: =IF(AW33="Air",AW31,0) -> 0 | AX34: =IF(AX33="air",AX31,0) -> 0 | AY34: 0 | AZ34: 0 | BA34: 0 | BB34: 0 | BC34: 0 | BD34: =IF(BD33="Ground",BD31,0) -> 0 | BE34: 0 | BF34: 0 | BG34: 0 | BH34: 0 | BI34: 0 | BJ34: 0 | BK34: =IF(BK33="Ground",BK31,0) -> 0 | BL34: =IF(BL33="Air",BL31,0) -> 0 | BM34: =IF(BM33="air",BM31,0) -> 0 | BN34: 0 | BO34: 0 | BP34: 0 | BQ34: 0 | BR34: 0 | BS34: 0 | BT34: =IF(BT33="Ground",BT31,0) -> 0 | BU34: 0 | BV34: 0 | BW34: 0 | BX34: 0 | BY34: 0 | BZ34: 0 | CA34: 0 | CB34: 0 | CC34: =IF(CC33="Air",CC31,0) -> 0 | CD34: =IF(CD33="air",CD31,0) -> 0 | CE34: 0 | CF34: 0 | CG34: 0 | CH34: 0 | CI34: 0 | CJ34: =IF(CJ33="Ground",CJ31,0) -> 0 | CK34: 0 | CL34: 0 | CM34: 0 | CN34: 0 | CO34: 0 | CP34: 0 | CQ34: =IF(CQ33="Ground",CQ31,0) -> 0 | CR34: =IF(CR33="Air",CR31,0) -> 0 | CS34: =IF(CS33="air",CS31,0) -> 0 | CT34: 0 | CU34: 0 | CV34: 0 | CW34: 0 | CX34: 0 | CY34: 0 | CZ34: =IF(CZ33="Ground",CZ31,0) -> 0 | DA34: 0 | DB34: 0 | DC34: 0 | DD34: 0 | DE34: 0 | DF34: 0 | DG34: 0 | DH34: =IF(DH33="Air",DH31,0) -> 327 | DI34: =IF(DI33="air",DI31,0) -> 320 | DJ34: 311 | DK34: 390 | DL34: 325 | DM34: 284 | DN34: 284 | DO34: =IF(DO33="Ground",DO31,0) -> 0 | DP34: 0 | DQ34: 0 | DR34: 0 | DS34: 0 | DT34: 0 | DU34: 0 | DV34: 0 | DW34: =IF(DW33="Air",DW31,0) -> 0 | DX34: =IF(DX33="air",DX31,0) -> 0 | DY34: 0 | DZ34: 0 | EA34: 0 | EB34: 0 | EC34: 0 | ED34: =IF(ED33="Ground",ED31,0) -> 0 | EE34: 0 | EF34: 0 | EG34: 0 | EH34: 0 | EI34: 0 | EJ34: 0 | EK34: 0 | EL34: =IF(EL33="Air",EL31,0) -> 0 | EM34: =IF(EM33="air",EM31,0) -> 0 | EN34: 0 | EO34: 0 | EP34: 330 | EQ34: 287 | ER34: 287 | ES34: =IF(ES33="Ground",ES31,0) -> 0 | ET34: 0 | EU34: 0 | EV34: 0 | EW34: 0 | EX34: 0 | EY34: 0 | EZ34: 0 | FA34: =IF(FA33="Air",FA31,0) -> 442 | FB34: =IF(FB33="air",FB31,0) -> 411 | FC34: 398 | FD34: 510 | FE34: 436 | FF34: 372 | FG34: 372 | FH34: =IF(FH33="Ground",FH31,0) -> 0 | FI34: 0 | FJ34: 0 | FK34: 0 | FL34: 0 | FM34: 0 | FN34: 0 | FO34: =IF(FO33="Ground",FO31,0) -> 0 | FP34: =IF(FP33="Air",FP31,0) -> 0 | FQ34: =IF(FQ33="air",FQ31,0) -> 0 | FR34: 0 | FS34: 0 | FT34: 444 | FU34: 376 | FV34: 376 | FW34: 376 | FX34: =IF(FX33="Ground",FX31,0) -> 0 | FY34: 0 | FZ34: 0 | GA34: 0 | GB34: 0 | GC34: 0 | GD34: 0 | GE34: 0 | GF34: 0 | GG34: =IF(GG33="Air",GG31,0) -> 434 | GH34: =IF(GH33="air",GH31,0) -> 425 | GI34: 412 | GJ34: 521 | GK34: 0 | GL34: 377 | GM34: 0 | GN34: =IF(GN33="Ground",GN31,0) -> 0 | GO34: 0 | GP34: 0 | GQ34: 0 | GR34: 0 | GS34: 0 | GT34: 0 | GU34: 0 | GV34: =IF(GV33="Air",GV31,0) -> 439 | GW34: =IF(GW33="air",GW31,0) -> 432 | GX34: 419 | GY34: 518 | GZ34: 0 | HA34: 400 | HB34: 0 | HC34: =IF(HC33="Ground",HC31,0) -> 0 | HD34: 0 | HE34: 0 | HF34: 0 | HG34: 0 | HH34: 0 | HI34: 0 | HJ34: 0 | HK34: =IF(HK33="Air",HK31,0) -> 443 | HL34: =IF(HL33="air",HL31,0) -> 437 | HM34: 425 | HN34: 518 | HO34: 0 | HP34: 412 | HQ34: 0 | HR34: =IF(HR33="Ground",HR31,0) -> 0 | HS34: 0 | HT34: 0 | HU34: 0 | HV34: 0 | HW34: 0 | HX34: 0 | HY34: 0 | HZ34: =IF(HZ33="Air",HZ31,0) -> 446 | IA34: =IF(IA33="air",IA31,0) -> 441 | IB34: 429 | IC34: 517 | ID34: 0 | IE34: 416 | IF34: 0 | IG34: =IF(IG33="Ground",IG31,0) -> 0 | IH34: 0 | II34: 0 | IJ34: 0 | IK34: 0 | IL34: 0 | IM34: 0 | IN34: 0 | IO34: =IF(IO33="Air",IO31,0) -> 448 | IP34: =IF(IP33="air",IP31,0) -> 444 | IQ34: 432 | IR34: 516 | IS34: 0 | IT34: 418 | IU34: 0 | IV34: =IF(IV33="Ground",IV31,0) -> 0 | IW34: 0 | IX34: 0 | IY34: 0 | IZ34: 0 | JA34: 0 | JB34: 0 | JC34: 0 | JD34: =IF(JD33="Air",JD31,0) -> 451 | JE34: =IF(JE33="air",JE31,0) -> 448 | JF34: 437 | JG34: 510 | JH34: 0 | JI34: 419 | JJ34: 0 | JK34: =IF(JK33="Ground",JK31,0) -> 0 | JL34: 0 | JM34: 0 | JN34: 0 | JO34: 0 | JP34: 0 | JQ34: 0 | JR34: 0 | JS34: =IF(JS33="Air",JS31,0) -> 0 | JT34: =IF(JT33="air",JT31,0) -> 0 | JU34: 0 | JV34: 0 | JW34: 0 | JX34: 0 | JY34: 0 | JZ34: =IF(JZ33="Ground",JZ31,0) -> 0 | KA34: 0 | KB34: 0 | KC34: =IF(KC33="Ground",KC31,0) -> 0 | KD34: 0 | KE34: 0 | KF34: 0 | KG34: 0 | KH34: =IF(KH33="Air",KH31,0) -> 0 | KI34: =IF(KI33="air",KI31,0) -> 0 | KJ34: 0 | KK34: 0 | KL34: 0 | KM34: 0 | KN34: 0 | KO34: =IF(KO33="Ground",KO31,0) -> 0 | KP34: 0 | KQ34: 0 | KR34: 0 | KS34: 0 | KT34: 0 | KU34: 0 | KV34: 0 | KW34: =IF(KW33="Air",KW31,0) -> 245.9845415 | KX34: =IF(KX33="air",KX31,0) -> 239.0989159 | KY34: 231.3993943 | KZ34: 301.5810931 | LA34: 0 | LB34: 0 | LC34: 0 | LD34: =IF(LD33="Ground",LD31,0) -> 0 | LE34: 0 | LF34: 0 | LG34: 0 | LH34: 0 | LI34: 0 | LJ34: 0 | LK34: 0 | LL34: =IF(LL33="Air",LL31,0) -> 239.228656 | LM34: =IF(LM33="air",LM31,0) -> 231.9033036 | LN34: 224.4838487 | LO34: 293.704218 | LP34: 0 | LQ34: 0 | LR34: 0 | LS34: =IF(LS33="Ground",LS31,0) -> 0 | LT34: 0 | LU34: 0 | LV34: 0 | LW34: 0 | LX34: 0 | LY34: 0 | LZ34: 0 | MA34: =IF(MA33="Air",MA31,0) -> 0 | MB34: =IF(MB33="air",MB31,0) -> 0 | MC34: 0 | MD34: 405 | ME34: 0 | MF34: 0 | MG34: 0 | MH34: =IF(MH33="Ground",MH31,0) -> 0 | MI34: 0 | MJ34: 0 | MK34: 0 | ML34: 0 | MM34: 0 | MN34: 0 | MO34: 0 | MP34: =IF(MP33="Air",MP31,0) -> 0 | MQ34: =IF(MQ33="air",MQ31,0) -> 0 | MR34: 0 | MS34: 402 | MT34: 0 | MU34: 0 | MV34: 0 | MW34: =IF(MW33="Ground",MW31,0) -> 0 | MX34: 0 | MY34: 0 | MZ34: 0 | NA34: 0 | NB34: 0 | NC34: 0 | ND34: 0 | NE34: =IF(NE33="Air",NE31,0) -> 0 | NF34: =IF(NF33="air",NF31,0) -> 0 | NG34: 0 | NH34: 464 | NI34: 0 | NJ34: 0 | NK34: 0 | NL34: =IF(NL33="Ground",NL31,0) -> 0 | NM34: 0 | NN34: 0 | NO34: 0 | NP34: 0 | NQ34: 0 | NR34: 0 | NS34: 0 | NT34: =IF(NT33="Air",NT31,0) -> 325 | NU34: =IF(NU33="air",NU31,0) -> 317 | NV34: 308 | NW34: 393 | NX34: 337 | NY34: 288 | NZ34: 288 | OA34: =IF(OA33="Ground",OA31,0) -> 0 | OB34: 0 | OC34: 0 | OD34: 0 | OE34: 0 | OF34: 0 | OG34: 0 | OH34: 0 | OI34: =IF(OI33="Air",OI31,0) -> 0 | OJ34: =IF(OJ33="air",OJ31,0) -> 0 | OK34: 0 | OL34: 0 | OM34: 0 | ON34: 0 | OO34: 0 | OP34: =IF(OP33="Ground",OP31,0) -> 0 | OQ34: 0 | OR34: 0 | OS34: 0 | OT34: 0 | OU34: 0 | OV34: 0
D35: =IF(B45=2,2,IF(B45=3,3,IF(B45=4,4,IF(B45=5,5,C47)))) -> Space | E35: =D35 -> Space | F35: Space | G35: Space | H35: Space | I35: Space | J35: Space | K35: =J35 -> Space | L35: Space | M35: Space | N35: Space | O35: Space | P35: Space | Q35: Space | R35: =Q35 -> Space | S35: =R35 -> Space | T35: =S35 -> Space | U35: Space | V35: Space | W35: Space | X35: Space | Y35: Space | Z35: =Y35 -> Space | AA35: Space | AB35: Space | AC35: Space | AD35: Space | AE35: Space | AF35: Space | AG35: =AF35 -> Space | AH35: Space | AI35: Space | AJ35: Space | AK35: Space | AL35: Space | AM35: Space | AN35: Space | AO35: Space | AP35: Space | AQ35: Space | AR35: Space | AS35: Space | AT35: Space | AU35: Space | AV35: Space | AW35: Space | AX35: Space | AY35: Space | AZ35: Space | BA35: Space | BB35: Space | BC35: Space | BD35: Space | BE35: Space | BF35: Space | BG35: Space | BH35: Space | BI35: Space | BJ35: Space | BK35: =BJ35 -> Space | BL35: Space | BM35: Space | BN35: Space | BO35: Space | BP35: Space | BQ35: Space | BR35: Space | BS35: Space | BT35: =BR35 -> Space | BU35: Space | BV35: Space | BW35: Space | BX35: Space | BY35: Space | BZ35: Space | CA35: =BZ35 -> Space | CB35: Space | CC35: Space | CD35: Space | CE35: Space | CF35: Space | CG35: Space | CH35: Space | CI35: Space | CJ35: Space | CK35: Space | CL35: Space | CM35: Space | CN35: Space | CO35: Space | CP35: Space | CQ35: Space | CR35: Space | CS35: Space | CT35: Space | CU35: Space | CV35: Space | CW35: Space | CX35: Space | CY35: Space | CZ35: =CX35 -> Space | DA35: Space | DB35: Space | DC35: Space | DD35: =DC35 -> Space | DE35: Space | DF35: Space | DG35: Space | DH35: Space | DI35: Space | DJ35: Space | DK35: Space | DL35: Space | DM35: Space | DN35: Space | DO35: Space | DP35: Space | DQ35: Space | DR35: Space | DS35: Space | DT35: Space | DU35: Space | DV35: Space | DW35: Space | DX35: Space | DY35: Space | DZ35: Space | EA35: Space | EB35: Space | EC35: Space | ED35: Space | EE35: Space | EF35: Space | EG35: Space | EH35: Space | EI35: Space | EJ35: =EI35 -> Space | EK35: Space | EL35: Space | EM35: Space | EN35: Space | EO35: Space | EP35: Space | EQ35: Space | ER35: Space | ES35: Space | ET35: Space | EU35: Space | EV35: Space | EW35: Space | EX35: Space | EY35: Space | EZ35: Space | FA35: Space | FB35: Space | FC35: Space | FD35: Space | FE35: Space | FF35: Space | FG35: Space | FH35: Space | FI35: Space | FJ35: Space | FK35: Space | FL35: Space | FM35: Space | FN35: Space | FO35: Space | FP35: =FO35 -> Space | FQ35: Space | FR35: Space | FS35: Space | FT35: Space | FU35: Space | FV35: Space | FW35: =FV35 -> Space | FX35: =FV35 -> Space | FY35: Space | FZ35: Space | GA35: Space | GB35: Space | GC35: Space | GD35: Space | GE35: =GD35 -> Space | GF35: Space | GG35: Space | GH35: Space | GI35: Space | GJ35: Space | GK35: Space | GL35: Space | GM35: Space | GN35: Space | GO35: Space | GP35: Space | GQ35: Space | GR35: Space | GS35: Space | GT35: Space | GU35: Space | GV35: Space | GW35: Space | GX35: Space | GY35: Space | GZ35: Space | HA35: Space | HB35: Space | HC35: Space | HD35: Space | HE35: Space | HF35: Space | HG35: Space | HH35: Space | HI35: Space | HJ35: Space | HK35: =HJ35 -> Space | HL35: Space | HM35: Space | HN35: Space | HO35: Space | HP35: Space | HQ35: Space | HR35: Space | HS35: Space | HT35: Space | HU35: Space | HV35: Space | HW35: Space | HX35: Space | HY35: Space | HZ35: Space | IA35: Space | IB35: Space | IC35: Space | ID35: Space | IE35: Space | IF35: Space | IG35: Space | IH35: Space | II35: Space | IJ35: Space | IK35: Space | IL35: Space | IM35: Space | IN35: Space | IO35: Space | IP35: Space | IQ35: =IP35 -> Space | IR35: Space | IS35: Space | IT35: Space | IU35: Space | IV35: Space | IW35: Space | IX35: Space | IY35: Space | IZ35: Space | JA35: Space | JB35: Space | JC35: Space | JD35: Space | JE35: Space | JF35: Space | JG35: Space | JH35: Space | JI35: Space | JJ35: Space | JK35: Space | JL35: Space | JM35: Space | JN35: Space | JO35: Space | JP35: Space | JQ35: Space | JR35: Space | JS35: Space | JT35: Space | JU35: Space | JV35: Space | JW35: =JV35 -> Space | JX35: Space | JY35: Space | JZ35: Space | KA35: Space | KB35: Space | KC35: Space | KD35: Space | KE35: Space | KF35: Space | KG35: Space | KH35: Space | KI35: Space | KJ35: Space | KK35: Space | KL35: Space | KM35: Space | KN35: Space | KO35: Space | KP35: Space | KQ35: Space | KR35: Space | KS35: Space | KT35: Space | KU35: Space | KV35: Space | KW35: Space | KX35: Space | KY35: Space | KZ35: Space | LA35: Space | LB35: Space | LC35: =LB35 -> Space | LD35: Space | LE35: Space | LF35: Space | LG35: Space | LH35: Space | LI35: Space | LJ35: Space | LK35: Space | LL35: Space | LM35: Space | LN35: Space | LO35: Space | LP35: Space | LQ35: Space | LR35: Space | LS35: Space | LT35: Space | LU35: Space | LV35: Space | LW35: Space | LX35: Space | LY35: Space | LZ35: Space | MA35: Space | MB35: Space | MC35: Space | MD35: Space | ME35: Space | MF35: Space | MG35: Space | MH35: Space | MI35: =MH35 -> Space | MJ35: Space | MK35: Space | ML35: Space | MM35: Space | MN35: Space | MO35: Space | MP35: Space | MQ35: Space | MR35: Space | MS35: Space | MT35: Space | MU35: Space | MV35: Space | MW35: Space | MX35: Space | MY35: Space | MZ35: Space | NA35: Space | NB35: Space | NC35: Space | ND35: Space | NE35: Space | NF35: Space | NG35: Space | NH35: Space | NI35: Space | NJ35: Space | NK35: Space | NL35: Space | NM35: Space | NN35: Space | NO35: Space | NP35: Space | NQ35: Space | NR35: Space | NS35: =NR35 -> Space | NT35: =NS35 -> Space | NU35: =NT35 -> Space | NV35: =NU35 -> Space | NW35: =NV35 -> Space | NX35: =NW35 -> Space | NY35: =NX35 -> Space | NZ35: =NY35 -> Space | OA35: =NZ35 -> Space | OB35: =OA35 -> Space | OC35: =OB35 -> Space | OD35: =OC35 -> Space | OE35: =OD35 -> Space | OF35: =OE35 -> Space | OG35: =OF35 -> Space | OH35: =OG35 -> Space | OI35: =OH35 -> Space | OJ35: =OI35 -> Space | OK35: =OJ35 -> Space | OL35: =OK35 -> Space | OM35: =OL35 -> Space | ON35: =OM35 -> Space | OO35: =ON35 -> Space | OP35: =OO35 -> Space | OQ35: =OP35 -> Space | OR35: =OQ35 -> Space | OS35: =OR35 -> Space | OT35: =OS35 -> Space | OU35: =OT35 -> Space | OV35: =OU35 -> Space
D36: =IF(C47="Touching2",D34,0) -> 0 | E36: =IF(E35="Touching3",E34,0) -> 0 | F36: =IF(F35="Trefoil",F34,0) -> 0 | G36: =IF(G35="Space",G34,0) -> 391 | H36: =IF(H35=2,H34,0) -> 0 | I36: =IF(I35=3,I34,0) -> 0 | J36: =IF(J35=4,J34,0) -> 0 | K36: =IF(K35="Touching2",K34,0) -> 0 | L36: =IF(L35="Touching3",L34,0) -> 0 | M36: =IF(M35="Trefoil",M34,0) -> 0 | N36: =IF(N35="Space",N34,0) -> 0 | O36: =IF(O35=2,O34,0) -> 0 | P36: =IF(P35=3,P34,0) -> 0 | Q36: =IF(Q35=4,Q34,0) -> 0 | R36: =IF(R35=4,R34,0) -> 0 | S36: =IF(S35="Touching2",S34,0) -> 0 | T36: =IF(T35="Touching3",T34,0) -> 0 | U36: =IF(U35="Trefoil",U34,0) -> 0 | V36: =IF(V35="Space",V34,0) -> 396 | W36: =IF(W35=2,W34,0) -> 0 | X36: =IF(X35=3,X34,0) -> 0 | Y36: =IF(Y35=4,Y34,0) -> 0 | Z36: =IF(Z35="Touching2",Z34,0) -> 0 | AA36: =IF(AA35="Touching3",AA34,0) -> 0 | AB36: =IF(AB35="Trefoil",AB34,0) -> 0 | AC36: =IF(AC35="Space",AC34,0) -> 0 | AD36: =IF(AD35=2,AD34,0) -> 0 | AE36: =IF(AE35=3,AE34,0) -> 0 | AF36: =IF(AF35=4,AF34,0) -> 0 | AG36: =IF(AG35=4,AG34,0) -> 0 | AH36: =IF(AH35="Touching2",AH34,0) -> 0 | AI36: =IF(AI35="Touching3",AI34,0) -> 0 | AJ36: =IF(AJ35="Trefoil",AJ34,0) -> 0 | AK36: =IF(AK35="Space",AK34,0) -> 0 | AL36: =IF(AL35=2,AL34,0) -> 0 | AM36: =IF(AM35=3,AM34,0) -> 0 | AN36: =IF(AN35=4,AN34,0) -> 0 | AO36: =IF(AO35="Touching2",AO34,0) -> 0 | AP36: =IF(AP35="Touching3",AP34,0) -> 0 | AQ36: =IF(AQ35="Trefoil",AQ34,0) -> 0 | AR36: =IF(AR35="Space",AR34,0) -> 0 | AS36: =IF(AS35=2,AS34,0) -> 0 | AT36: =IF(AT35=3,AT34,0) -> 0 | AU36: =IF(AU35=4,AU34,0) -> 0 | AV36: =IF(AV35=4,AV34,0) -> 0 | AW36: =IF(AW35="Touching2",AW34,0) -> 0 | AX36: =IF(AX35="Touching3",AX34,0) -> 0 | AY36: =IF(AY35="Trefoil",AY34,0) -> 0 | AZ36: =IF(AZ35="Space",AZ34,0) -> 0 | BA36: =IF(BA35=2,BA34,0) -> 0 | BB36: =IF(BB35=3,BB34,0) -> 0 | BC36: =IF(BC35=4,BC34,0) -> 0 | BD36: =IF(BD35="Touching2",BD34,0) -> 0 | BE36: =IF(BE35="Touching3",BE34,0) -> 0 | BF36: =IF(BF35="Trefoil",BF34,0) -> 0 | BG36: =IF(BG35="Space",BG34,0) -> 0 | BH36: =IF(BH35=2,BH34,0) -> 0 | BI36: =IF(BI35=3,BI34,0) -> 0 | BJ36: =IF(BJ35=4,BJ34,0) -> 0 | BK36: =IF(BK35=4,BK34,0) -> 0 | BL36: =IF(BL35="Touching2",BL34,0) -> 0 | BM36: =IF(BM35="Touching3",BM34,0) -> 0 | BN36: =IF(BN35="Trefoil",BN34,0) -> 0 | BO36: =IF(BO35="Space",BO34,0) -> 0 | BP36: =IF(BP35=2,BP34,0) -> 0 | BQ36: =IF(BQ35=3,BQ34,0) -> 0 | BR36: =IF(BR35=4,BR34,0) -> 0 | BS36: =IF(BS35=5,BS34,0) -> 0 | BT36: =IF(BT35="Touching2",BT34,0) -> 0 | BU36: =IF(BU35="Touching3",BU34,0) -> 0 | BV36: =IF(BV35="Trefoil",BV34,0) -> 0 | BW36: =IF(BW35="Space",BW34,0) -> 0 | BX36: =IF(BX35=2,BX34,0) -> 0 | BY36: =IF(BY35=3,BY34,0) -> 0 | BZ36: =IF(BZ35=4,BZ34,0) -> 0 | CA36: =IF(CA35=5,CA34,0) -> 0 | CB36: =IF(CB35=4,CB34,0) -> 0 | CC36: =IF(CC35="Touching2",CC34,0) -> 0 | CD36: =IF(CD35="Touching3",CD34,0) -> 0 | CE36: =IF(CE35="Trefoil",CE34,0) -> 0 | CF36: =IF(CF35="Space",CF34,0) -> 0 | CG36: =IF(CG35=2,CG34,0) -> 0 | CH36: =IF(CH35=3,CH34,0) -> 0 | CI36: =IF(CI35=4,CI34,0) -> 0 | CJ36: =IF(CJ35="Touching2",CJ34,0) -> 0 | CK36: =IF(CK35="Touching3",CK34,0) -> 0 | CL36: =IF(CL35="Trefoil",CL34,0) -> 0 | CM36: =IF(CM35="Space",CM34,0) -> 0 | CN36: =IF(CN35=2,CN34,0) -> 0 | CO36: =IF(CO35=3,CO34,0) -> 0 | CP36: =IF(CP35=4,CP34,0) -> 0 | CQ36: =IF(CQ35=4,CQ34,0) -> 0 | CR36: =IF(CR35="Touching2",CR34,0) -> 0 | CS36: =IF(CS35="Touching3",CS34,0) -> 0 | CT36: =IF(CT35="Trefoil",CT34,0) -> 0 | CU36: =IF(CU35="Space",CU34,0) -> 0 | CV36: =IF(CV35=2,CV34,0) -> 0 | CW36: =IF(CW35=3,CW34,0) -> 0 | CX36: =IF(CX35=4,CX34,0) -> 0 | CY36: =IF(CY35=5,CY34,0) -> 0 | CZ36: =IF(CZ35="Touching2",CZ34,0) -> 0 | DA36: =IF(DA35="Touching3",DA34,0) -> 0 | DB36: =IF(DB35="Trefoil",DB34,0) -> 0 | DC36: =IF(DC35="Space",DC34,0) -> 0 | DD36: =IF(DD35=2,DD34,0) -> 0 | DE36: =IF(DE35=3,DE34,0) -> 0 | DF36: =IF(DF35=4,DF34,0) -> 0 | DG36: =IF(DG35=4,DG34,0) -> 0 | DH36: =IF(DH35="Touching2",DH34,0) -> 0 | DI36: =IF(DI35="Touching3",DI34,0) -> 0 | DJ36: =IF(DJ35="Trefoil",DJ34,0) -> 0 | DK36: =IF(DK35="Space",DK34,0) -> 390 | DL36: =IF(DL35=2,DL34,0) -> 0 | DM36: =IF(DM35=3,DM34,0) -> 0 | DN36: =IF(DN35=4,DN34,0) -> 0 | DO36: =IF(DO35="Touching2",DO34,0) -> 0 | DP36: =IF(DP35="Touching3",DP34,0) -> 0 | DQ36: =IF(DQ35="Trefoil",DQ34,0) -> 0 | DR36: =IF(DR35="Space",DR34,0) -> 0 | DS36: =IF(DS35=2,DS34,0) -> 0 | DT36: =IF(DT35=3,DT34,0) -> 0 | DU36: =IF(DU35=4,DU34,0) -> 0 | DV36: =IF(DV35=4,DV34,0) -> 0 | DW36: =IF(DW35="Touching2",DW34,0) -> 0 | DX36: =IF(DX35="Touching3",DX34,0) -> 0 | DY36: =IF(DY35="Trefoil",DY34,0) -> 0 | DZ36: =IF(DZ35="Space",DZ34,0) -> 0 | EA36: =IF(EA35=2,EA34,0) -> 0 | EB36: =IF(EB35=3,EB34,0) -> 0 | EC36: =IF(EC35=4,EC34,0) -> 0 | ED36: =IF(ED35="Touching2",ED34,0) -> 0 | EE36: =IF(EE35="Touching3",EE34,0) -> 0 | EF36: =IF(EF35="Trefoil",EF34,0) -> 0 | EG36: =IF(EG35="Space",EG34,0) -> 0 | EH36: =IF(EH35=2,EH34,0) -> 0 | EI36: =IF(EI35=3,EI34,0) -> 0 | EJ36: =IF(EJ35=4,EJ34,0) -> 0 | EK36: =IF(EK35=4,EK34,0) -> 0 | EL36: =IF(EL35="Touching2",EL34,0) -> 0 | EM36: =IF(EM35="Touching3",EM34,0) -> 0 | EN36: =IF(EN35="Trefoil",EN34,0) -> 0 | EO36: =IF(EO35="Space",EO34,0) -> 0 | EP36: =IF(EP35=2,EP34,0) -> 0 | EQ36: =IF(EQ35=3,EQ34,0) -> 0 | ER36: =IF(ER35=4,ER34,0) -> 0 | ES36: =IF(ES35="Touching2",ES34,0) -> 0 | ET36: =IF(ET35="Touching3",ET34,0) -> 0 | EU36: =IF(EU35="Trefoil",EU34,0) -> 0 | EV36: =IF(EV35="Space",EV34,0) -> 0 | EW36: =IF(EW35=2,EW34,0) -> 0 | EX36: =IF(EX35=3,EX34,0) -> 0 | EY36: =IF(EY35=4,EY34,0) -> 0 | EZ36: =IF(EZ35=4,EZ34,0) -> 0 | FA36: =IF(FA35="Touching2",FA34,0) -> 0 | FB36: =IF(FB35="Touching3",FB34,0) -> 0 | FC36: =IF(FC35="Trefoil",FC34,0) -> 0 | FD36: =IF(FD35="Space",FD34,0) -> 510 | FE36: =IF(FE35=2,FE34,0) -> 0 | FF36: =IF(FF35=3,FF34,0) -> 0 | FG36: =IF(FG35=4,FG34,0) -> 0 | FH36: =IF(FH35="Touching2",FH34,0) -> 0 | FI36: =IF(FI35="Touching3",FI34,0) -> 0 | FJ36: =IF(FJ35="Trefoil",FJ34,0) -> 0 | FK36: =IF(FK35="Space",FK34,0) -> 0 | FL36: =IF(FL35=2,FL34,0) -> 0 | FM36: =IF(FM35=3,FM34,0) -> 0 | FN36: =IF(FN35=4,FN34,0) -> 0 | FO36: =IF(FO35=4,FO34,0) -> 0 | FP36: =IF(FP35="Touching2",FP34,0) -> 0 | FQ36: =IF(FQ35="Touching3",FQ34,0) -> 0 | FR36: =IF(FR35="Trefoil",FR34,0) -> 0 | FS36: =IF(FS35="Space",FS34,0) -> 0 | FT36: =IF(FT35=2,FT34,0) -> 0 | FU36: =IF(FU35=3,FU34,0) -> 0 | FV36: =IF(FV35=4,FV34,0) -> 0 | FW36: =IF(FW35=5,FW34,0) -> 0 | FX36: =IF(FX35="Touching2",FX34,0) -> 0 | FY36: =IF(FY35="Touching3",FY34,0) -> 0 | FZ36: =IF(FZ35="Trefoil",FZ34,0) -> 0 | GA36: =IF(GA35="Space",GA34,0) -> 0 | GB36: =IF(GB35=2,GB34,0) -> 0 | GC36: =IF(GC35=3,GC34,0) -> 0 | GD36: =IF(GD35=4,GD34,0) -> 0 | GE36: =IF(GE35=5,GE34,0) -> 0 | GF36: =IF(GF35=4,GF34,0) -> 0 | GG36: =IF(GG35="Touching2",GG34,0) -> 0 | GH36: =IF(GH35="Touching3",GH34,0) -> 0 | GI36: =IF(GI35="Trefoil",GI34,0) -> 0 | GJ36: =IF(GJ35="Space",GJ34,0) -> 521 | GK36: =IF(GK35=2,GK34,0) -> 0 | GL36: =IF(GL35=3,GL34,0) -> 0 | GM36: =IF(GM35=4,GM34,0) -> 0 | GN36: =IF(GN35="Touching2",GN34,0) -> 0 | GO36: =IF(GO35="Touching3",GO34,0) -> 0 | GP36: =IF(GP35="Trefoil",GP34,0) -> 0 | GQ36: =IF(GQ35="Space",GQ34,0) -> 0 | GR36: =IF(GR35=2,GR34,0) -> 0 | GS36: =IF(GS35=3,GS34,0) -> 0 | GT36: =IF(GT35=4,GT34,0) -> 0 | GU36: =IF(GU35=4,GU34,0) -> 0 | GV36: =IF(GV35="Touching2",GV34,0) -> 0 | GW36: =IF(GW35="Touching3",GW34,0) -> 0 | GX36: =IF(GX35="Trefoil",GX34,0) -> 0 | GY36: =IF(GY35="Space",GY34,0) -> 518 | GZ36: =IF(GZ35=2,GZ34,0) -> 0 | HA36: =IF(HA35=3,HA34,0) -> 0 | HB36: =IF(HB35=4,HB34,0) -> 0 | HC36: =IF(HC35="Touching2",HC34,0) -> 0 | HD36: =IF(HD35="Touching3",HD34,0) -> 0 | HE36: =IF(HE35="Trefoil",HE34,0) -> 0 | HF36: =IF(HF35="Space",HF34,0) -> 0 | HG36: =IF(HG35=2,HG34,0) -> 0 | HH36: =IF(HH35=3,HH34,0) -> 0 | HI36: =IF(HI35=4,HI34,0) -> 0 | HJ36: =IF(HJ35=4,HJ34,0) -> 0 | HK36: =IF(HK35="Touching2",HK34,0) -> 0 | HL36: =IF(HL35="Touching3",HL34,0) -> 0 | HM36: =IF(HM35="Trefoil",HM34,0) -> 0 | HN36: =IF(HN35="Space",HN34,0) -> 518 | HO36: =IF(HO35=2,HO34,0) -> 0 | HP36: =IF(HP35=3,HP34,0) -> 0 | HQ36: =IF(HQ35=4,HQ34,0) -> 0 | HR36: =IF(HR35="Touching2",HR34,0) -> 0 | HS36: =IF(HS35="Touching3",HS34,0) -> 0 | HT36: =IF(HT35="Trefoil",HT34,0) -> 0 | HU36: =IF(HU35="Space",HU34,0) -> 0 | HV36: =IF(HV35=2,HV34,0) -> 0 | HW36: =IF(HW35=3,HW34,0) -> 0 | HX36: =IF(HX35=4,HX34,0) -> 0 | HY36: =IF(HY35=4,HY34,0) -> 0 | HZ36: =IF(HZ35="Touching2",HZ34,0) -> 0 | IA36: =IF(IA35="Touching3",IA34,0) -> 0 | IB36: =IF(IB35="Trefoil",IB34,0) -> 0 | IC36: =IF(IC35="Space",IC34,0) -> 517 | ID36: =IF(ID35=2,ID34,0) -> 0 | IE36: =IF(IE35=3,IE34,0) -> 0 | IF36: =IF(IF35=4,IF34,0) -> 0 | IG36: =IF(IG35="Touching2",IG34,0) -> 0 | IH36: =IF(IH35="Touching3",IH34,0) -> 0 | II36: =IF(II35="Trefoil",II34,0) -> 0 | IJ36: =IF(IJ35="Space",IJ34,0) -> 0 | IK36: =IF(IK35=2,IK34,0) -> 0 | IL36: =IF(IL35=3,IL34,0) -> 0 | IM36: =IF(IM35=4,IM34,0) -> 0 | IN36: =IF(IN35=4,IN34,0) -> 0 | IO36: =IF(IO35="Touching2",IO34,0) -> 0 | IP36: =IF(IP35="Touching3",IP34,0) -> 0 | IQ36: =IF(IQ35="Trefoil",IQ34,0) -> 0 | IR36: =IF(IR35="Space",IR34,0) -> 516 | IS36: =IF(IS35=2,IS34,0) -> 0 | IT36: =IF(IT35=3,IT34,0) -> 0 | IU36: =IF(IU35=4,IU34,0) -> 0 | IV36: =IF(IV35="Touching2",IV34,0) -> 0 | IW36: =IF(IW35="Touching3",IW34,0) -> 0 | IX36: =IF(IX35="Trefoil",IX34,0) -> 0 | IY36: =IF(IY35="Space",IY34,0) -> 0 | IZ36: =IF(IZ35=2,IZ34,0) -> 0 | JA36: =IF(JA35=3,JA34,0) -> 0 | JB36: =IF(JB35=4,JB34,0) -> 0 | JC36: =IF(JC35=4,JC34,0) -> 0 | JD36: =IF(JD35="Touching2",JD34,0) -> 0 | JE36: =IF(JE35="Touching3",JE34,0) -> 0 | JF36: =IF(JF35="Trefoil",JF34,0) -> 0 | JG36: =IF(JG35="Space",JG34,0) -> 510 | JH36: =IF(JH35=2,JH34,0) -> 0 | JI36: =IF(JI35=3,JI34,0) -> 0 | JJ36: =IF(JJ35=4,JJ34,0) -> 0 | JK36: =IF(JK35="Touching2",JK34,0) -> 0 | JL36: =IF(JL35="Touching3",JL34,0) -> 0 | JM36: =IF(JM35="Trefoil",JM34,0) -> 0 | JN36: =IF(JN35="Space",JN34,0) -> 0 | JO36: =IF(JO35=2,JO34,0) -> 0 | JP36: =IF(JP35=3,JP34,0) -> 0 | JQ36: =IF(JQ35=4,JQ34,0) -> 0 | JR36: =IF(JR35=4,JR34,0) -> 0 | JS36: =IF(JS35="Touching2",JS34,0) -> 0 | JT36: =IF(JT35="Touching3",JT34,0) -> 0 | JU36: =IF(JU35="Trefoil",JU34,0) -> 0 | JV36: =IF(JV35="Space",JV34,0) -> 0 | JW36: =IF(JW35=2,JW34,0) -> 0 | JX36: =IF(JX35=3,JX34,0) -> 0 | JY36: =IF(JY35=4,JY34,0) -> 0 | JZ36: =IF(JZ35="Touching2",JZ34,0) -> 0 | KA36: =IF(KA35="Touching3",KA34,0) -> 0 | KB36: =IF(KB35="Trefoil",KB34,0) -> 0 | KC36: =IF(KC35="Space",KC34,0) -> 0 | KD36: =IF(KD35=2,KD34,0) -> 0 | KE36: =IF(KE35=3,KE34,0) -> 0 | KF36: =IF(KF35=4,KF34,0) -> 0 | KG36: =IF(KG35=4,KG34,0) -> 0 | KH36: =IF(KH35="Touching2",KH34,0) -> 0 | KI36: =IF(KI35="Touching3",KI34,0) -> 0 | KJ36: =IF(KJ35="Trefoil",KJ34,0) -> 0 | KK36: =IF(KK35="Space",KK34,0) -> 0 | KL36: =IF(KL35=2,KL34,0) -> 0 | KM36: =IF(KM35=3,KM34,0) -> 0 | KN36: =IF(KN35=4,KN34,0) -> 0 | KO36: =IF(KO35="Touching2",KO34,0) -> 0 | KP36: =IF(KP35="Touching3",KP34,0) -> 0 | KQ36: =IF(KQ35="Trefoil",KQ34,0) -> 0 | KR36: =IF(KR35="Space",KR34,0) -> 0 | KS36: =IF(KS35=2,KS34,0) -> 0 | KT36: =IF(KT35=3,KT34,0) -> 0 | KU36: =IF(KU35=4,KU34,0) -> 0 | KV36: =IF(KV35=4,KV34,0) -> 0 | KW36: =IF(KW35="Touching2",KW34,0) -> 0 | KX36: =IF(KX35="Touching3",KX34,0) -> 0 | KY36: =IF(KY35="Trefoil",KY34,0) -> 0 | KZ36: =IF(KZ35="Space",KZ34,0) -> 301.5810931 | LA36: =IF(LA35=2,LA34,0) -> 0 | LB36: =IF(LB35=3,LB34,0) -> 0 | LC36: =IF(LC35=4,LC34,0) -> 0 | LD36: =IF(LD35="Touching2",LD34,0) -> 0 | LE36: =IF(LE35="Touching3",LE34,0) -> 0 | LF36: =IF(LF35="Trefoil",LF34,0) -> 0 | LG36: =IF(LG35="Space",LG34,0) -> 0 | LH36: =IF(LH35=2,LH34,0) -> 0 | LI36: =IF(LI35=3,LI34,0) -> 0 | LJ36: =IF(LJ35=4,LJ34,0) -> 0 | LK36: =IF(LK35=4,LK34,0) -> 0 | LL36: =IF(LL35="Touching2",LL34,0) -> 0 | LM36: =IF(LM35="Touching3",LM34,0) -> 0 | LN36: =IF(LN35="Trefoil",LN34,0) -> 0 | LO36: =IF(LO35="Space",LO34,0) -> 293.704218 | LP36: =IF(LP35=2,LP34,0) -> 0 | LQ36: =IF(LQ35=3,LQ34,0) -> 0 | LR36: =IF(LR35=4,LR34,0) -> 0 | LS36: =IF(LS35="Touching2",LS34,0) -> 0 | LT36: =IF(LT35="Touching3",LT34,0) -> 0 | LU36: =IF(LU35="Trefoil",LU34,0) -> 0 | LV36: =IF(LV35="Space",LV34,0) -> 0 | LW36: =IF(LW35=2,LW34,0) -> 0 | LX36: =IF(LX35=3,LX34,0) -> 0 | LY36: =IF(LY35=4,LY34,0) -> 0 | LZ36: =IF(LZ35=4,LZ34,0) -> 0 | MA36: =IF(MA35="Touching2",MA34,0) -> 0 | MB36: =IF(MB35="Touching3",MB34,0) -> 0 | MC36: =IF(MC35="Trefoil",MC34,0) -> 0 | MD36: =IF(MD35="Space",MD34,0) -> 405 | ME36: =IF(ME35=2,ME34,0) -> 0 | MF36: =IF(MF35=3,MF34,0) -> 0 | MG36: =IF(MG35=4,MG34,0) -> 0 | MH36: =IF(MH35="Touching2",MH34,0) -> 0 | MI36: =IF(MI35="Touching3",MI34,0) -> 0 | MJ36: =IF(MJ35="Trefoil",MJ34,0) -> 0 | MK36: =IF(MK35="Space",MK34,0) -> 0 | ML36: =IF(ML35=2,ML34,0) -> 0 | MM36: =IF(MM35=3,MM34,0) -> 0 | MN36: =IF(MN35=4,MN34,0) -> 0 | MO36: =IF(MO35=4,MO34,0) -> 0 | MP36: =IF(MP35="Touching2",MP34,0) -> 0 | MQ36: =IF(MQ35="Touching3",MQ34,0) -> 0 | MR36: =IF(MR35="Trefoil",MR34,0) -> 0 | MS36: =IF(MS35="Space",MS34,0) -> 402 | MT36: =IF(MT35=2,MT34,0) -> 0 | MU36: =IF(MU35=3,MU34,0) -> 0 | MV36: =IF(MV35=4,MV34,0) -> 0 | MW36: =IF(MW35="Touching2",MW34,0) -> 0 | MX36: =IF(MX35="Touching3",MX34,0) -> 0 | MY36: =IF(MY35="Trefoil",MY34,0) -> 0 | MZ36: =IF(MZ35="Space",MZ34,0) -> 0 | NA36: =IF(NA35=2,NA34,0) -> 0 | NB36: =IF(NB35=3,NB34,0) -> 0 | NC36: =IF(NC35=4,NC34,0) -> 0 | ND36: =IF(ND35=4,ND34,0) -> 0 | NE36: =IF(NE35="Touching2",NE34,0) -> 0 | NF36: =IF(NF35="Touching3",NF34,0) -> 0 | NG36: =IF(NG35="Trefoil",NG34,0) -> 0 | NH36: =IF(NH35="Space",NH34,0) -> 464 | NI36: =IF(NI35=2,NI34,0) -> 0 | NJ36: =IF(NJ35=3,NJ34,0) -> 0 | NK36: =IF(NK35=4,NK34,0) -> 0 | NL36: =IF(NL35="Touching2",NL34,0) -> 0 | NM36: =IF(NM35="Touching3",NM34,0) -> 0 | NN36: =IF(NN35="Trefoil",NN34,0) -> 0 | NO36: =IF(NO35="Space",NO34,0) -> 0 | NP36: =IF(NP35=2,NP34,0) -> 0 | NQ36: =IF(NQ35=3,NQ34,0) -> 0 | NR36: =IF(NR35=4,NR34,0) -> 0 | NS36: =IF(NS35=4,NS34,0) -> 0 | NT36: =IF(NT35="Touching2",NT34,0) -> 0 | NU36: =IF(NU35="Touching3",NU34,0) -> 0 | NV36: =IF(NV35="Trefoil",NV34,0) -> 0 | NW36: =IF(NW35="Space",NW34,0) -> 393 | NX36: =IF(NX35=2,NX34,0) -> 0 | NY36: =IF(NY35=3,NY34,0) -> 0 | NZ36: =IF(NZ35=4,NZ34,0) -> 0 | OA36: =IF(OA35="Touching2",OA34,0) -> 0 | OB36: =IF(OB35="Touching3",OB34,0) -> 0 | OC36: =IF(OC35="Trefoil",OC34,0) -> 0 | OD36: =IF(OD35="Space",OD34,0) -> 0 | OE36: =IF(OE35=2,OE34,0) -> 0 | OF36: =IF(OF35=3,OF34,0) -> 0 | OG36: =IF(OG35=4,OG34,0) -> 0 | OH36: =IF(OH35=4,OH34,0) -> 0 | OI36: =IF(OI35="Touching2",OI34,0) -> 0 | OJ36: =IF(OJ35="Touching3",OJ34,0) -> 0 | OK36: =IF(OK35="Trefoil",OK34,0) -> 0 | OL36: =IF(OL35="Space",OL34,0) -> 0 | OM36: =IF(OM35=2,OM34,0) -> 0 | ON36: =IF(ON35=3,ON34,0) -> 0 | OO36: =IF(OO35=4,OO34,0) -> 0 | OP36: =IF(OP35="Touching2",OP34,0) -> 0 | OQ36: =IF(OQ35="Touching3",OQ34,0) -> 0 | OR36: =IF(OR35="Trefoil",OR34,0) -> 0 | OS36: =IF(OS35="Space",OS34,0) -> 0 | OT36: =IF(OT35=2,OT34,0) -> 0 | OU36: =IF(OU35=3,OU34,0) -> 0 | OV36: =IF(OV35=4,OV34,0) -> 0
C38: Current USE | D38: =MAX(D36:Q36) -> 391 | R38: Current USE | S38: =MAX(S36:AF36) -> 396 | AG38: Current USE | AH38: =MAX(AH36:AU36) -> 0 | AV38: Current USE | AW38: =MAX(AW36:BJ36) -> 0 | BK38: Current USE | BL38: =MAX(BL36:BZ36) -> 0 | CB38: Current USE | CC38: =MAX(CC36:CP36) -> 0 | CQ38: Current USE | CR38: =MAX(CR36:DF36) -> 0 | DG38: Current USE | DH38: =MAX(DH36:DU36) -> 390 | DV38: Current USE | DW38: =MAX(DW36:EJ36) -> 0 | EK38: Current USE | EL38: =MAX(EL36:EY36) -> 0 | EZ38: Current USE | FA38: =MAX(FA36:FN36) -> 510 | FO38: Current USE | FP38: =MAX(FP36:GD36) -> 0 | GF38: Current USE | GG38: =MAX(GG36:GT36) -> 521 | GU38: Current USE | GV38: =MAX(GV36:HI36) -> 518 | HJ38: Current USE | HK38: =MAX(HK36:HX36) -> 518 | HY38: Current USE | HZ38: =MAX(HZ36:IM36) -> 517 | IN38: Current USE | IO38: =MAX(IO36:JB36) -> 516 | JC38: Current USE | JD38: =MAX(JD36:JQ36) -> 510 | JR38: Current USE | JS38: =MAX(JS36:KF36) -> 0 | KG38: Current USE | KH38: =MAX(KH36:KU36) -> 0 | KV38: Current USE | KW38: =MAX(KW36:LJ36) -> 301.5810931 | LK38: Current USE | LL38: =MAX(LL36:LY36) -> 293.704218 | LZ38: Current USE | MA38: =MAX(MA36:MN36) -> 405 | MO38: Current USE | MP38: =MAX(MP36:NC36) -> 402 | ND38: Current USE | NE38: =MAX(NE36:NR36) -> 464 | NS38: Current USE | NT38: =MAX(NT36:OG36) -> 393 | OH38: Current USE | OI38: =MAX(OI36:OV36) -> 0
A44: Cable Name | B44: =Interface!C13 -> 60227 IEC 01 THW | C44: Choose Size
A45: Core | B45: =Interface!C15 -> 1 | C45: =IF(B46=0.5,1,IF(B46=0.75,2,IF(B46=1,3,IF(B46=1.5,4,IF(B46=2.5,5,IF(B46=4,6,IF(B46=6,7,IF(B46=10,8,IF(B46=16,9,IF(B46=25,10,IF(B46=35,11,IF(B46=50,12,IF(B46=70,13,IF(B46=95,14,IF(B46=120,15,IF(B46=150,16,IF(B46=185,17,IF(B46=240,18,IF(B46=300,19,IF(B46=400,20,IF(B46=500,21,IF(B46=630,22,IF(B46=800,23,IF(B46=1000,24,"")))))))))))))))))))))))) -> 16
A46: Size | B46: =D!F38 -> 150
A47: Installation | B47: =D!F67 -> Space | C47: =IF(AND(B51=1,B47="Touching"),"Touching2",IF(AND(B51=2,B47="Touching"),"Touching3",B47)) -> Space
A48: Condition | B48: =Interface!G35 -> Air | C48: =D!S65 -> 1
A49: Status Cable | B49: =D!F40 -> 1
A50: Current | B50: =CHOOSE(B49,D38,S38,AH38,AW38,BL38,CC38,CR38,DH38,DW38,EL38,FA38,FP38,GG38,GV38,HK38,HZ38,IO38,JD38,JS38,KH38,KW38,LL38,MA38,MP38,NE38,NT38,OI38) -> 391
A51: Check 1-3 Phase | B51: =D!C34 -> 2

Sheet Sheet2 (hidden)
A1: Air | B1: M | C1: M3 | D1: M4 | L1: Air | M1: Air | N1: Ground
A2: Ground | B2: 31-35 | C2: 11-15 | D2: 11-15 | M2: Ground
B3: 36-40 | C3: 16-20 | D3: 16-20
B4: 41-45 | C4: 21-25 | D4: 21-25
B5: 46-50 | C5: 26-30 | D5: 26-30
A6: Korn | B6: 51-55 | C6: 31-35 | D6: 31-35
C7: 36-40 | D7: 36-40
C8: 41-45 | D8: 41-45
C9: 46-50 | D9: 46-50
C10: 51-55 | D10: 51-55
C11: 56-60 | D11: 56-60
C12: 61-65
C13: 66-70
C14: 71-75
C15: 76-80
B20: AIR PVC TIS | C20: AIR XLPE IEC | D20: GROUND PVC IEC
B22: 1=TIS
B23: 2=IEC
A24: TIS/IEC | B24: =D!K66 -> 1
A25: Status | B25: =D!F40 -> 1
A26: Installation | B26: =Interface!G35 -> Air
A27: Amp. | B27: =Interface!G37 -> N/A
B28: 31-35
E30: =OUTPUT!P20 -> 0

Sheet In-air-GRD (hidden)
B2: ตัวปรับแตกต่าง 40°C Air
B3: Amb.Temp | C3: TIS | D3: IEC
C4: PVC | D4: PVC | E4: XLPE
B5: 11-15 | D5: 1.34 | E5: 1.23
B6: 16-20 | D6: 1.29 | E6: 1.19
B7: 21-25 | D7: 1.22 | E7: 1.14 | G7: Cable STD | I7: =D!K66 -> 1 | K7: *1TIS,2IEC
B8: 26-30 | D8: 1.15 | E8: 1.1 | G8: Cable TYPE | I8: =D!F40 -> 1
B9: 31-35 | C9: 1.11 | D9: 1.08 | E9: 1.05 | G9: Air / Ground | I9: =Interface!G35 -> Air
B10: 36-40 | C10: 1 | D10: 1 | E10: 1 | G10: Amp | I10: =Sheet1!B50 -> 391
B11: 41-45 | C11: 0.87 | D11: 0.91 | E11: 0.96 | G11: Temp | H11: =Interface!G39 -> 41-45 | I11: =IF(I9="AIR",C23,IF(I9="ground",C45,"")) -> 0.87
B12: 46-50 | C12: 0.71 | D12: 0.82 | E12: 0.9 | G12: Core | H12: =D!F36 -> 1
B13: 51-55 | C13: 0.5 | D13: 0.7 | E13: 0.84 | G13: Check | H13: =IF(H12=1,"Single",IF(H12>1,"Multi")) -> Single
B14: 56-60 | D14: 0.57 | E14: 0.78 | H14: =I10*I11 -> 340.17
B15: 61-65 | E15: 0.71
B16: 66-70 | E16: 0.64
B17: 71-75 | E17: 0.55
B18: 76-80 | E18: 0.45
B19: 81-85
B20: 86-90
B21: 91-95
C22: =VLOOKUP(H11,B5:E21,2,FALSE) -> 0.87 | D22: =VLOOKUP(H11,B5:E21,3,FALSE) -> 0.91 | E22: =VLOOKUP(H11,B5:E21,4,FALSE) -> 0.96
B23: USE | C23: =IF(I7=1,C22,IF(I7=2,E22)) -> 0.87
B26: ตัวปรับแตกต่าง 30°C IEC (in-ground)
B27: Amb.Temp | C27: XLPE
B28: 11-15 | C28: 1.12
B29: 16-20 | C29: 1.08
B30: 21-25 | C30: 1.03
B31: 26-30 | C31: 1
B32: 31-35 | C32: 0.96
B33: 36-40 | C33: 0.91
B34: 41-45 | C34: 0.86
B35: 46-50 | C35: 0.82
B36: 51-55 | C36: 0.76
B37: 56-60 | C37: 0.7
B38: 61-65 | C38: 0.65
B39: 66-70 | C39: 0.57
B40: 71-75 | C40: 0.49
B41: 76-80 | C41: 0.41
B42: 81-85
B43: 86-90
B44: 91-95
C45: =VLOOKUP(H11,B28:C44,2,FALSE) -> 0.86

Sheet Sheet4 (hidden)
A1: Cable Name | B1: Core x Size | E1: laying type | F1: P.F. | G1: Type of Voltage Drop | H1: Cable/Phase | I1: Length | J1: Current | K1: Voltage system | L1: Part of system | M1: Voltage drop | N1: % Voltage | O1: Installation | P1: Maximum capacity | Q1: Ambient | R1: Result | S1: Check | U1: Define ฟายเอ้ย
A2: =Interface!C13 -> 60227 IEC 01 THW | B2: =D!F36 -> 1 | C2: x | D2: =D!F38 -> 150 | E2: =D!F67 -> Space | F2: =Interface!C28 -> 0.85 | G2: =Interface!C9 -> AC 3-Phase, 3-Wire | H2: =Interface!C33 -> 6 | I2: =Interface!C35 -> 99 | J2: =Interface!C37 -> 99 | K2: =Interface!C39 -> 400 | L2: =Interface!C31 -> Main Feeder | M2: =Interface!C41 -> 0.5567930924 | N2: =Interface!C43 -> 0.1391982731 | O2: =Interface!G35 -> Air | P2: =Interface!G37 -> N/A | Q2: =Interface!G39 -> 41-45 | R2: =Interface!C45 -> Can Use | U2: 9
I13: Timer | J13: 3 | K13: count | L13: =COUNTA(OUTPUT!B:B)-2 -> -1
A15: Cable Name | B15: Core x Size | E15: laying type | F15: P.F. | G15: Type of Voltage Drop | H15: Cable/Phase | I15: Length | J15: Current | K15: Voltage system | L15: Part of system | M15: Voltage drop | N15: % Voltage | O15: Installation | P15: Maximum capacity | Q15: Ambient | R15: Result
A16: =OFFSET(OUTPUT!A7,J13,0,1,1) -> 0 | B16: =OFFSET(OUTPUT!B7,J13,0,1,1) -> 0 | C16: =OFFSET(OUTPUT!C7,J13,0,1,1) -> 0 | D16: =OFFSET(OUTPUT!D7,J13,0,1,1) -> 0 | E16: =OFFSET(OUTPUT!E7,J13,0,1,1) -> 0 | F16: =OFFSET(OUTPUT!F7,J13,0,1,1) -> 0 | G16: =OFFSET(OUTPUT!G7,J13,0,1,1) -> 0 | H16: =OFFSET(OUTPUT!H7,J13,0,1,1) -> 0 | I16: =OFFSET(OUTPUT!I7,J13,0,1,1) -> 0 | J16: =OFFSET(OUTPUT!J7,J13,0,1,1) -> 0 | K16: =OFFSET(OUTPUT!K7,J13,0,1,1) -> 0 | L16: =OFFSET(OUTPUT!L7,J13,0,1,1) -> 0 | M16: =OFFSET(OUTPUT!M7,J13,0,1,1) -> 0 | N16: =OFFSET(OUTPUT!N7,J13,0,1,1) -> 0 | O16: =OFFSET(OUTPUT!O7,J13,0,1,1) -> 0 | P16: =OFFSET(OUTPUT!P7,J13,0,1,1) -> 0 | Q16: =OFFSET(OUTPUT!Q7,J13,0,1,1) -> 0 | R16: =OFFSET(OUTPUT!R7,J13,0,1,1) -> 0 | T16: =OFFSET(OUTPUT!T7,Sheet4!J13,0,1,1) -> TRUE
